Workbook

Sheet PRESUPUESTO 2011 (hidden)
C1: Centro Cultural Arocena Laguna, AC
E3: ESTADO DE ACTIVIDADES
E4: POR EL PERIODO DEL 1o DE ENERO AL 30 DE NOVIEMBRE DE 2011
X5: 4 | Y5: 4 | Z5: 5 | AA5: 4 | AB5: 4 | AC5: 5 | AD5: 4 | AE5: 4 | AF5: 5 | AG5: 4 | AH5: 4 | AI5: 5
C7: REAL ACUM | D7: REAL ACUM | T7: REAL ACUM | U7: PRES ACUM | AJ7: PRES ACUM
C8: DIC 2009 | D8: DIC 2010 | E8: CONCEPTO | G8: 2011-01-01 | H8: 2011-02-01 | I8: 2011-03-01 | J8: 2011-04-01 | K8: 2011-05-01 | L8: 2011-06-01 | M8: 2011-07-01 | N8: 2011-08-01 | O8: 2011-09-01 | P8: 2011-10-01 | Q8: 2011-11-01 | R8: 2011-12-01 | S8: 2012-01-01 | T8: NOV 2011 | U8: NOV 2011 | V8: DIF | X8: 2012-01-01 | Y8: 2012-02-01 | Z8: 2012-03-01 | AA8: 2012-04-01 | AB8: 2012-05-01 | AC8: 2012-06-01 | AD8: 2012-07-01 | AE8: 2012-08-01 | AF8: 2012-09-01 | AG8: 2012-10-01 | AH8: 2012-11-01 | AI8: 2012-12-01 | AJ8: DIC 2012
E10: INGRESOS
C12: 378618 | D12: 247700 | E12: TAQUILLA | G12: 18700 | H12: 12795 | I12: 39770 | J12: 49055 | K12: 23420 | L12: 19183 | M12: 18895 | N12: 15120 | O12: 14525 | P12: 24893 | Q12: 26330 | R12: 33333 | T12: =SUM(G12:R12)+S12 -> 296019 | U12: 366666.67 | V12: =+T12-U12 -> -70647.67 | X12: 18700 | Y12: 12795 | Z12: 39770 | AA12: 49055 | AB12: 23420 | AC12: 19183 | AD12: 18895 | AE12: 15120 | AF12: 14525 | AG12: 24893 | AH12: 26330 | AI12: 24893 | AJ12: =SUM(X12:AI12) -> 287579
C13: 54361.25 | D13: 65698.58 | E13: ESTACIONAMIENTO | G13: 3343.1 | H13: 4253.45 | I13: 5710.35 | J13: 3279.3 | K13: 3775 | L13: 4009 | M13: 4408.62 | N13: 4270.69 | O13: 5305.17 | P13: 3189.66 | Q13: 6396.55 | R13: 5833 | T13: 53773.89 | U13: 64166.67 | V13: =+T13-U13 -> -10392.78 | X13: 3343.1 | Y13: 4253.45 | Z13: 5710.35 | AA13: 3279.3 | AB13: 3775 | AC13: 4009 | AD13: 4408.62 | AE13: 4270.69 | AF13: 5305.17 | AG13: 3189.66 | AH13: 6396.55 | AI13: 3189.66 | AJ13: =SUM(X13:AI13) -> 51130.55
C14: 85831.5 | D14: 125562.5 | E14: CURSOS | G14: 617.5 | H14: 4082.59 | J14: 10141.38 | K14: 4676.12 | M14: 5189.65 | N14: 18142.24 | Q14: 2631.03 | R14: 3333 | T14: 48813.51 | U14: 36666.67 | V14: 12146.84 | X14: 617.5 | Y14: 4082.59 | AA14: 10141.38 | AB14: 4676.12 | AD14: 5189.65 | AE14: 18142.24 | AH14: 2631.03 | AJ14: 45480.51
C15: 5429.4 | D15: 23587.9 | E15: VENTA LIBROS | H15: 400 | I15: 9759.5 | J15: 6125 | K15: 2440.6 | L15: 6271 | M15: 1647.8 | N15: 1381.4 | O15: 821.9 | P15: 2317.5 | Q15: 1784 | R15: 1667 | T15: 34615.7 | U15: 18333.33 | V15: 16282.37 | Y15: 400 | Z15: 9759.5 | AA15: 6125 | AB15: 2440.6 | AC15: 6271 | AD15: 1647.8 | AE15: 1381.4 | AF15: 821.9 | AG15: 2317.5 | AH15: 1784 | AI15: 2317.5 | AJ15: 35266.2
T16: 0 | V16: 0 | AJ16: 0
E17: RENTA DE ESPACIOS: | T17: 0 | V17: 0 | AJ17: 0
C18: 0 | D18: 0 | E18: RESTAURANT | T18: 0 | V18: 0 | AJ18: 0
C19: 744158.53 | D19: 287449.43 | E19: PLAZA | G19: 45380.34 | H19: 37980 | N19: 8620.69 | O19: 8620.69 | P19: 8620.69 | Q19: =55300+40629.31 -> 95929.31 | R19: 20833 | T19: 225984.72 | U19: 229166.67 | V19: -3181.95 | X19: 45380.34 | Y19: 37980 | AE19: 8620.69 | AF19: 8620.69 | AG19: 8620.69 | AH19: =55300+40629.31 -> 95929.31 | AI19: 8620.69 | AJ19: 213772.41
C20: 1304.35 | D20: 0 | E20: IPADE (170,000 ANUALES) | Q20: 16240 | T20: 16240 | V20: 16240 | AH20: 16240 | AJ20: 16240
C21: 4500 | D21: 11517 | E21: AUDITORIO | K21: 862.06 | L21: =2500+4310+5000 -> 11810 | M21: 3500 | P21: 4174 | R21: 500 | T21: 20846.06 | U21: 5500 | V21: 15346.06 | AB21: 862.06 | AC21: =2500+4310+5000 -> 11810 | AD21: 3500 | AG21: 4174 | AI21: 4174 | AJ21: 24520.06
C22: 0 | D22: 0 | E22: SALON EJECUTIVO | T22: 0 | V22: 0 | AJ22: 0
C23: 0 | D23: 0 | E23: RENTA DE SILLAS | T23: 0 | V23: 0 | AJ23: 0
C24: 23533.57 | D24: 25511.43 | E24: LIBRERÍA | R24: 1250 | T24: 1250 | U24: 13750 | V24: -12500 | AJ24: 0
T25: 0 | V25: 0 | AJ25: 0
E26: DONATIVOS: | T26: 0 | V26: 0 | AJ26: 0
C27: 4150000 | D27: 9130000 | E27: GOBIERNO DEL ESTADO | L27: 1500000 | T27: 1500000 | U27: 7333333.33 | V27: -5833333.33 | X27: =6000000/12 -> 500000 | Y27: =6000000/12 -> 500000 | Z27: =6000000/12 -> 500000 | AA27: =6000000/12 -> 500000 | AB27: 500000 | AC27: 500000 | AD27: 500000 | AE27: 500000 | AF27: 500000 | AG27: 500000 | AH27: 500000 | AI27: 500000 | AJ27: 6000000
C28: 125000 | D28: 1030660.76 | E28: GOBIERNO MUNICIPAL | H28: 2000000 | K28: 250000 | L28: 250000 | M28: 250000 | R28: 1500000 | T28: 4250000 | U28: 3666666.67 | V28: 583333.33 | X28: =1000000/12 -> 83333.33333 | Y28: 83333.33333 | Z28: 83333.33333 | AA28: =1000000/12 -> 83333.33333 | AB28: 83333.33333 | AC28: 83333.33333 | AD28: 83333.33333 | AE28: 83333.33333 | AF28: 83333.33333 | AG28: 83333.33333 | AH28: 83333.33333 | AI28: 83333.33333 | AJ28: 1000000
C29: 1050000 | D29: 1000000 | E29: FUNDACION LALA | I29: 500000 | M29: 500000 | T29: 1000000 | U29: 916666.67 | V29: 83333.33 | X29: 83333.33333 | Y29: 83333.33333 | Z29: 83333.33333 | AA29: 83333.33333 | AB29: 83333.33333 | AC29: 83333.33333 | AD29: 83333.33333 | AE29: 83333.33333 | AF29: 83333.33333 | AG29: 83333.33333 | AH29: 83333.33333 | AI29: 83333.33333 | AJ29: 1000000
C30: 5000000 | D30: 8213794 | E30: FUNDACION AROCENA (16,800 X 35%) Gtos. Operación | G30: 1000000 | H30: 2000000 | I30: 500000 | J30: 500000 | K30: 2000000 | M30: 1500000 | N30: 1500000 | O30: 3000000 | P30: 3500000 | Q30: 3000000 | R30: 1000000 | T30: 19500000 | U30: 5390000 | V30: 14110000 | X30: =6000000/12 -> 500000 | Y30: =6000000/12 -> 500000 | Z30: =6000000/12 -> 500000 | AA30: =6000000/12 -> 500000 | AB30: 500000 | AC30: 500000 | AD30: 500000 | AE30: 500000 | AF30: 500000 | AG30: 500000 | AH30: 500000 | AI30: 500000 | AJ30: 6000000
E31: FUNDACION AROCENA ( 25,030 X 25% ) Edif. Russek | T31: 0 | U31: 5736041.67 | V31: -5736041.67 | AJ31: 0
C32: 800000 | D32: 0 | E32: PEÑOLES | T32: 0 | U32: 2750000 | V32: -2750000 | AJ32: 0
C33: 50000 | D33: 25000 | E33: SANTA MONICA | T33: 0 | V33: 0 | AJ33: 0
C34: =472250+800 -> 473050 | D34: 46152.44 | E34: VARIOS | G34: 40000 | H34: 482000 | I34: 101150 | J34: =58725+19575 -> 78300 | K34: =19575+19575+19575 -> 58725 | L34: =1878300-1750000 -> 128300 | M34: 2700.08 | N34: 9000 | P34: 2500 | Q34: 10000 | R34: 2500 | T34: 915175.08 | U34: 202500 | V34: 712675.08 | X34: =5000000/12 -> 416666.6667 | Y34: =5000000/12 -> 416666.6667 | Z34: 416666.6667 | AA34: 416666.6667 | AB34: 416666.6667 | AC34: 416666.6667 | AD34: 416666.6667 | AE34: 416666.6667 | AF34: 416666.6667 | AG34: 416666.6667 | AH34: 416666.6667 | AI34: 416666.6667 | AJ34: 5000000
C35: =SUM(C27:C34) -> 11648050 | D35: =SUM(D27:D34) -> 19445607.2 | E35: TOTAL DONATIVOS: | G35: =SUM(G27:G34) -> 1040000 | H35: =SUM(H27:H34) -> 4482000 | I35: 1101150 | J35: 578300 | K35: 2308725 | L35: 1878300 | M35: 2252700.08 | N35: 1509000 | O35: 3000000 | P35: 3502500 | Q35: 3010000 | R35: 2502500 | S35: 0 | T35: 27165175.08 | U35: 25995208.34 | V35: 1169966.74 | X35: =SUM(X27:X34) -> 1583333.333 | Y35: 1583333.333 | Z35: 1583333.333 | AA35: 1583333.333 | AB35: 1583333.333 | AC35: 1583333.333 | AD35: 1583333.333 | AE35: 1583333.333 | AF35: 1583333.333 | AG35: 1583333.333 | AH35: 1583333.333 | AI35: 1583333.333 | AJ35: 19000000
S36: =+R36 -> 0 | T36: =SUM(G36:R36)+S36 -> 0 | V36: 0 | AJ36: 0
C37: 0 | D37: 0 | E37: MEMBRESIAS | S37: =+R37 -> 0 | T37: =SUM(G37:R37)+S37 -> 0 | V37: 0 | AJ37: 0
C38: 61315.78 | D38: 114491.25 | E38: OTROS INGRESOS | G38: 5046.46 | H38: 1079.09 | I38: 1348.4 | J38: 1146.58 | K38: 1332.83 | L38: =2371+19226 -> 21597 | M38: =1010.58+184.2 -> 1194.78 | N38: 689.87 | O38: 965.51 | P38: =30324.14+1479.54 -> 31803.68 | Q38: =804.64+0.71 -> 805.35 | T38: =SUM(G38:R38) -> 67009.55 | V38: 67009.55 | AJ38: 0
E39: VENTA DE 14 ESPACIOS EDIFICIO RUSSEK | N39: 10000 | T39: =SUM(G39:R39)+S39 -> 10000 | U39: 12833333.33 | V39: -12823333.33 | AJ39: 0
E40: FONDOS VIA CONGRESO | T40: =SUM(G40:R40)+S40 -> 0 | U40: 1375000 | V40: -1375000 | AJ40: 0
C41: 13277748.55 | D41: =SUM(D12:D34)+SUM(D36:D40) -> 20347125.29 | E41: TOTAL INGRESOS | G41: =SUM(G12:G34)+SUM(G36:G40) -> 1113087.4 | H41: 4542590.13 | I41: 1157738.25 | J41: 648047.26 | K41: 2345231.61 | L41: 1941170 | M41: 2287535.93 | N41: 1567224.89 | O41: 3030238.27 | P41: 3577498.53 | Q41: 3160116.24 | R41: 2569249 | S41: 0 | T41: 27939727.51 | U41: 40937791.68 | V41: -12998064.17 | X41: =SUM(X12:X34)+SUM(X36:X40) -> 1651374.273 | Y41: 1642844.373 | Z41: 1638573.183 | AA41: 1651934.013 | AB41: 1618507.113 | AC41: 1624606.333 | AD41: 1616974.403 | AE41: 1630868.353 | AF41: 1612606.093 | AG41: 1626528.183 | AH41: 1732644.223 | AI41: 1626528.183 | AJ41: 19673988.73
E43: EGRESOS
E44: GASTOS DE ADMINISTRACION:
C45: 503355.94 | D45: 535456.2 | E45: SUELDOS | G45: 47227.24 | H45: 47227.24 | I45: 47227.24 | J45: 47227.24 | K45: 47227.24 | L45: 47227 | M45: 47227.24 | N45: 47227.24 | O45: 47227.24 | P45: 47227.24 | Q45: 47227.24 | R45: 47227 | T45: =SUM(G45:R45)+S45 -> 566726.4 | U45: 514335.36 | V45: =+T45-U45 -> 52391.04 | X45: 49096 | Y45: 49096 | Z45: 49096 | AA45: 49096 | AB45: 49096 | AC45: 49096 | AD45: 49096 | AE45: 49096 | AF45: 49096 | AG45: 49096 | AH45: 49096 | AI45: 49096 | AJ45: =SUM(X45:AI45) -> 589152
C46: 0 | D46: 0 | E46: VACACIONES | R46: 21820 | T46: 21820 | U46: 0 | V46: 21820 | AI46: =1636.52*14 -> 22911.28 | AJ46: =SUM(X46:AI46) -> 22911.28
C47: 42249.79 | D47: 44362.28 | E47: AGUINALDO | R47: 47227 | T47: 47227 | U47: 0 | V47: 47227 | AI47: 49096 | AJ47: 49096
C48: 0 | D48: 0 | E48: LIQ. E INDEMNIZACIONES | T48: 0 | U48: 0 | V48: 0 | X48: =+(G48*5%)+G48 -> 0 | Y48: =+(H48*5%)+H48 -> 0 | Z48: =+(I48*5%)+I48 -> 0 | AA48: =+(J48*5%)+J48 -> 0 | AB48: =+(K48*5%)+K48 -> 0 | AC48: =+(L48*5%)+L48 -> 0 | AD48: =+(M48*5%)+M48 -> 0 | AE48: =+(N48*5%)+N48 -> 0 | AF48: =+(O48*5%)+O48 -> 0 | AG48: =+(P48*5%)+P48 -> 0 | AH48: =+(Q48*5%)+Q48 -> 0 | AI48: =+(R48*5%)+R48 -> 0 | AJ48: 0
C49: 83143.36 | D49: 87208.8 | E49: I.M.S.S, SAR,INFONAVIT | G49: =2697.83+5498.56+4381.33 -> 12577.72 | H49: 2547.91 | I49: =2181.3+5318.29+4237.68 -> 11737.27 | J49: 2547.91 | K49: =2181.3+5318.29+4237.68 -> 11737.27 | L49: 2834.09 | M49: =2181.3+5318.29+4237.68 -> 11737.27 | N49: 2834.09 | O49: =2181.3+5318.29+4237.68 -> 11737.27 | P49: 2834.09 | Q49: =2181.3+5318.29+4237.68 -> 11737.27 | R49: 14834 | T49: 99696.16 | U49: 94846 | V49: 4850.16 | X49: =+(G49*5%)+G49 -> 13206.606 | Y49: =+(H49*5%)+H49 -> 2675.3055 | Z49: =+(I49*5%)+I49 -> 12324.1335 | AA49: =+(J49*5%)+J49 -> 2675.3055 | AB49: =+(K49*5%)+K49 -> 12324.1335 | AC49: =+(L49*5%)+L49 -> 2975.7945 | AD49: =+(M49*5%)+M49 -> 12324.1335 | AE49: =+(N49*5%)+N49 -> 2975.7945 | AF49: =+(O49*5%)+O49 -> 12324.1335 | AG49: =+(P49*5%)+P49 -> 2975.7945 | AH49: =+(Q49*5%)+Q49 -> 12324.1335 | AI49: 2976 | AJ49: 92081.268
C50: 15000 | D50: 2000 | E50: GASTOS DE CAPACITACION | T50: 0 | U50: 2100 | V50: -2100 | X50: 0 | Y50: 0 | Z50: 0 | AA50: 0 | AB50: 0 | AC50: 0 | AD50: 0 | AE50: 0 | AF50: 0 | AG50: 0 | AH50: 0 | AI50: =+(R50*5%)+R50 -> 0 | AJ50: 0
C51: 5155.31 | D51: 5536.02 | E51: TELEFONO | G51: 331.44 | H51: 345.6 | J51: 417.53 | L51: 674.5 | M51: 330.4 | O51: 1293.94 | P51: 439.2 | Q51: 396.04 | R51: 453 | T51: 4681.65 | U51: 5381.65 | V51: -700 | X51: 348.012 | Y51: 362.88 | Z51: 0 | AA51: 438.4065 | AB51: 0 | AC51: 708.225 | AD51: 346.92 | AE51: 0 | AF51: 1358.637 | AG51: 461.16 | AH51: 415.842 | AI51: 416 | AJ51: 4856.0825
C52: 3930 | D52: 1772.7 | E52: CONSUMOS | I52: 11 | N52: 184 | R52: 392 | T52: 587 | U52: 1861 | V52: -1274 | X52: 0 | Y52: 0 | Z52: 11.55 | AA52: 0 | AB52: 0 | AC52: 0 | AD52: 0 | AE52: 193.2 | AF52: 0 | AG52: 0 | AH52: 0 | AI52: =+(R52*5%)+R52 -> 411.6 | AJ52: 616.35
D53: 935.1 | E53: PAPELERIA Y COPIAS | T53: 0 | U53: 0 | V53: 0 | X53: 0 | Y53: 0 | Z53: 0 | AA53: 0 | AB53: 0 | AC53: 0 | AD53: 0 | AE53: 0 | AF53: 0 | AG53: 0 | AH53: 0 | AI53: 0 | AJ53: 0
C54: 11877.8 | D54: 0 | E54: SEGUROS Y FIANZAS | T54: 0 | U54: 0 | V54: 0 | X54: 0 | Y54: 0 | Z54: 0 | AA54: 0 | AB54: 0 | AC54: 0 | AD54: 0 | AE54: 0 | AF54: 0 | AG54: 0 | AH54: 0 | AI54: 0 | AJ54: 0
C55: 29974.1 | D55: 76534.65 | E55: GASTOS DE VIAJE | G55: 1244.45 | H55: 652 | I55: 4487 | O55: 7391 | P55: 10622.28 | R55: 5159 | T55: 29555.73 | U55: 57822.14 | V55: -28266.41 | X55: 1306.6725 | Y55: 684.6 | Z55: 4711.35 | AA55: 0 | AB55: 0 | AC55: 0 | AD55: 0 | AE55: 0 | AF55: 7760.55 | AG55: 11153.394 | AH55: 0 | AI55: 5416.95 | AJ55: 31033.5165
C56: 6820 | D56: 6192.29 | E56: VARIOS | T56: 0 | U56: 6501.9 | V56: -6501.9 | X56: 0 | Y56: 0 | Z56: 0 | AA56: 0 | AB56: 0 | AC56: 0 | AD56: 0 | AE56: 0 | AF56: 0 | AG56: 0 | AH56: 0 | AI56: 0 | AJ56: 0
C57: 801 | D57: 0 | E57: NO DEDUCIBLES | T57: 0 | U57: 0 | V57: 0 | X57: 0 | Y57: 0 | Z57: 0 | AA57: 0 | AB57: 0 | AC57: 0 | AD57: 0 | AE57: 0 | AF57: 0 | AG57: 0 | AH57: 0 | AI57: 0 | AJ57: 0
C58: 0 | D58: 0 | E58: RELACIONES PUBLICAS | T58: 0 | U58: 0 | V58: 0 | X58: 0 | Y58: 0 | Z58: 0 | AA58: 0 | AB58: 0 | AC58: 0 | AD58: 0 | AE58: 0 | AF58: 0 | AG58: 0 | AH58: 0 | AI58: 0 | AJ58: 0
C59: 702307.3 | D59: =SUM(D45:D55) -> 753805.75 | E59: TOTAL ADMINISTRATIVOS | G59: =SUM(G45:G55) -> 61380.85 | H59: =SUM(H45:H58) -> 50772.75 | I59: =SUM(I45:I58) -> 63462.51 | J59: =SUM(J45:J58) -> 50192.68 | K59: =SUM(K45:K58) -> 58964.51 | L59: =SUM(L45:L58) -> 50735.59 | M59: 59294.91 | N59: 50245.33 | O59: 67649.45 | P59: 61122.81 | Q59: 59360.55 | R59: 137112 | S59: 0 | T59: 770293.94 | U59: 682848.05 | V59: 87445.89 | X59: =SUM(X45:X55) -> 63957.2905 | Y59: =SUM(Y45:Y58) -> 52818.7855 | Z59: =SUM(Z45:Z58) -> 66143.0335 | AA59: =SUM(AA45:AA58) -> 52209.712 | AB59: =SUM(AB45:AB58) -> 61420.1335 | AC59: =SUM(AC45:AC58) -> 52780.0195 | AD59: 61767.0535 | AE59: 52264.9945 | AF59: 70539.3205 | AG59: 63686.3485 | AH59: 61835.9755 | AI59: 130323.83 | AJ59: 789746.497
E62: GASTOS DE OPERACIÓN:
C63: 4400171.31 | D63: 5031877.83 | E63: SUELDOS | G63: 437087.71 | H63: 432108.5 | I63: 507757.51 | J63: 444044 | K63: 411591.63 | L63: 428579.96 | M63: 475317.15 | N63: 427815.82 | O63: 481461.83 | P63: 401382.38 | Q63: 423664.95 | R63: 472795 | T63: =SUM(G63:R63)+S63 -> 5343606.44 | U63: 4819401 | V63: =+T63-U63 -> 524205.44 | X63: 448191.47 | Y63: 448191.47 | Z63: 500252.56 | AA63: 448191.47 | AB63: 448191.47 | AC63: 500252.56 | AD63: 448191.47 | AE63: 448191.47 | AF63: 500252.56 | AG63: 448191.47 | AH63: 448191.47 | AI63: 500252.56 | AJ63: =SUM(X63:AI63) -> 5586542
C64: 375199.14 | D64: 338809.3 | E64: SUELDOS ASIMILADOS | G64: 24110 | H64: 24110 | I64: 24110 | J64: 33630 | K64: 30630.1 | L64: 30630 | M64: 30630.1 | N64: 24110 | O64: 34440.82 | P64: 30796.56 | Q64: 46430.57 | R64: 24600 | T64: 358228.15 | U64: 280440 | V64: 77788.15 | X64: 33794 | Y64: 33794 | Z64: 33794 | AA64: 33794 | AB64: 33794 | AC64: 33794 | AD64: 33794 | AE64: =33794+4842 -> 38636 | AF64: 33794 | AG64: =33794+12055 -> 45849 | AH64: 33794 | AI64: =33794+33794 -> 67588 | AJ64: =SUM(X64:AI64) -> 456219
C65: 131801.47 | D65: 200782.62 | E65: VACACIONES | G65: 8023.6 | H65: 7110.58 | I65: 4979.55 | J65: 28022.41 | K65: 45278.24 | L65: 27930.28 | M65: 3199.18 | N65: 16010.32 | O65: 25984.6 | P65: 18140.15 | Q65: =13513.95+6976.72 -> 20490.67 | R65: 7976 | T65: 213145.58 | U65: 198225.26 | V65: 14920.32 | X65: =239695/12 -> 19974.58333 | Y65: =239695/12 -> 19974.58333 | Z65: 19974.58333 | AA65: 19974.58333 | AB65: 19974.58333 | AC65: 19974.58333 | AD65: 19974.58333 | AE65: 19974.58333 | AF65: 19974.58333 | AG65: 19974.58333 | AH65: 19974.58333 | AI65: 19974.58333 | AJ65: =SUM(X65:AI65) -> 239695
C66: 374804.08 | D66: 418478.53 | E66: AGUINALDO | L66: 5023.55 | M66: 1466.1 | N66: 3347.3 | Q66: 8026.04 | R66: 472795 | T66: 490657.99 | U66: 0 | V66: 490657.99 | AI66: 500252.56 | AJ66: 500252.56
C67: 5000 | D67: 1000 | E67: LIQ. E INDEMNIZACIONES | L67: 2580.1 | M67: 2000 | T67: 4580.1 | U67: 1050 | V67: 3530.1 | AJ67: 0
C68: 4929 | D68: 0 | E68: UNIFORMES Y EQ. DE TRABAJO | M68: 10720 | P68: 1520 | T68: 12240 | U68: 0 | V68: 12240 | X68: =+(G68*5%)+G68 -> 0 | Y68: =+(H68*5%)+H68 -> 0 | Z68: 0 | AA68: 0 | AB68: 0 | AC68: 0 | AD68: 11256 | AE68: 0 | AF68: 0 | AG68: 1596 | AH68: 0 | AI68: 0 | AJ68: 12852
C69: 899632.89 | D69: 1008202.87 | E69: I.M.S.S, SAR,INFONAVIT | G69: =34988.92+54825.73+43685.82 -> 133500.47 | H69: 37373.25 | I69: =37438.01+56571.6+45077.1 -> 139086.71 | J69: 40286.52 | K69: =39358.01+59832.53+47675.34 -> 146865.88 | L69: 41054.5 | M69: =39005.6+59680.13+47553.9 -> 146239.63 | N69: 40151.71 | O69: =39459.12+58334.55+46481.73 -> 144275.4 | P69: 36331.97 | Q69: =39166.95+55722.96+44400.77 -> 139290.68 | R69: 36332 | T69: 1080788.72 | U69: 1003347 | V69: 77441.72 | X69: =+(G69*5%)+G69 -> 140175.4935 | Y69: =+(H69*5%)+H69 -> 39241.9125 | Z69: =+(I69*5%)+I69 -> 146041.0455 | AA69: =+(J69*5%)+J69 -> 42300.846 | AB69: =+(K69*5%)+K69 -> 154209.174 | AC69: =+(L69*5%)+L69 -> 43107.225 | AD69: =+(M69*5%)+M69 -> 153551.6115 | AE69: =+(N69*5%)+N69 -> 42159.2955 | AF69: =+(O69*5%)+O69 -> 151489.17 | AG69: =+(P69*5%)+P69 -> 38148.5685 | AH69: =+(Q69*5%)+Q69 -> 146255.214 | AI69: 38149 | AJ69: 1134828.556
C70: 7120 | D70: 10715 | E70: IMPUESTOS ESTATALES | T70: 0 | U70: 11250.75 | V70: -11250.75 | X70: 7332 | Y70: 3383 | Z70: 0 | AA70: 0 | AB70: 0 | AC70: 0 | AD70: 0 | AE70: 0 | AF70: 0 | AG70: 0 | AH70: 0 | AI70: =+(R70*5%)+R70 -> 0 | AJ70: 10715 | AK70: 0
C71: 0 | D71: 0 | E71: GASTOS DE CAPACITACION | T71: 0 | U71: 0 | V71: 0 | X71: =+(G71*5%)+G71 -> 0 | Y71: =+(H71*5%)+H71 -> 0 | Z71: 0 | AA71: 0 | AB71: 0 | AC71: 0 | AD71: 0 | AE71: 0 | AF71: 0 | AG71: 0 | AH71: 0 | AI71: =+(R71*5%)+R71 -> 0 | AJ71: 0 | AK71: 0
C72: 98434.5 | D72: 102817.8 | E72: TELEFONO | G72: 8753.85 | H72: 8285.24 | I72: 8554.23 | J72: 579.61 | K72: 7769.76 | L72: 17197.22 | M72: 333.89 | N72: 8827.62 | O72: 17129.25 | P72: 331.44 | Q72: 8954.71 | R72: 11792 | T72: 98508.82 | U72: 90576.98 | V72: 7931.84 | X72: 9191.5425 | Y72: 8699.502 | Z72: 8981.9415 | AA72: 608.5905 | AB72: 8158.248 | AC72: 18057.081 | AD72: 350.5845 | AE72: 9269.001 | AF72: 17985.7125 | AG72: 348.012 | AH72: 9402.4455 | AI72: =+AK72*5% -> 589.599325 | AJ72: 91642.26033 | AK72: 11791.9865 | AL72: =+AK72*5% -> 589.599325 | AM72: =+AK72+AL72 -> 12381.58582
C73: 1105322.036 | D73: 1271523.4 | E73: ELECTRICIDAD | G73: 77768.17 | H73: 79746.87 | I73: 87097.52 | J73: 118178.67 | K73: 117789.01 | L73: 145592.42 | M73: 173052.78 | N73: 151589.92 | O73: 156972.6 | P73: 135908.85 | Q73: 111888.94 | R73: 120523 | T73: 1476108.75 | U73: 1241830.22 | V73: 234278.53 | X73: 81656.5785 | Y73: 83734.2135 | Z73: 91452.396 | AA73: 124087.6035 | AB73: 123678.4605 | AC73: 152872.041 | AD73: 181705.419 | AE73: 159169.416 | AF73: 164821.23 | AG73: 142704.2925 | AH73: 117483.387 | AI73: =+AM73 -> 126548.9006 | AJ73: 1549913.938 | AK73: 120522.7625 | AL73: =+AK73*5% -> 6026.138125 | AM73: =+AK73+AL73 -> 126548.9006
C74: 40248.02 | D74: 49169.63 | E74: AGUA | G74: 7414.31 | H74: 5587.89 | I74: 4861.53 | J74: 5523.44 | K74: 9426.17 | L74: 9528.59 | M74: 10503.1 | N74: 25395.09 | O74: 10575.32 | P74: 1100 | Q74: 14538.11 | R74: 5212 | T74: 109665.55 | U74: 44006.21 | V74: 65659.34 | X74: 7785.0255 | Y74: 5867.2845 | Z74: 5104.6065 | AA74: 5799.612 | AB74: 9897.4785 | AC74: 10005.0195 | AD74: 11028.255 | AE74: 26664.8445 | AF74: 11104.086 | AG74: 1155 | AH74: 15265.0155 | AI74: =+AM74 -> 5472.31755 | AJ74: 115148.545 | AK74: 5211.731 | AL74: 260.58655 | AM74: 5472.31755
C75: 24440.65 | D75: 38244.16 | E75: COMBUSTIBLES Y LUBRICANTES | G75: 1834.45 | H75: 4621.92 | I75: 1753.606 | K75: 4350.52 | L75: 4992.87 | M75: 4492.33 | N75: 2793.49 | O75: 3564.27 | P75: 5000.62 | Q75: 5133.59 | R75: 3897 | T75: 42434.666 | U75: 34213.34 | V75: 8221.326 | X75: 1926.1725 | Y75: 4853.016 | Z75: 1841.2863 | AA75: 0 | AB75: 4568.046 | AC75: 5242.5135 | AD75: 4716.9465 | AE75: 2933.1645 | AF75: 3742.4835 | AG75: 5250.651 | AH75: 5390.2695 | AI75: 4091.4216 | AJ75: 44555.9709 | AK75: 3896.592 | AL75: 194.8296 | AM75: 4091.4216
C76: 0 | D76: 4545.82 | E76: CORREO Y TELEGRAFO | T76: 0 | U76: 4773.11 | V76: -4773.11 | X76: 0 | Y76: 0 | Z76: 0 | AA76: 0 | AB76: 0 | AC76: 0 | AD76: 0 | AE76: 0 | AF76: 0 | AG76: 0 | AH76: 0 | AI76: 0 | AJ76: 0 | AK76: 0 | AL76: 0 | AM76: 0
C77: 32085.92 | D77: 5323.5 | E77: PAQUETERIA Y MENSAJERIA | G77: 4584.22 | J77: 2154.97 | L77: 5854.49 | M77: 297.56 | R77: 1522 | T77: 14413.24 | U77: 4991.06 | V77: 9422.18 | X77: 4813.431 | Y77: 0 | Z77: 0 | AA77: 2262.7185 | AB77: 0 | AC77: 6147.2145 | AD77: 312.438 | AE77: 0 | AF77: 0 | AG77: 0 | AH77: 0 | AI77: 1598.062725 | AJ77: 15133.86473 | AK77: 1521.9645 | AL77: 76.098225 | AM77: 1598.062725
C78: 88440.65 | D78: 69158.22 | E78: CONSUMOS OFICINA | G78: 1605.4 | H78: 3914.8 | I78: 8010.57 | J78: 7838.69 | K78: 899.39 | L78: 716.1 | M78: 791.04 | N78: 1668.81 | O78: 5155.99 | P78: 931.2 | Q78: 733 | R78: 14000 | T78: 46264.99 | U78: 33280.19 | V78: 12984.8 | X78: 1685.67 | Y78: 4110.54 | Z78: 8411.0985 | AA78: 8230.6245 | AB78: 944.3595 | AC78: 751.905 | AD78: 830.592 | AE78: 1752.2505 | AF78: 5413.7895 | AG78: 977.76 | AH78: 769.65 | AI78: 14700 | AJ78: 48578.2395 | AK78: 14000 | AL78: 700 | AM78: 14700
C79: 25099 | D79: 22372.4 | E79: CUOTAS Y SUSCRIPCIONES | G79: 750 | H79: 750 | I79: 2200 | J79: 750 | K79: 7440 | L79: 1500 | M79: 8190 | N79: 750 | O79: 1640 | P79: 2470 | Q79: 820 | R79: 1365 | T79: 28625 | U79: 21549.57 | V79: 7075.43 | X79: 787.5 | Y79: 787.5 | Z79: 2310 | AA79: 787.5 | AB79: 7812 | AC79: 1575 | AD79: 8599.5 | AE79: 787.5 | AF79: 1722 | AG79: 2593.5 | AH79: 861 | AI79: 1433.25 | AJ79: 30056.25 | AK79: 1365 | AL79: 68.25 | AM79: 1433.25
C80: 1224.75 | D80: 450 | E80: ESTACIONAMIENTO | R80: 16 | T80: 16 | U80: 16.1 | V80: -0.1 | X80: 0 | Y80: 0 | Z80: 0 | AA80: 0 | AB80: 0 | AC80: 0 | AD80: 0 | AE80: 0 | AF80: 0 | AG80: 0 | AH80: 0 | AI80: 16.905 | AJ80: 16.905 | AK80: 16.1 | AL80: 0.805 | AM80: 16.905
C81: 67894.77 | D81: 61678.38 | E81: ARRENDAMIENTO | G81: 5034.97 | H81: 5034.97 | I81: 5034.97 | K81: 10069.94 | L81: 5034.97 | M81: 5034.97 | N81: 5034.97 | O81: 5034.97 | P81: 5034.97 | Q81: 5034.97 | R81: 5287 | T81: 60671.67 | U81: 58157 | V81: 2514.67 | X81: 5286.7185 | Y81: 5286.7185 | Z81: 5286.7185 | AA81: 0 | AB81: 10573.437 | AC81: 5286.7185 | AD81: 5286.7185 | AE81: 5286.7185 | AF81: 5286.7185 | AG81: 5286.7185 | AH81: 5286.7185 | AI81: 5551.35 | AJ81: 63705.2535 | AK81: 5287 | AL81: 264.35 | AM81: 5551.35
C82: 17578.94 | D82: 93879.91 | E82: HONORARIOS | T82: 0 | U82: 0 | V82: 0 | X82: 0 | Y82: 0 | Z82: 0 | AA82: 0 | AB82: 0 | AC82: 0 | AD82: 0 | AE82: 0 | AF82: 0 | AG82: 0 | AH82: 0 | AI82: 0 | AJ82: 0 | AK82: 0 | AL82: 0 | AM82: 0
C83: 486905.48 | D83: 883448.11 | E83: MANTENIMIENTO. | G83: 60453.03 | H83: 76226.79 | I83: 94762.66 | J83: 43774.38 | K83: 30836.58 | L83: 126033.62 | M83: 79925.14 | N83: 57319.37 | O83: 130420.45 | P83: 54644.67 | Q83: 68103 | R83: 57113 | T83: 879612.69 | U83: 868670.34 | V83: 10942.35 | X83: =(967631.65+237342)/12 -> 100414.4708 | Y83: =(967631.65+237342)/12 -> 100414.4708 | Z83: 100414.4708 | AA83: 100414.4708 | AB83: 100414.4708 | AC83: 100414.4708 | AD83: 100414.4708 | AE83: 100414.4708 | AF83: 100414.4708 | AG83: 100414.4708 | AH83: 100414.4708 | AI83: 100414.4708 | AJ83: 1204973.65 | AK83: 57113.2625 | AL83: 2855.663125 | AM83: 59968.92563
C84: 41577.91 | D84: 49113.17 | E84: PAPELERIA Y COPIAS | G84: 2089.27 | H84: 2958 | I84: 1547.52 | J84: 1259.27 | K84: 5285.22 | L84: 2735.57 | M84: 4340.36 | N84: 4908.16 | O84: 1398.96 | P84: 4803.4 | Q84: 2256.79 | R84: 7521 | T84: 41103.52 | U84: 49873.68 | V84: -8770.16 | X84: =+(G84*5%)+G84 -> 2193.7335 | Y84: =+(H84*5%)+H84 -> 3105.9 | Z84: 1624.896 | AA84: 1322.2335 | AB84: 5549.481 | AC84: 2872.3485 | AD84: 4557.378 | AE84: 5153.568 | AF84: 1468.908 | AG84: 5043.57 | AH84: 2369.6295 | AI84: 7896.61215 | AJ84: 43158.25815 | AK84: 7520.583 | AL84: 376.02915 | AM84: 7896.61215
C85: 765940.33 | D85: 851532.44 | E85: SEGUROS Y FIANZAS | I85: 20449.04 | J85: 42812.31 | L85: 238783.05 | P85: 281210.89 | Q85: 222851.91 | R85: 154478 | T85: 960585.2 | U85: 894109.06 | V85: 66476.14 | X85: 0 | Y85: 0 | Z85: 21471.492 | AA85: 44952.9255 | AB85: 0 | AC85: 250722.2025 | AD85: 0 | AE85: 0 | AF85: 0 | AG85: 295271.4345 | AH85: 233994.5055 | AI85: 162202.4129 | AJ85: 1008614.973 | AK85: 154478.4885 | AL85: 7723.924425 | AM85: 162202.4129
C86: 58396.2 | D86: 87530.6 | E86: UTILES Y GASTOS DE LIMPIEZA | H86: 7745 | I86: 13279 | J86: 192.75 | L86: 27095 | O86: 10994 | P86: 1300 | Q86: 10889.5 | R86: 7438 | T86: 78933.25 | U86: 76525.68 | V86: 2407.57 | X86: 0 | Y86: 8132.25 | Z86: 13942.95 | AA86: 202.3875 | AB86: 0 | AC86: 28449.75 | AD86: 0 | AE86: 0 | AF86: 11543.7 | AG86: 1365 | AH86: 11433.975 | AI86: 7809.375 | AJ86: 82879.3875 | AK86: 7437.5 | AL86: 371.875 | AM86: 7809.375
C87: 59765.16 | D87: 40045.44 | E87: GASTOS DE VIAJE | I87: 11056.51 | K87: 120 | M87: 5090 | N87: 168 | O87: 2800.47 | R87: 3817 | T87: 23051.98 | U87: 42047.71 | V87: -18995.73 | X87: 0 | Y87: 0 | Z87: 11609.3355 | AA87: 0 | AB87: 126 | AC87: 0 | AD87: 5344.5 | AE87: 176.4 | AF87: 2940.4935 | AG87: 0 | AH87: 0 | AI87: 4008.068925 | AJ87: 24204.79793 | AK87: 3817.2085 | AL87: 190.860425 | AM87: 4008.068925
C88: 0 | D88: 0 | E88: FLETES Y ACARREOS | T88: 0 | U88: 0 | V88: 0 | X88: 0 | Y88: 0 | Z88: 0 | AA88: 0 | AB88: 0 | AC88: 0 | AD88: 0 | AE88: 0 | AF88: 0 | AG88: 0 | AH88: 0 | AI88: 0 | AJ88: 0 | AK88: 0 | AL88: 0 | AM88: 0
C89: 60072.68 | D89: 16326.74 | E89: NO DEDUCIBLES. | H89: 300.46 | I89: 1714.07 | K89: 283.5 | L89: 369.64 | M89: 44 | N89: 500 | P89: =1.35-3412.5 -> -3411.15 | Q89: 385 | R89: 16641 | T89: 16826.52 | U89: 17129.9 | V89: -303.38 | X89: 0 | Y89: 315.483 | Z89: 1799.7735 | AA89: 0 | AB89: 297.675 | AC89: 388.122 | AD89: 46.2 | AE89: 525 | AF89: 0 | AG89: -3581.7075 | AH89: 404.25 | AI89: 17473.4784 | AJ89: 17668.2744 | AK89: 16641.408 | AL89: 832.0704 | AM89: 17473.4784
C90: 1699 | D90: 0 | E90: PUBLICIDAD | R90: 595 | T90: 595 | U90: 0 | V90: 595 | X90: 0 | Y90: 0 | Z90: 0 | AA90: 0 | AB90: 0 | AC90: 0 | AD90: 0 | AE90: 0 | AF90: 0 | AG90: 0 | AH90: 0 | AI90: 624.3825 | AJ90: 624.3825 | AK90: 594.65 | AL90: 29.7325 | AM90: 624.3825
C91: 0 | D91: 121.8 | E91: VARIOS | M91: 1194.8 | P91: 495 | T91: 1689.8 | U91: 127.89 | V91: 1561.91 | X91: 0 | Y91: 0 | Z91: 0 | AA91: 0 | AB91: 0 | AC91: 0 | AD91: 1254.54 | AE91: 0 | AF91: 0 | AG91: 519.75 | AH91: 0 | AI91: 0 | AJ91: 1774.29 | AK91: 0 | AL91: 0 | AM91: 0
C92: 15090 | D92: 15640 | E92: BOLETOS TAQUILLA | O92: 16000 | T92: 16000 | U92: 672 | V92: 15328 | X92: 0 | Y92: 0 | Z92: 0 | AA92: 0 | AB92: 0 | AC92: 0 | AD92: 0 | AE92: 0 | AF92: 16800 | AG92: 0 | AH92: 0 | AI92: 0 | AJ92: 16800 | AK92: 0 | AL92: 0 | AM92: 0
C93: 0 | D93: 0 | E93: GUIAS Y FOLLETOS | T93: 0 | U93: 0 | V93: 0 | X93: 0 | Y93: 0 | Z93: 0 | AA93: 0 | AB93: 0 | AC93: 0 | AD93: 0 | AE93: 0 | AF93: 0 | AG93: 0 | AH93: 0 | AI93: 0 | AJ93: 0 | AK93: 0 | AL93: 0 | AM93: 0
C94: 61.2 | D94: 183.98 | E94: RELACIONES PUBLICAS | T94: 0 | U94: 0 | V94: 0 | X94: 0 | Y94: 0 | Z94: 0 | AA94: 0 | AB94: 0 | AC94: 0 | AD94: 0 | AE94: 0 | AF94: 0 | AG94: 0 | AH94: 0 | AI94: 0 | AJ94: 0 | AK94: 0 | AL94: 0 | AM94: 0
C95: 0 | D95: 0 | E95: GASTOS P/OBTENCION DE DONATIVOS | I95: 2134.4 | T95: 2134.4 | U95: 193.18 | V95: 1941.22 | X95: 0 | Y95: 0 | Z95: 2241.12 | AA95: 0 | AB95: 0 | AC95: 0 | AD95: 0 | AE95: 0 | AF95: 0 | AG95: 0 | AH95: 0 | AI95: 0 | AJ95: 2241.12 | AK95: 0 | AL95: 0 | AM95: 0
C96: 19496.25 | D96: 31103.15 | E96: COMISIONES BANCARIAS. | R96: 2216 | T96: 2216 | U96: 28394.89 | V96: -26178.89 | X96: 0 | Y96: 0 | Z96: 0 | AA96: 0 | AB96: 0 | AC96: 0 | AD96: 0 | AE96: 0 | AF96: 0 | AG96: 0 | AH96: 0 | AI96: 2327.050425 | AJ96: 2327.050425 | AK96: 2216.2385 | AL96: 110.811925 | AM96: 2327.050425
C97: 0 | D97: 0 | E97: RENTA DE MOBILIARIO | T97: 0 | U97: 0 | V97: 0 | X97: 0 | Y97: 0 | Z97: 0 | AA97: 0 | AB97: 0 | AC97: 0 | AD97: 0 | AE97: 0 | AF97: 0 | AG97: 0 | AH97: 0 | AI97: 0 | AJ97: 0 | AK97: 0 | AL97: 0 | AM97: 0
C98: 220 | D98: 1273.36 | E98: LAVANDERIA | G98: 208.8 | H98: 240 | I98: 615 | J98: 320 | M98: 139.2 | N98: 194.4 | O98: 320 | P98: 104.4 | Q98: 1139.2 | R98: 32 | T98: 3313 | U98: 1085.03 | V98: 2227.97 | X98: 219.24 | Y98: 252 | Z98: 645.75 | AA98: 336 | AB98: 0 | AC98: 0 | AD98: 146.16 | AE98: 204.12 | AF98: 336 | AG98: 109.62 | AH98: 1196.16 | AI98: 33.075 | AJ98: 3478.125 | AK98: 31.5 | AL98: 1.575 | AM98: 33.075
C99: 12538 | D99: 0 | E99: DONATIVOS | O99: 112 | R99: 0 | T99: 112 | U99: 0 | V99: 112 | X99: 0 | Y99: 0 | Z99: 0 | AA99: 0 | AB99: 0 | AC99: 0 | AD99: 0 | AE99: 0 | AF99: 117.6 | AG99: 0 | AH99: 0 | AI99: 4607.715 | AJ99: 4725.315 | AK99: 4388.3 | AL99: 219.415 | AM99: 4607.715
C100: 10087 | D100: 20023.06 | E100: MULTAS Y RECARGOS | G100: 1075 | L100: 814 | O100: 764 | P100: 916 | Q100: 764 | T100: 4333 | U100: 2571.45 | V100: 1761.55 | X100: 1128.75 | Y100: 0 | Z100: 0 | AA100: 0 | AB100: 0 | AC100: 854.7 | AD100: 0 | AE100: 0 | AF100: 802.2 | AG100: 961.8 | AH100: 802.2 | AI100: 0 | AJ100: 4549.65 | AK100: 0 | AL100: 0 | AM100: 0
C101: 2970 | D101: 7250 | E101: SEGURIDAD | H101: 14240 | I101: 5900 | N101: 2198.28 | R101: 17598 | T101: 39936.28 | U101: 7612.5 | V101: 32323.78 | X101: =216076/12 -> 18006.33333 | Y101: =216076/12 -> 18006.33333 | Z101: 18006.33333 | AA101: 18006.33333 | AB101: 18006.33333 | AC101: 18006.33333 | AD101: 18006.33333 | AE101: 18006.33333 | AF101: 18006.33333 | AG101: 18006.33333 | AH101: 18006.33333 | AI101: 18006.33333 | AJ101: 216076 | AK101: 17598 | AL101: 879.9 | AM101: 18477.9
C102: 0 | D102: 6651.03 | E102: EQUIPO DE COMPUTO | G102: 17531.9 | T102: 17531.9 | U102: 3643.5 | V102: 13888.4 | X102: =+(G102*5%)+G102 -> 18408.495 | Y102: 0 | Z102: 0 | AA102: 0 | AB102: 0 | AC102: 0 | AD102: 0 | AE102: 0 | AF102: 0 | AG102: 0 | AH102: 0 | AI102: 0 | AJ102: 18408.495 | AK102: 0 | AL102: 0 | AM102: 0
C103: 0 | D103: 1932.08 | E103: GASTOS MEDICOS | T103: 0 | U103: 2028.68 | V103: -2028.68 | X103: 0 | Y103: 0 | Z103: 0 | AA103: 0 | AB103: 0 | AC103: 0 | AD103: 0 | AE103: 0 | AF103: 0 | AG103: 0 | AH103: 0 | AI103: 0 | AJ103: 0 | AK103: 0 | AL103: 0 | AM103: 0
E104: COSTO DE VENTAS | P104: 82878 | T104: 82878 | X104: 0 | Y104: 0 | Z104: 0 | AA104: 0 | AB104: 0 | AC104: 0 | AD104: 0 | AE104: 0 | AF104: 0 | AG104: 87021.9 | AH104: 0 | AI104: 0 | AJ104: 87021.9 | AL104: 0 | AM104: 0
C105: =881177.57-73768 -> 807409.57 | D105: =1502575.02-417416 -> 1085159.02 | E105: IVA ACREDITABLE | G105: =105039.28-36857 -> 68182.28 | H105: =225004.92-66400 -> 158604.92 | I105: =223204.47-70475 -> 152729.47 | J105: =150161.55-61534 -> 88627.55 | K105: =191771.52-37421 -> 154350.52 | L105: =296113.61-122394 -> 173719.61 | M105: =143295.54-49633 -> 93662.54 | N105: =159985.34-45996 -> 113989.34 | O105: =291348.34-197093 -> 94255.34 | P105: =346367.31-248587 -> 97780.31 | Q105: =345684.14-231294 -> 114390.14 | R105: 113569 | T105: 1423861.02 | U105: 1018718.66 | V105: 405142.36 | X105: 71591.394 | Y105: 166535.166 | Z105: 160365.9435 | AA105: 93058.9275 | AB105: 162068.046 | AC105: 182405.5905 | AD105: 98345.667 | AE105: 119688.807 | AF105: 98968.107 | AG105: 102669.3255 | AH105: 120109.647 | AI105: 119247.3298 | AJ105: 1495053.951 | AK105: 113568.8855 | AL105: 5678.444275 | AM105: 119247.3298
D106: 164115.6 | E106: GASTOS POR EVENTOS | G106: 35930 | H106: 30200 | P106: 47005.86 | Q106: 36050 | R106: 65555 | T106: 214740.86 | U106: 149104.2 | V106: 65636.66 | X106: 37726.5 | Y106: 31710 | Z106: 0 | AA106: 0 | AB106: 0 | AC106: 0 | AD106: 0 | AE106: 0 | AF106: 0 | AG106: 49356.153 | AH106: 37852.5 | AI106: 68832.3825 | AJ106: 225477.5355 | AK106: 65554.65 | AL106: 3277.7325 | AM106: 68832.3825
C107: =SUM(C63:C106) -> 10041655.91 | D107: =SUM(D63:D106) -> 11990478.95 | E107: TOTAL GASTOS DE OPERACIÓN | G107: =SUM(G63:G106) -> 895937.43 | H107: 899159.19 | I107: 1097633.866 | J107: 857994.57 | K107: 982986.46 | L107: 1295765.54 | M107: 1056663.87 | N107: 886772.6 | O107: 1143300.27 | P107: 1206675.52 | Q107: 1241835.77 | R107: 1624685 | S107: 0 | T107: 13189410.09 | U107: 11009616.14 | V107: 2096915.946 | X107: 1012289.102 | Y107: 986395.3435 | Z107: 1155572.301 | AA107: 944330.8265 | AB107: 1108263.263 | AC107: 1381179.379 | AD107: 1107713.367 | AE107: 998992.943 | AF107: 1166984.146 | AG107: 1369233.205 | AH107: 1329257.424 | AI107: 1799701.197 | AJ107: 14359912.5
T108: =+T105+T150 -> 2839248.295
E109: PROYECTOS ESPECIFICOS
C110: 530680.06 | D110: 582915.07 | E110: MUSEOGRAFIA | G110: 170296.92 | H110: 365830.1 | I110: 171515.22 | J110: 23076.92 | K110: 23076.92 | L110: 29364.45 | M110: 130368.72 | N110: 89685.07 | O110: 32237.07 | P110: 40185.92 | Q110: 134912.78 | R110: 83333 | T110: =SUM(G110:R110)+S110 -> 1293883.09 | U110: 916666.67 | V110: =+T110-U110 -> 377216.42 | X110: =300000/12 -> 25000 | Y110: =300000/12 -> 25000 | Z110: 25000 | AA110: 25000 | AB110: 25000 | AC110: 25000 | AD110: 25000 | AE110: 25000 | AF110: 25000 | AG110: 25000 | AH110: 25000 | AI110: 25000 | AJ110: =SUM(X110:AI110) -> 300000
C111: 692001.62 | D111: 934989.98 | E111: CURADURIA | G111: 21413.04 | H111: 61180.08 | I111: 88908.91 | J111: 14832 | K111: 529887.97 | L111: 84984.14 | M111: 57154.77 | N111: 591.23 | O111: 103990.88 | P111: 94599.4 | Q111: 55000 | R111: 62500 | T111: 1175042.42 | U111: 687500 | V111: 487542.42 | X111: =1952000/12 -> 162666.6667 | Y111: =1952000/12 -> 162666.6667 | Z111: 162666.6667 | AA111: 162666.6667 | AB111: 162666.6667 | AC111: 162666.6667 | AD111: 162666.6667 | AE111: 162666.6667 | AF111: 162666.6667 | AG111: 162666.6667 | AH111: 162666.6667 | AI111: 162666.6667 | AJ111: 1952000
C112: 84370 | D112: 207323.8 | E112: SERVICIOS EDUCATIVOS | G112: 1344.72 | H112: 5734.72 | I112: 326560.48 | J112: 233646.8 | K112: 312311.82 | L112: 405066.16 | M112: 42294.41 | N112: 766.16 | O112: 1205.56 | P112: 9962.84 | Q112: 7979.91 | R112: 60833 | T112: 1407706.58 | U112: 669166.67 | V112: 738539.91 | X112: =1035137/12 -> 86261.41667 | Y112: =1035137/12 -> 86261.41667 | Z112: 86261.41667 | AA112: 86261.41667 | AB112: 86261.41667 | AC112: 86261.41667 | AD112: 86261.41667 | AE112: 86261.41667 | AF112: 86261.41667 | AG112: 86261.41667 | AH112: 86261.41667 | AI112: 86261.41667 | AJ112: 1035137
C113: 2957.9 | D113: 3564.32 | E113: GASTOS BIBLIOTECA. | H113: 525.48 | O113: 18.7 | R113: 4167 | T113: 4711.18 | U113: 45833.33 | V113: -41122.15 | AJ113: 0
C114: 355240.39 | D114: 602300.77 | E114: GASTOS DE EXPOSICIONES | G114: 118737.93 | H114: 307629.06 | I114: 96351.8 | J114: 35905.16 | K114: 20407.49 | M114: =12500.2+8000 -> 20500.2 | N114: 307892.44 | O114: 31377.32 | R114: 50000 | T114: 988801.4 | U114: 550000 | V114: 438801.4 | AJ114: 0
C115: 258875.74 | D115: 447190.06 | E115: COMUNICACIÓN Y DIFUSION | G115: 14681.76 | H115: 37913.16 | I115: 63377.73 | J115: 28613.44 | K115: 40256.24 | L115: 77217.03 | M115: 66930.32 | N115: 66339.05 | O115: 74253.66 | P115: 49174.12 | Q115: 45234.01 | R115: 45833 | T115: 609823.52 | U115: 504166.67 | V115: 105656.85 | X115: =519000/12 -> 43250 | Y115: =519000/12 -> 43250 | Z115: 43250 | AA115: 43250 | AB115: 43250 | AC115: 43250 | AD115: 43250 | AE115: 43250 | AF115: 43250 | AG115: 43250 | AH115: 43250 | AI115: 43250 | AJ115: 519000
E116: DIRECCION | X116: =418000/12 -> 34833.33333 | Y116: =418000/12 -> 34833.33333 | Z116: 34833.33333 | AA116: 34833.33333 | AB116: 34833.33333 | AC116: 34833.33333 | AD116: 34833.33333 | AE116: 34833.33333 | AF116: 34833.33333 | AG116: 34833.33333 | AH116: 34833.33333 | AI116: 34833.33333 | AJ116: 418000
D117: 27760.05 | E117: GASTOS FINANCIEROS | G117: 3698.1 | H117: 4095.52 | I117: 4171.06 | J117: 4550 | K117: 3247.05 | L117: 2230.6 | M117: 1367.97 | N117: 1518.21 | O117: 1109.8 | P117: 1109.8 | Q117: 1122.54 | T117: =SUM(G117:R117)+S117 -> 28220.65 | V117: 28220.65 | AJ117: 0
C118: 2539667.09 | D118: =SUM(D110:D117) -> 2806044.05 | E118: TOTAL PROYECTOS ESPECIFICOS | G118: =SUM(G110:G117) -> 330172.47 | H118: 782908.12 | I118: 750885.2 | J118: 340624.32 | K118: 929187.49 | L118: 598862.38 | M118: 318616.39 | N118: 466792.16 | O118: 244192.99 | P118: 195032.08 | Q118: 244249.24 | R118: 306666 | S118: 0 | T118: 5508188.84 | U118: 3373333.34 | V118: 2134855.5 | X118: =SUM(X110:X117) -> 352011.4167 | Y118: 352011.4167 | Z118: 352011.4167 | AA118: 352011.4167 | AB118: 352011.4167 | AC118: 352011.4167 | AD118: 352011.4167 | AE118: 352011.4167 | AF118: 352011.4167 | AG118: 352011.4167 | AH118: 352011.4167 | AI118: 352011.4167 | AJ118: 4224137
C119: 13925299.27 | D119: =+D59+D107+D118 -> 15550328.75 | E119: TOTAL GASTOS | G119: =+G59+G107+G118 -> 1287490.75 | H119: 1732840.06 | I119: 1911981.576 | J119: 1248811.57 | K119: 1971138.46 | L119: 1945363.51 | M119: 1434575.17 | N119: 1403810.09 | O119: 1455142.71 | P119: 1462830.41 | Q119: 1545445.56 | R119: 2068463 | S119: 0 | T119: 19467892.87 | U119: 15065797.53 | V119: 4319217.336 | X119: =+X59+X107+X118 -> 1428257.809 | Y119: 1391225.546 | Z119: 1573726.751 | AA119: 1348551.955 | AB119: 1521694.813 | AC119: 1785970.815 | AD119: 1521491.838 | AE119: 1403269.354 | AF119: 1589534.883 | AG119: 1784930.971 | AH119: 1743104.817 | AI119: 2282036.444 | AJ119: 19373796
C121: =+C41-C119 -> -647550.716 | D121: =+D41-D119 -> 4796796.54 | E121: UTILIDAD DE OPERACIÓN | G121: =+G41-G119 -> -174403.35 | H121: 2809750.07 | I121: -754243.326 | J121: -600764.31 | K121: 374093.15 | L121: -4193.51 | M121: 852960.76 | N121: 163414.8 | O121: 1575095.56 | P121: 2114668.12 | Q121: 1614670.68 | R121: 500786 | S121: 0 | T121: 8471834.644 | U121: 25871994.15 | V121: -17317281.51 | X121: =+X41-X119 -> 223116.4642 | Y121: 251618.8277 | Z121: 64846.43237 | AA121: 303382.0582 | AB121: 96812.30017 | AC121: -161364.4818 | AD121: 95482.56567 | AE121: 227598.9992 | AF121: 23071.21017 | AG121: -158402.7873 | AH121: -10460.59333 | AI121: -655508.2603 | AJ121: 300192.7348
E123: CONSTRUCCION EDIFICIO RUSSEK (INCLUYE LOCALES COMERCIALES)
C124: 411735.64 | D124: 50.8 | E124: ADMINISTRACION DE OBRA | G124: 2669.84 | K124: 1454.06 | L124: 944.55 | M124: 1288.94 | N124: 2185.05 | O124: 133.2 | P124: 3250.85 | Q124: 1891.57 | R124: 36929 | T124: =SUM(G124:S124) -> 50747.06 | U124: 406215.33 | V124: =+T124-U124 -> -355468.27 | AJ124: =SUM(X124:AI124) -> 0
E125: TRABAJOS PRELIMINARES Y DEMOLICIONES | J125: 610 | K125: 9000 | L125: 46058 | M125: 77672.81 | N125: 14822.59 | O125: 67869.47 | P125: 2000 | Q125: 39000 | T125: 257032.87 | V125: 257032.87 | AJ125: 0
E126: ESTRUCTURA METALICA | J126: 21800.75 | L126: 151199.56 | N126: =71120+36165.3 -> 107285.3 | O126: =71120+15250 -> 86370 | P126: 139065.03 | R126: 66729 | T126: 572449.64 | U126: 734020.83 | V126: -161571.19 | AJ126: 0
E127: INGENIERIA ELECTRICA ILUMINACION | R127: 159419 | T127: 159419 | U127: 1753607.17 | V127: -1594188.17 | AJ127: 0
E128: INST. HIDRAULICA Y SANITARIA | H128: 4400 | J128: 25283.78 | K128: 25283.78 | L128: 33711.7 | M128: 9106.75 | P128: 25972 | Q128: 32053.22 | R128: 36240 | T128: 192051.23 | U128: 398644.58 | V128: -206593.35 | AJ128: 0
C129: 49316.99 | D129: 2562508.9 | E129: OBRA CIVIL | G129: 213133.83 | H129: 209630.46 | I129: 268710.82 | J129: =87995.1 -> 87995.1 | K129: 98093.24 | L129: 102372.44 | M129: 145916.45 | N129: 75662.62 | O129: 113624.09 | P129: 132959.54 | Q129: 157187.7 | R129: 423571 | T129: 2028857.29 | U129: 4659282.83 | V129: -2630425.54 | AJ129: 0
E130: ACABADOS | I130: 17664 | J130: 14983 | K130: 27274.68 | L130: 14735.92 | M130: 34818.73 | N130: 69127.43 | O130: 21060.5 | P130: 243108.29 | Q130: 183593.11 | T130: 626365.66 | V130: 626365.66 | AJ130: 0
E131: PINTURA | I131: 56810.7 | N131: 3393.21 | O131: 8260 | P131: 30141 | Q131: 34555.75 | T131: 133160.66 | V131: 133160.66 | AJ131: 0
D132: 28821.65 | E132: INSTALACIONES ELECTRONICAS | J132: 165702.87 | L132: 165702.87 | O132: 448873.43 | P132: 375194.03 | R132: 107122 | T132: 1262595.2 | U132: 1178344.75 | V132: 84250.45 | AJ132: 0
E133: CARPINTERIA | H133: 65000 | I133: 42000 | J133: 65000 | K133: 61000 | M133: 41400 | N133: 15000 | O133: =123500+93200 -> 216700 | P133: =494650+18800 -> 513450 | Q133: 470680 | R133: 294288 | T133: 1784518 | U133: 3237165.25 | V133: -1452647.25 | AJ133: 0
E134: VIDRIO Y CRISTAL | I134: 22606 | O134: 71120 | P134: 71120 | Q134: 186000 | R134: 111272 | T134: 462118 | U134: 1223991.08 | V134: -761873.08 | AJ134: 0
D135: =7000+13000+141728.33 -> 161728.33 | E135: MONTACARGAS, ELEVADOR Y AIRE ACONDICIONADO | G135: 13750 | H135: 79545.95 | R135: 166948 | T135: 260243.95 | U135: 1836428.92 | V135: -1576184.97 | AJ135: 0
E136: FACHADA | R136: 70622 | T136: 70622 | U136: 776836.5 | V136: -706214.5 | X136: 983051.59 | AJ136: 983051.59
E137: AMPLIACION SOTANO | R137: 75000 | T137: 75000 | U137: 825000 | V137: -750000 | X137: 1044000 | AJ137: 1044000
D138: 5850 | E138: HERRERIA | I138: 14800 | K138: 11776 | L138: 19057.27 | O138: 5000 | P138: 17410 | Q138: 46522.5 | T138: 114565.77 | V138: 114565.77 | AJ138: 0
D139: 138960.44 | E139: INST. ELECT-SANIT-PLUVIAL | G139: 800 | J139: 3213.61 | L139: 3500 | Q139: =32053.22+92071.6 -> 124124.82 | T139: 131638.43 | V139: 131638.43 | AJ139: 0
E140: AIRE ACONDICIONADO | L140: 34862 | T140: 34862 | V140: 34862 | AJ140: 0
E141: SIST. CONTROL DE ACCESOS | L141: 33883.85 | O141: 33883.85 | T141: 67767.7 | V141: 67767.7 | AJ141: 0
E142: SIST. DE RED VOZ Y DATOS | L142: 33467.75 | O142: 33467.75 | T142: 66935.5 | V142: 66935.5 | AJ142: 0
E143: SIST. DE CCTV | L143: 57237.88 | O143: 57237.88 | T143: 114475.76 | V143: 114475.76 | AJ143: 0
E144: SIST. DE INTRUSION | L144: 18892.77 | O144: 18892.77 | T144: 37785.54 | V144: 37785.54 | AJ144: 0
E145: SIST. CONTROL DE ALUMBRADO | L145: 10042.37 | O145: 10042.37 | T145: 20084.74 | V145: 20084.74 | AJ145: 0
E146: SIST. DETECCION DE INCENDIOS | L146: 39295.86 | O146: 39295.86 | T146: 78591.72 | V146: 78591.72 | AJ146: 0
D147: 48365.25 | E147: PUENTES | H147: 56425.95 | I147: 17879.26 | Q147: 169977.54 | T147: 244282.75 | V147: 244282.75 | AJ147: 0
T148: 0 | AJ148: 0
C149: =SUM(C124:C148) -> 461052.63 | D149: =SUM(D124:D148) -> 2946285.37 | E149: SUBTOTAL | F149: =SUM(F126:F148) -> 0 | G149: =SUM(G124:G148) -> 230353.67 | H149: 415002.36 | I149: 440470.78 | J149: 384589.11 | K149: 233881.76 | L149: 764964.79 | M149: 310203.68 | N149: 287476.2 | O149: 1231831.17 | P149: 1553670.74 | Q149: 1445586.21 | R149: 1548140 | S149: 0 | T149: =SUM(T124:T148) -> 8846170.47 | U149: =SUM(U124:U148) -> 17029537.24 | V149: =SUM(V124:V148) -> -8183366.77 | X149: =SUM(X124:X148) -> 2027051.59 | Y149: 0 | Z149: 0 | AA149: 0 | AB149: 0 | AC149: 0 | AD149: 0 | AE149: 0 | AF149: 0 | AG149: 0 | AH149: 0 | AI149: 0 | AJ149: 2027051.59
C150: =+C149*0.16 -> 73768.4208 | D150: =+D149*0.16 -> 471405.6592 | E150: 16% DE IVA | G150: =+G149*0.16 -> 36856.5872 | H150: 66400.3776 | I150: 70475.3248 | J150: 61534.2576 | K150: 37421.0816 | L150: 122394.3664 | M150: 49632.5888 | N150: 45996.192 | O150: 197092.9872 | P150: 248587.3184 | Q150: 231293.7936 | R150: 247702.4 | S150: 0 | T150: =+T149*0.16 -> 1415387.275 | U150: =+U149*0.16 -> 2724725.958 | V150: =+T150-U150 -> -1309338.683 | X150: =+X149*0.16 -> 324328.2544 | Y150: 0 | Z150: 0 | AA150: 0 | AB150: 0 | AC150: 0 | AD150: 0 | AE150: 0 | AF150: 0 | AG150: 0 | AH150: 0 | AI150: 0 | AJ150: 324328.2544
C151: =+C149+C150 -> 534821.0508 | D151: =+D149+D150 -> 3417691.029 | E151: TOTAL | G151: =+G149+G150 -> 267210.2572 | H151: 481402.7376 | I151: 510946.1048 | J151: 446123.3676 | K151: 271302.8416 | L151: 887359.1564 | M151: 359836.2688 | N151: 333472.392 | O151: 1428924.157 | P151: 1802258.058 | Q151: 1676880.004 | R151: 1795842.4 | S151: 0 | T151: =+T149+T150 -> 10261557.75 | U151: =+U149+U150 -> 19754263.2 | V151: =+V149+V150 -> -9492705.453 | X151: =+X149+X150 -> 2351379.844 | Y151: 0 | Z151: 0 | AA151: 0 | AB151: 0 | AC151: 0 | AD151: 0 | AE151: 0 | AF151: 0 | AG151: 0 | AH151: 0 | AI151: 0 | AJ151: 2351379.844
E153: MUSEOGRAFIA | L153: =+L149-764964.79 -> 0
E154: MUSEOGRAFIA DE LOS DOS NIVELES | T154: 0 | U154: 2750000 | V154: =+T154-U154 -> -2750000
E155: 16% DE IVA | G155: =+G154*0.16 -> 0 | H155: 0 | I155: 0 | J155: 0 | K155: 0 | L155: 0 | T155: =+T154*0.16 -> 0 | U155: =+U154*0.16 -> 440000 | V155: =+T155-U155 -> -440000 | X155: =+X154*0.16 -> 0 | Y155: 0 | Z155: 0 | AA155: 0 | AB155: 0 | AC155: 0 | AD155: 0 | AE155: 0 | AF155: 0 | AG155: 0 | AH155: 0 | AI155: 0 | AJ155: 0
C156: =+C154+C155 -> 0 | D156: =+D154+D155 -> 0 | E156: TOTAL | G156: =+G154+G155 -> 0 | H156: =+H154+H155 -> 0 | I156: 0 | J156: 0 | K156: 0 | L156: 0 | M156: 0 | N156: 0 | O156: 0 | P156: 0 | Q156: 0 | R156: 0 | S156: 0 | T156: 0 | U156: =+U154+U155 -> 3190000 | V156: =+T156-U156 -> -3190000 | X156: =+X154+X155 -> 0 | Y156: =+Y154+Y155 -> 0 | Z156: 0 | AA156: 0 | AB156: 0 | AC156: 0 | AD156: 0 | AE156: 0 | AF156: 0 | AG156: 0 | AH156: 0 | AI156: 0 | AJ156: 0
C157: =+C151+C156 -> 534821.0508 | D157: =+D151+D156 -> 3417691.029 | E157: TOTAL CONSTRUCCION EDIF. RUSSEK Y MUSEOGRAFIA INCLUYENDO IVA | G157: =+G151+G156 -> 267210.2572 | H157: 481402.7376 | I157: 510946.1048 | J157: 446123.3676 | K157: 271302.8416 | L157: 887359.1564 | M157: 359836.2688 | N157: 333472.392 | O157: 1428924.157 | P157: 1802258.058 | Q157: 1676880.004 | R157: 1795842.4 | S157: 0 | T157: =+T151+T156 -> 10261557.75 | U157: =+U151+U156 -> 22944263.2 | V157: =+V151+V156 -> -12682705.45 | X157: =+X151+X156 -> 2351379.844 | Y157: 0 | Z157: 0 | AA157: 0 | AB157: 0 | AC157: 0 | AD157: 0 | AE157: 0 | AF157: 0 | AG157: 0 | AH157: 0 | AI157: 0 | AJ157: 2351379.844
C159: =+C121-C157 -> -1182371.767 | D159: =+D121-D157 -> 1379105.511 | E159: REMANENTE PARA USARSE EN GASTOS DE OPERACIÓN 2012 | G159: =+G121-G157 -> -441613.6072 | H159: 2328347.332 | I159: -1265189.431 | J159: -1046887.678 | K159: 102790.3084 | L159: -891552.6664 | M159: 493124.4912 | N159: -170057.592 | O159: 146171.4028 | P159: 312410.0616 | Q159: -62209.3236 | R159: -1295056.4 | S159: 0 | T159: -1789723.101 | U159: 2927730.952 | V159: =+V121-V157 -> -4634576.053 | X159: =+X121-X157 -> -2128263.38 | Y159: 251618.8277 | Z159: 64846.43237 | AA159: 303382.0582 | AB159: 96812.30017 | AC159: -161364.4818 | AD159: 95482.56567 | AE159: 227598.9992 | AF159: 23071.21017 | AG159: -158402.7873 | AH159: -10460.59333 | AI159: -655508.2603 | AJ159: -2051187.11
D161: 4488678.26 | E161: DEPRECIACION | G161: 375881.08 | H161: 375881.08 | I161: 375881.08 | J161: 375881.08 | K161: 375881.08 | L161: 375881.08 | M161: 375881.08 | N161: 375881.08 | O161: 375881.08 | P161: 375881.08 | Q161: 375881.08 | R161: 375881.08 | T161: =SUM(G161:S161) -> 4510572.96 | U161: =SUM(H161:Q161) -> 3758810.8
T163: =+T121-T150-T161 -> 2545874.409

Sheet listado empleados (hidden)
B2: Plantilla de Empleados al 31 de diciembre de 2011
B3: No. | D3: NOMBBRE (apellido paterno, materno y nombre) | E3: R.F.C. | F3: FECHA DE NACIMIENTO (dd-mmm-aaaa) | G3: FECHA DE INGRESO (dd-mmm-aaaa) | H3: SUELDO MENSUAL BASE | I3: SUELDO MENSUAL INTEGRADO | J3: No. IMSS | K3: NOMBRE DEL PUESTO | M3: 0.054 | N3: SD | O3: semana | P3: quincena | Q3: vacaciones | R3: SDI | S3: CUOTA MENSUAL | T3: CUOTA BIMESTRE
A4: 14 | B4: 1 | C4: S | D4: AGUIRRE GARAY ABBY | E4: AUGA7908285S2 | F4: 1979-08-28 | G4: 2007-11-25 | H4: 21697.696 | I4: 22678.43186 | J4: 32057902622 | K4: ARQUITECTURA | L4: 749.43 | M4: =+L4*$M$3 -> 40.46922 | N4: =+L4+M4 -> 789.89922 | O4: =+N4*7 -> 5529.29454 | Q4: =+N4*A4 -> 11058.58908 | R4: =+N4*1.0452 -> 825.6026647 | S4: 1828.52 | T4: 5496.56
A5: 14 | B5: 2 | C5: S | D5: ALBERTO VELAZQUEZ JOSE DE LA LUZ | E5: AEVL7702246E4 | F5: 1977-02-24 | G5: 2007-06-28 | H5: 8234.752 | I5: 8606.96279 | J5: 32947703719 | K5: SEGURIDAD | L5: 284.42 | M5: =+L5*$M$3 -> 15.35868 | N5: =+L5+M5 -> 299.77868 | O5: =+N5*7 -> 2098.45076 | Q5: =+N5*A5 -> 4196.90152 | R5: =+N5*1.0452 -> 313.3286763 | S5: 880.1 | T5: 2086.04
A6: 8 | B6: 3 | C6: S | D6: ARREOLA CARRASCO YOLANDA | E6: AECY690503RSA | F6: 1969-05-03 | G6: 2010-03-22 | H6: 3969.328 | I6: 4148.741626 | J6: 32056901237 | K6: LIMPIEZA | L6: 137.1 | M6: 7.4034 | N6: 144.5034 | O6: 1011.5238 | Q6: 1156.0272 | R6: 151.0349537 | S6: 591.73 | T6: 1005.51
A7: 10 | B7: 4 | C7: S | D7: BARRIOS MARTINEZ ERNESTO | E7: BAME740513 | F7: 1974-05-13 | G7: 2009-11-10 | H7: 8234.752 | I7: 8606.96279 | J7: 32907323938 | K7: SEGURIDAD | L7: 284.42 | M7: 15.35868 | N7: 299.77868 | O7: 2098.45076 | Q7: 2997.7868 | R7: 313.3286763 | S7: 880.1 | T7: 2086
A8: 14 | B8: 5 | C8: S | D8: CAMARILLO RIOS ERIKA | E8: CARE820917FQ3 | F8: 1982-09-17 | G8: 2006-07-30 | H8: 3969.328 | I8: 4148.741626 | J8: 31988014010 | K8: LIMPIEZA | L8: 137.1 | M8: 7.4034 | N8: 144.5034 | O8: 1011.5238 | Q8: 2023.0476 | R8: 151.0349537 | S8: 591.73 | T8: 1006
A9: 14 | B9: 6 | C9: S | D9: CARREON SANCHEZ AIDA ARACELI | E9: CASA740830VAA | F9: 1974-08-30 | G9: 2006-08-13 | H9: 4513.488 | I9: 4717.497658 | J9: 60907425817 | K9: LIMPIEZA | L9: 155.89 | M9: 8.41806 | N9: 164.30806 | O9: 1150.15642 | Q9: 2300.31284 | R9: 171.7347843 | S9: 623.04 | T9: 1143.37
A10: 14 | B10: 7 | C10: S | D10: ESPARZA MARTINEZ ROSA MARIA | E10: AEMR560319 | F10: 1956-03-19 | G10: 2007-04-09 | H10: 3969.328 | I10: 4148.741626 | J10: 32835601348 | K10: LIMPIEZA | L10: 137.1 | M10: 7.4034 | N10: 144.5034 | O10: 1011.5238 | Q10: 2023.0476 | R10: 151.0349537 | S10: 591.73 | T10: 1006
A11: 10 | B11: 8 | C11: S | D11: ESPINO MAGALLANES CESAR IGNACIO | E11: EIMC840731ENA | F11: 1984-07-31 | G11: 2008-07-19 | H11: 5954.144 | I11: 6223.271309 | J11: 32058405567 | K11: ESTACIONAMIENTO | L11: 284.42 | M11: 15.35868 | N11: 299.77868 | O11: 2098.45076 | Q11: 2997.7868 | R11: 313.3286763 | S11: 720.72 | T11: 1508.34
A12: 14 | B12: 9 | C12: S | D12: GARCIA GARCIA ROSA ELIA | E12: GAGR5809039E9 | F12: 1958-09-03 | G12: 2006-08-23 | H12: 3969.328 | I12: 4148.741626 | J12: 32935802010 | K12: LIMPIEZA | L12: 193.39 | M12: 10.44306 | N12: 203.83306 | O12: 1426.83142 | Q12: 2853.66284 | R12: 213.0463143 | S12: 591.73 | T12: 1006
A13: 14 | B13: 10 | C13: S | D13: GONZALEZ GONZALEZ OMAR WILBERTO | E13: GOGO730617GC4 | F13: 1973-06-17 | G13: 2008-07-12 | H13: 8234.752 | I13: 8606.96279 | J13: 60907314482 | K13: SEGURIDAD | L13: 284.42 | M13: 15.35868 | N13: 299.77868 | O13: 2098.45076 | Q13: 4196.90152 | R13: 313.3286763 | S13: 880.1 | T13: 2086
A14: 14 | B14: 11 | C14: S | D14: GONZALEZ LEAL FORTINO | E14: GOLF5908167X5 | F14: 1959-08-16 | G14: 2006-04-24 | H14: 10715.696 | I14: 11200.04546 | J14: 43775953177 | K14: SEGURIDAD | L14: 370.11 | M14: 19.98594 | N14: 390.09594 | O14: 2730.67158 | Q14: 5461.34316 | R14: 407.7282765 | S14: 1053.5 | T14: 2714.55
A15: 14 | B15: 12 | C15: S | D15: GONZALEZ RAMOS BENJAMIN | E15: GORB710317474 | F15: 1971-03-17 | G15: 2007-03-24 | H15: 8234.752 | I15: 8606.96279 | J15: 32907120870 | K15: SEGURIDAD | L15: 284.42 | M15: 15.35868 | N15: 299.77868 | O15: 2098.45076 | Q15: 4196.90152 | R15: 313.3286763 | S15: 880.1 | T15: 2086
A16: 14 | B16: 13 | C16: S | D16: HERNANDEZ PICHARDO JUAN ANTONIO | E16: HEPJ680901934 | F16: 1968-09-01 | G16: 2006-07-09 | H16: 8234.752 | I16: 8606.96279 | J16: 31866811529 | K16: SEGURIDAD | L16: 284.42 | M16: 15.35868 | N16: 299.77868 | O16: 2098.45076 | Q16: 4196.90152 | R16: 313.3286763 | S16: 880.1 | T16: 2086
A17: 14 | B17: 14 | C17: S | D17: HUITRADO SANCHEZ JUAN CARLOS | E17: HUSJ780523GP5 | F17: 1978-05-23 | G17: 2006-06-11 | H17: 10715.696 | I17: 11200.04546 | J17: 32967815021 | K17: SEGURIDAD | L17: 370.11 | M17: 19.98594 | N17: 390.09594 | O17: 2730.67158 | Q17: 5461.34316 | R17: 407.7282765 | S17: 1053.5 | T17: 2715
A18: 14 | B18: 15 | C18: S | D18: LEIJA ESPINOZA JOSE ANGEL | E18: LEEA530115Q20 | F18: 1953-01-15 | G18: 2006-10-16 | H18: 4513.488 | I18: 4717.497658 | J18: 31735300449 | K18: CHOFER | L18: 155.89 | M18: 8.41806 | N18: 164.30806 | O18: 1150.15642 | Q18: 2300.31284 | R18: 171.7347843 | S18: 623.04 | T18: 1143
A19: 14 | B19: 16 | C19: S | D19: LOPEZ FLORES JORGE ULISES | E19: LOFJ781115K96 | F19: 1978-11-15 | G19: 2006-07-09 | H19: 8234.752 | I19: 8606.96279 | J19: 32947814409 | K19: SEGURIDAD | L19: 284.42 | M19: 15.35868 | N19: 299.77868 | O19: 2098.45076 | Q19: 4196.90152 | R19: 313.3286763 | S19: 880.1 | T19: 2086
A20: 14 | B20: 17 | C20: S | D20: MEDINA SALAZAR MARIA DEL ROSARIO | E20: MESR660807QX6 | F20: 1966-08-07 | G20: 2006-03-09 | H20: 9281.12 | I20: 9700.626624 | J20: 32826605357 | K20: ASISTENTE DIRECCION | L20: 366.97 | M20: 19.81638 | N20: 386.78638 | O20: 2707.50466 | Q20: 5415.00932 | R20: 404.2691244 | S20: 953.22 | T20: 2351.22
A21: 14 | B21: 18 | C21: S | D21: RIOS ULLOA ZENON | E21: RIUZ740709467 | F21: 1940-07-09 | G21: 2006-08-23 | H21: 8234.752 | I21: 8606.96279 | J21: 31907419183 | K21: SEGURIDAD | L21: 284.42 | M21: 15.35868 | N21: 299.77868 | O21: 2098.45076 | Q21: 4196.90152 | R21: 313.3286763 | S21: 880.1 | T21: 2086
A22: 14 | B22: 19 | C22: S | D22: RODRIGUEZ MARQUEZ SERGIO ARTURO | E22: ROMS7711239R8 | F22: 1977-11-23 | G22: 2006-12-01 | H22: 9417.616 | I22: 9843.292243 | J22: 32017712384 | K22: ESTACIONAMIENTO | L22: 325.28 | M22: 17.56512 | N22: 342.84512 | O22: 2399.91584 | Q22: 4799.83168 | R22: 358.3417194 | S22: 962.78 | T22: 2385.72
A23: 14 | B23: 20 | C23: S | D23: SANCHEZ CHAVEZ MARCELA | E23: SACM7109307SA | F23: 1971-09-30 | G23: 2006-08-13 | H23: 3969.328 | I23: 4148.741626 | J23: 32067101868 | K23: LIMPIEZA | L23: 137.1 | M23: 7.4034 | N23: 144.5034 | O23: 1011.5238 | Q23: 2023.0476 | R23: 151.0349537 | S23: 591.73 | T23: 1006
A24: 14 | B24: 21 | C24: S | D24: SIFUENTES RAMOS JAVIER | E24: SIRJ650830LP1 | F24: 1965-08-30 | G24: 2007-01-21 | H24: 8234.752 | I24: 8606.96279 | J24: 32866504080 | K24: SEGURIDAD | L24: 284.42 | M24: 15.35868 | N24: 299.77868 | O24: 2098.45076 | Q24: 4196.90152 | R24: 313.3286763 | S24: 880.1 | T24: 2086
A25: 14 | B25: 22 | C25: S | D25: SIFUENTES RANGEL ROCIO DEL SOCORRO | E25: SIRR760725337 | F25: 1976-07-25 | G25: 2006-07-30 | H25: 5599.072 | I25: 5852.150054 | J25: 33907480462 | K25: SERVICIOS EDUCATIVOS | L25: 193.39 | M25: 10.44306 | N25: 203.83306 | O25: 1426.83142 | Q25: 2853.66284 | R25: 213.0463143 | S25: 695.9 | T25: 1418
A26: 14 | B26: 23 | C26: S | D26: SONORA MIRANDA FELIPE DE JESUS | E26: SOMF660828ES3 | F26: 1966-08-28 | G26: 2006-06-11 | H26: 8234.752 | I26: 8606.96279 | J26: 32836604622 | K26: SEGURIDAD | L26: 284.42 | M26: 15.35868 | N26: 299.77868 | O26: 2098.45076 | Q26: 4196.90152 | R26: 313.3286763 | S26: 880.1 | T26: 2086
A27: 14 | B27: 24 | C27: S | D27: VENEGAS VALENZUELA VIRGINIA | E27: VEVV800816S39 | F27: 1980-08-16 | G27: 2006-09-10 | H27: 6206.16 | I27: 6486.678432 | J27: 60978010308 | K27: TAQUILLA | L27: 214.36 | M27: 11.57544 | N27: 225.93544 | O27: 1581.54808 | Q27: 3163.09616 | R27: 236.1477219 | S27: 738.33 | T27: 1572.16
A28: 6 | B28: 25 | C28: S | D28: POR CONTRATAR | L28: 284.42 | M28: 15.35868 | N28: 299.77868 | O28: 2098.45076 | Q28: 1798.67208
A29: 6 | B29: 26 | C29: S | D29: POR CONTRATAR | L29: 284.42 | M29: 15.35868 | N29: 299.77868 | O29: 2098.45076 | Q29: 1798.67208
O30: =SUM(O4:O29) -> 52061.08628 | Q30: 0 | R30: 0 | S30: =SUM(S4:S29) -> 20132.1 | T30: =SUM(T4:T29) -> 46251.47
Q31: 0 | R31: 0
A32: 14 | B32: 27 | D32: ANDION ELIAS FLAVIA JULIA | E32: AIEF8106218F2 | F32: 1981-06-21 | G32: 2006-09-01 | H32: 11178.384 | I32: 11683.64696 | J32: 32058111447 | K32: SERVICIOS EDUCATIVOS | L32: 386.1 | M32: =+L32*$M$3 -> 20.8494 | N32: =+L32+M32 -> 406.9494 | P32: =+N32*15 -> 6104.241 | Q32: 5697.2916 | R32: 425.3435129 | S32: 1085.82 | T32: 2831.71
A33: 14 | B33: 28 | D33: DE LA PE#A CORTES LILIA IRMA CONCEPCION | E33: PECL550812M90 | F33: 1955-08-12 | G33: 2005-08-01 | H33: 22394.16 | I33: 23406.37603 | J33: 32985501991 | K33: BIBLIOTECA | L33: 773.48 | M33: 41.76792 | N33: 815.24792 | P33: =+N33*15 -> 12228.7188 | Q33: 11413.47088 | R33: 852.097126 | S33: 1869.67 | T33: 5672.93
A34: 14 | B34: 29 | D34: FAVILA GALLEGOS FABIOLA | E34: FAGF8204144S3 | F34: 1982-04-14 | G34: 2005-08-01 | H34: 18832.8 | I34: 19684.04256 | J34: 53018247907 | K34: SERVICIOS EDUCATIVOS | L34: 650.48 | M34: 35.12592 | N34: 685.60592 | P34: 10284.0888 | Q34: 9598.48288 | R34: 716.5953076 | S34: 1620.78 | T34: 4770.81
A35: 14 | B35: 30 | D35: FERNANDEZ ESTRADA MARIA ISABEL | E35: FEEI790923G79 | F35: 1979-09-23 | G35: 2006-09-06 | H35: 18066.72 | I35: 18883.33574 | J35: 32007901476 | K35: COMUNICACIÓN Y DIFUSION | L35: 624.02 | M35: 33.69708 | N35: 657.71708 | P35: 9865.7562 | Q35: 9208.03912 | R35: 687.445892 | S35: 1567.25 | T35: 4576.75
A36: 14 | B36: 32 | D36: GALINDO MU#OZ MARCELA | E36: GAMM840304 | F36: 1984-03-04 | G36: 2010-06-05 | H36: 6206.16 | I36: 6486.678432 | J36: 31038410382 | K36: BIBLIOTECA | L36: 214.36 | M36: 11.57544 | N36: 225.93544 | P36: 3389.0316 | Q36: 3163.09616 | R36: 236.1477219 | S36: 738.33 | T36: 1572.16
A37: 14 | B37: 33 | D37: GALLEGOS CARRION ADRIANA | E37: GACA750121T24 | F37: 1975-01-21 | G37: 2005-08-01 | H37: 25020.72 | I37: 26151.65654 | J37: 45937550353 | K37: CURADORA | L37: 864.2 | M37: 46.6668 | N37: 910.8668 | P37: 13663.002 | Q37: 12752.1352 | R37: 952.0379794 | S37: 2053.25 | T37: 6338.36
A38: 14 | B38: 34 | D38: GARCIA CARDENAS MANUEL | E38: GACM770904QFA | F38: 1977-09-04 | G38: 2006-07-26 | H38: 21543.264 | I38: 22517.01953 | J38: 32967718084 | K38: SEGURIDAD | L38: 744.09 | M38: 40.18086 | N38: 784.27086 | P38: 11764.0629 | Q38: 10979.79204 | R38: 819.7199029 | S38: 1810.21 | T38: 5457.41
A39: 14 | B39: 35 | D39: GONZALEZ LUCIO JORGE | E39: GOLJ810105RH2 | F39: 1981-01-05 | G39: 2005-12-01 | H39: 14374.64 | I39: 15024.37373 | J39: 32058112130 | K39: RESTAURADOR | L39: 536.21 | M39: 28.95534 | N39: 565.16534 | P39: 8477.4801 | Q39: 7912.31476 | R39: 590.7108134 | S39: 1309.2 | T39: 3641.42
A40: 14 | B40: 36 | D40: GONZALEZ QUIROZ AGUSTINA | E40: GOQA520302HT8 | F40: 1952-03-02 | G40: 2006-09-07 | H40: 3928.896 | I40: 4106.482099 | J40: 32065200860 | K40: LIMPIEZA | L40: 135.7 | M40: 7.3278 | N40: 143.0278 | P40: 2145.417 | Q40: 2002.3892 | R40: 149.4926566 | S40: 589.41 | T40: 995.31
A41: 14 | B41: 37 | D41: MARTINEZ CALDERON MIGUEL ANGEL | E41: MACM841117498 | F41: 1984-11-17 | G41: 2009-09-05 | H41: 8368.816 | I41: 8747.086483 | J41: 32078410373 | K41: CURADURIA | L41: 332.41 | M41: 17.95014 | N41: 350.36014 | P41: 5255.4021 | Q41: 4905.04196 | R41: 366.1964183 | S41: 889.47 | T41: 2120.01
A42: 10 | B42: 38 | D42: OLHAGARAY AYALA CAROLINA | E42: OAAC870504J66 | F42: 1987-05-04 | G42: 2008-08-01 | H42: 9436.16 | I42: 9862.674432 | J42: 32088721793 | K42: SERVICIOS EDUCATIVOS | L42: 325.92 | M42: 17.59968 | N42: 343.51968 | P42: 5152.7952 | Q42: 3435.1968 | R42: 359.0467695 | S42: 964.07 | T42: 2390.4
A43: 14 | B43: 39 | D43: OLIVARES GARCIA JOSE DE JESUS | E43: OIGJ5009084P9 | F43: 1950-09-08 | G43: 2005-08-01 | H43: 9218.192 | I43: 9634.854278 | J43: 43795004712 | K43: MENSAJERO | L43: =+H43/30.4 -> 303.23 | M43: 16.37442 | N43: 319.60442 | P43: 4794.0663 | Q43: 4474.46188 | R43: 334.0505398 | S43: 948.83 | T43: 2335.18
A44: 14 | B44: 40 | D44: RAMOS SALAS ROSARIO DEL CARMEN | E44: RASR490914DW4 | F44: 1949-09-14 | G44: 2006-10-16 | H44: 44953.696 | I44: 46985.60306 | J44: 32694927545 | K44: DIRECTOR | L44: 1552.68 | M44: 83.84472 | N44: 1636.52472 | Q44: 22911.34608 | R44: 1710.495637 | S44: 3446.31 | T44: 11387.8 | U44: =+N44*14 -> 22911.34608
A45: 14 | B45: 41 | D45: RANGEL DUQUE IVAN BALAM | E45: RADI8010299E3 | F45: 1980-10-29 | G45: 2006-08-07 | H45: 16755.872 | I45: 17513.23741 | J45: 31068003537 | K45: MANTENIMIENTO | L45: 578.74 | M45: 31.25196 | N45: 609.99196 | P45: 9149.8794 | Q45: 8539.88744 | R45: 637.5635966 | S45: 1475.65 | T45: 4244.63
A46: 14 | B46: 42 | D46: SAENZ PE#A FRANCISCO CARLOS | E46: SAPF780313366 | F46: 1978-03-13 | G46: 2006-09-01 | H46: 9238.56 | I46: 9656.142912 | J46: 31977844864 | K46: SERVICIOS EDUCATIVOS | L46: 386.1 | M46: 20.8494 | N46: 406.9494 | P46: 6104.241 | Q46: 5697.2916 | R46: 425.3435129 | S46: 950.26 | T46: 2340.35
A47: 10 | B47: 43 | D47: TLAPANCO ROMAN ROSALINDA | E47: TARR860504M36 | F47: 1986-05-04 | G47: 2007-08-16 | H47: 8867.984 | I47: 9268.816877 | J47: 32058648497 | K47: SERVICIOS EDUCATIVOS | L47: 306.3 | M47: 16.5402 | N47: 322.8402 | P47: 4842.603 | Q47: 3228.402 | R47: 337.432577 | S47: 924.36 | T47: 2246.47
A48: 14 | B48: 44 | D48: TORRES BETANCOURT MARIANA | E48: TOBM810510FC6 | F48: 1981-05-10 | G48: 2005-08-01 | H48: 12366.112 | I48: 12925.06026 | J48: 32058110571 | K48: SERVICIOS EDUCATIVOS | L48: 427.12 | M48: 23.06448 | N48: 450.18448 | P48: 6752.7672 | Q48: 6302.58272 | R48: 470.5328185 | S48: 1168.84 | T48: 3132.65
D49: SUMAS | H49: =SUM(H4:H48) -> 443324.72 | I49: =SUM(I4:I48) -> 463362.9973 | N49: =SUM(N4:N48) -> 17072.0596 | P49: =SUM(P32:P48) -> 119973.5526 | Q49: =SUM(Q4:Q48) -> 228281.6862 | R49: =SUM(R32:R48) -> 10070.25278 | S49: =SUM(S32:S48) -> 23411.71 | T49: =SUM(T32:T48) -> 66054.35
P50: =+P49*2 -> 239947.1052 | Q50: =+Q49*5% -> 11414.08431 | S50: =+S30+S49-S44 -> 40097.5 | T50: =+T30+T49-T44 -> 100918.02
N51: =+N49-N44 -> 15435.53488 | Q51: =+Q49+Q50 -> 239695.7705 | T51: =+S50+T50 -> 141015.52
N52: =+N51*30 -> 463066.0464

Sheet PRESUPUESTO 2010 (hidden)
C1: Centro Cultural Arocena Laguna, AC
D3: ESTADO DE ACTIVIDADES
D4: POR EL PERIODO DEL 1o DE ENERO AL 31 DE DICIEMBRE DE 2010
U5: 4 | V5: 4 | W5: 5 | X5: 4 | Y5: 4 | Z5: 5 | AA5: 4 | AB5: 4 | AC5: 5 | AD5: 4 | AE5: 4 | AF5: 5
C7: REAL ACUM | R7: REAL ACUM | S7: PRES ACUM | AG7: PRES ACUM
C8: DIC 2009 | D8: CONCEPTO | F8: 2010-01-01 | G8: 2010-02-01 | H8: 2010-03-01 | I8: 2010-04-01 | J8: 2010-05-01 | K8: 2010-06-01 | L8: 2010-07-01 | M8: 2010-08-01 | N8: 2010-09-01 | O8: 2010-10-01 | P8: 2010-11-01 | Q8: 2010-12-01 | R8: DIC 2010 | S8: DIC 2010 | U8: 2011-01-01 | V8: 2011-02-01 | W8: 2011-03-01 | X8: 2011-04-01 | Y8: 2011-05-01 | Z8: 2011-06-01 | AA8: 2011-07-01 | AB8: 2011-08-01 | AC8: 2011-09-01 | AD8: 2011-10-01 | AE8: 2011-11-01 | AF8: 2011-12-01 | AG8: DIC 2011 | AH8: ACUM
D10: INGRESOS
C12: 378618 | D12: TAQUILLA | F12: 20010 | G12: 16725 | H12: 37675 | I12: 30315 | J12: 14230 | K12: 11865 | L12: 23195 | M12: 22010 | N12: 20930 | O12: 17145 | P12: 21200 | Q12: 36546.67 | R12: =SUM(F12:Q12) -> 271846.67 | S12: 390530 | U12: =+AG12/12 -> 33333.33333 | V12: =+AG12/12 -> 33333.33333 | W12: =+AG12/12 -> 33333.33333 | X12: =+AG12/12 -> 33333.33333 | Y12: =+AG12/12 -> 33333.33333 | Z12: =+AG12/12 -> 33333.33333 | AA12: =+AG12/12 -> 33333.33333 | AB12: =+AG12/12 -> 33333.33333 | AC12: =+AG12/12 -> 33333.33333 | AD12: =+AG12/12 -> 33333.33333 | AE12: =+AG12/12 -> 33333.33333 | AF12: =+AG12/12 -> 33333.33333 | AG12: 400000 | AH12: =+U12+V12+W12+X12+Y12+Z12+AA12+AB12+AC12+AD12 -> 333333.3333 | AI12: =+AG12/12 -> 33333.33333
D13: ESTACIONAMIENTO | G13: 8888.25 | H13: 5858.65 | I13: 4681.05 | J13: 5165.5 | K13: 6905.15 | L13: 3258.6 | M13: 8689.65 | N13: 4612.05 | O13: 5884.5 | P13: 6081.03 | Q13: 4262.32 | R13: =SUM(F13:Q13) -> 64286.75 | S13: 55521 | U13: =+AG13/12 -> 5833.333333 | V13: 5833.333333 | W13: =+AG13/12 -> 5833.333333 | X13: =+AG13/12 -> 5833.333333 | Y13: =+AG13/12 -> 5833.333333 | Z13: =+AG13/12 -> 5833.333333 | AA13: =+AG13/12 -> 5833.333333 | AB13: =+AG13/12 -> 5833.333333 | AC13: =+AG13/12 -> 5833.333333 | AD13: =+AG13/12 -> 5833.333333 | AE13: =+AG13/12 -> 5833.333333 | AF13: =+AG13/12 -> 5833.333333 | AG13: 70000 | AH13: =+U13+V13+W13+X13+Y13+Z13+AA13+AB13+AC13+AD13 -> 58333.33333 | AI13: =+AG13/12 -> 5833.333333
D14: CURSOS | G14: 838.3 | H14: 2152 | I14: 1960 | J14: 5222 | K14: 23110 | L14: 33623 | M14: 25626 | N14: 1298 | O14: 17887.2 | P14: 4256 | Q14: 653.67 | R14: =SUM(F14:Q14) -> 116626.17 | S14: 74070 | U14: =+AG14/12 -> 3333.333333 | V14: 3333.333333 | W14: =+AG14/12 -> 3333.333333 | X14: =+AG14/12 -> 3333.333333 | Y14: =+AG14/12 -> 3333.333333 | Z14: =+AG14/12 -> 3333.333333 | AA14: =+AG14/12 -> 3333.333333 | AB14: =+AG14/12 -> 3333.333333 | AC14: =+AG14/12 -> 3333.333333 | AD14: =+AG14/12 -> 3333.333333 | AE14: =+AG14/12 -> 3333.333333 | AF14: =+AG14/12 -> 3333.333333 | AG14: 40000 | AH14: 33333.33333 | AI14: 3333.333333
D15: VENTA LIBROS | I15: 9573 | K15: 5550 | L15: 2904.3 | M15: 1423.8 | N15: 2713 | R15: =SUM(F15:Q15) -> 22164.1 | S15: 5429 | U15: =+AG15/12 -> 1666.666667 | V15: 1666.666667 | W15: =+AG15/12 -> 1666.666667 | X15: =+AG15/12 -> 1666.666667 | Y15: =+AG15/12 -> 1666.666667 | Z15: =+AG15/12 -> 1666.666667 | AA15: =+AG15/12 -> 1666.666667 | AB15: =+AG15/12 -> 1666.666667 | AC15: =+AG15/12 -> 1666.666667 | AD15: =+AG15/12 -> 1666.666667 | AE15: =+AG15/12 -> 1666.666667 | AF15: =+AG15/12 -> 1666.666667 | AG15: 20000 | AH15: 16666.66667 | AI15: 1666.666667
C16: 0 | R16: 0 | U16: =+AG16/12 -> 0 | V16: 0 | AH16: 0 | AI16: 0
D17: RENTA DE ESPACIOS: | U17: 0 | V17: 0 | W17: =+AG17/12 -> 0 | X17: 0 | Y17: 0 | Z17: 0 | AA17: 0 | AB17: 0 | AC17: 0 | AD17: 0 | AE17: 0 | AF17: 0 | AH17: 0 | AI17: 0
C18: 0 | D18: RESTAURANT | R18: 0 | U18: 0 | AH18: 0 | AI18: 0
C19: 744158.53 | D19: PLAZA | F19: 8000 | G19: =23900+2397 -> 26297 | H19: 2500 | I19: =3000+10038+1500 -> 14538 | J19: 20534.48 | K19: 2500 | M19: 11800 | N19: =88640+10000 -> 98640 | O19: =53019.75+8000 -> 61019.75 | P19: 30172.4 | Q19: 115276.67 | R19: 391278.3 | S19: 746197 | U19: 20833.33333 | V19: =+AG19/12 -> 20833.33333 | W19: =+AG19/12 -> 20833.33333 | X19: =+AG19/12 -> 20833.33333 | Y19: =+AG19/12 -> 20833.33333 | Z19: =+AG19/12 -> 20833.33333 | AA19: =+AG19/12 -> 20833.33333 | AB19: =+AG19/12 -> 20833.33333 | AC19: =+AG19/12 -> 20833.33333 | AD19: =+AG19/12 -> 20833.33333 | AE19: =+AG19/12 -> 20833.33333 | AF19: =+AG19/12 -> 20833.33333 | AG19: 250000 | AH19: 208333.3333 | AI19: 20833.33333
C20: 1304.35 | D20: IPADE (170,000 ANUALES) | R20: 0 | S20: 1304.35 | U20: 0 | AH20: 0 | AI20: 0
C21: 4500 | D21: AUDITORIO | H21: 1000 | P21: =2672.4+2672.4+2586 -> 7930.8 | Q21: 1500 | R21: 10430.8 | S21: 6000 | U21: =+AG21/12 -> 500 | V21: =+AG21/12 -> 500 | W21: =+AG21/12 -> 500 | X21: =+AG21/12 -> 500 | Y21: =+AG21/12 -> 500 | Z21: =+AG21/12 -> 500 | AA21: =+AG21/12 -> 500 | AB21: =+AG21/12 -> 500 | AC21: =+AG21/12 -> 500 | AD21: =+AG21/12 -> 500 | AE21: =+AG21/12 -> 500 | AF21: =+AG21/12 -> 500 | AG21: 6000 | AH21: 5000 | AI21: 500
C22: 0 | D22: SALON EJECUTIVO | R22: 0 | U22: 0 | AH22: 0 | AI22: 0
C23: 0 | D23: RENTA DE SILLAS | R23: 0 | AG23: =SUM(U23:AF23) -> 0 | AH23: 0 | AI23: 0
D24: LIBRERÍA | M24: =4441.63+2955.36 -> 7396.99 | Q24: 3215.59 | R24: =SUM(F24:Q24) -> 10612.58 | S24: 19725 | U24: =+AG24/12 -> 1250 | V24: =+AG24/12 -> 1250 | W24: =+AG24/12 -> 1250 | X24: =+AG24/12 -> 1250 | Y24: =+AG24/12 -> 1250 | Z24: =+AG24/12 -> 1250 | AA24: =+AG24/12 -> 1250 | AB24: =+AG24/12 -> 1250 | AC24: =+AG24/12 -> 1250 | AD24: =+AG24/12 -> 1250 | AE24: =+AG24/12 -> 1250 | AF24: =+AG24/12 -> 1250 | AG24: 15000 | AH24: 12500 | AI24: 1250
U25: 0 | AH25: 0 | AI25: 0
C26: 54361.25 | U26: 0 | AH26: 0 | AI26: 0
U27: 0 | AH27: 0 | AI27: 0
D28: DONATIVOS: | U28: 0 | AH28: 0 | AI28: 0
C29: 4150000 | D29: GOBIERNO DEL ESTADO | F29: 7130000 | R29: =SUM(F29:Q29) -> 7130000 | U29: 666666.6667 | V29: =+AG29/12 -> 666666.6667 | W29: =+AG29/12 -> 666666.6667 | X29: =+AG29/12 -> 666666.6667 | Y29: =+AG29/12 -> 666666.6667 | Z29: =+AG29/12 -> 666666.6667 | AA29: =+AG29/12 -> 666666.6667 | AB29: =+AG29/12 -> 666666.6667 | AC29: =+AG29/12 -> 666666.6667 | AD29: =+AG29/12 -> 666666.6667 | AE29: =+AG29/12 -> 666666.6667 | AF29: =+AG29/12 -> 666666.6667 | AG29: 8000000 | AH29: 6666666.667 | AI29: 666666.6667
C30: 125000 | D30: GOBIERNO MUNICIPAL | M30: =83333.33*6 -> 499999.98 | N30: =83333.33*2 -> 166666.66 | Q30: =83333.33*2 -> 166666.66 | R30: 833333.3 | S30: 1000000 | U30: =+AG30/12 -> 333333.3333 | V30: =+AG30/12 -> 333333.3333 | W30: =+AG30/12 -> 333333.3333 | X30: =+AG30/12 -> 333333.3333 | Y30: =+AG30/12 -> 333333.3333 | Z30: =+AG30/12 -> 333333.3333 | AA30: =+AG30/12 -> 333333.3333 | AB30: =+AG30/12 -> 333333.3333 | AC30: =+AG30/12 -> 333333.3333 | AD30: =+AG30/12 -> 333333.3333 | AE30: =+AG30/12 -> 333333.3333 | AF30: =+AG30/12 -> 333333.3333 | AG30: 4000000 | AH30: 3333333.333 | AI30: 333333.3333
C31: 1050000 | D31: FUNDACION LALA | G31: 500000 | K31: 500000 | R31: 1000000 | S31: 1000000 | U31: =+AG31/12 -> 83333.33333 | V31: =+AG31/12 -> 83333.33333 | W31: =+AG31/12 -> 83333.33333 | X31: =+AG31/12 -> 83333.33333 | Y31: =+AG31/12 -> 83333.33333 | Z31: =+AG31/12 -> 83333.33333 | AA31: =+AG31/12 -> 83333.33333 | AB31: =+AG31/12 -> 83333.33333 | AC31: =+AG31/12 -> 83333.33333 | AD31: =+AG31/12 -> 83333.33333 | AE31: =+AG31/12 -> 83333.33333 | AF31: =+AG31/12 -> 83333.33333 | AG31: 1000000 | AH31: 833333.3333 | AI31: 83333.33333
D32: JOSEFINA J. REYNOARD | H32: 1000000 | R32: 1000000 | U32: 0 | AH32: 0 | AI32: 0
D33: BANCOMER | M33: 100000 | R33: 100000 | U33: 0 | AH33: 0 | AI33: 0
C34: 5000000 | D34: FUNDACION AROCENA (16,800 X 35%) Gtos. Operación | F34: 1000000 | M34: 1000000 | N34: 2000000 | O34: =500000+1000000 -> 1500000 | P34: 1500000 | R34: 7000000 | S34: 7000000 | U34: 490000 | V34: =+AG34/12 -> 490000 | W34: =+AG34/12 -> 490000 | X34: =+AG34/12 -> 490000 | Y34: =+AG34/12 -> 490000 | Z34: =+AG34/12 -> 490000 | AA34: =+AG34/12 -> 490000 | AB34: =+AG34/12 -> 490000 | AC34: =+AG34/12 -> 490000 | AD34: =+AG34/12 -> 490000 | AE34: =+AG34/12 -> 490000 | AF34: =+AG34/12 -> 490000 | AG34: 5880000 | AH34: 4900000 | AI34: 490000
D35: FUNDACION AROCENA ( 25,030 X 25% ) Edif. Russek | U35: =+AG35/12 -> 521458.3333 | V35: =+AG35/12 -> 521458.3333 | W35: =+AG35/12 -> 521458.3333 | X35: =+AG35/12 -> 521458.3333 | Y35: =+AG35/12 -> 521458.3333 | Z35: =+AG35/12 -> 521458.3333 | AA35: =+AG35/12 -> 521458.3333 | AB35: =+AG35/12 -> 521458.3333 | AC35: =+AG35/12 -> 521458.3333 | AD35: =+AG35/12 -> 521458.3333 | AE35: =+AG35/12 -> 521458.3333 | AF35: =+AG35/12 -> 521458.3333 | AG35: 6257500 | AH35: 5214583.333 | AI35: 521458.3333
C36: 800000 | D36: PEÑOLES | R36: 0 | U36: =+AG36/12 -> 250000 | V36: =+AG36/12 -> 250000 | W36: =+AG36/12 -> 250000 | X36: =+AG36/12 -> 250000 | Y36: =+AG36/12 -> 250000 | Z36: =+AG36/12 -> 250000 | AA36: =+AG36/12 -> 250000 | AB36: =+AG36/12 -> 250000 | AC36: =+AG36/12 -> 250000 | AD36: =+AG36/12 -> 250000 | AE36: =+AG36/12 -> 250000 | AF36: =+AG36/12 -> 250000 | AG36: 3000000 | AH36: 2500000 | AI36: 250000
C37: 50000 | D37: SANTA MONICA | H37: 25000 | R37: 25000 | U37: 0 | AH37: 0 | AI37: 0
C38: =472250+800 -> 473050 | D38: VARIOS | P38: 24900 | R38: 24900 | S38: =12291334-9000000 -> 3291334 | U38: 60833.33333 | V38: =+AG38/12 -> 60833.33333 | W38: =+AG38/12 -> 60833.33333 | X38: 2500 | Y38: 2500 | Z38: 2500 | AA38: 2500 | AB38: 2500 | AC38: 2500 | AD38: 2500 | AE38: 2500 | AF38: 2500 | AG38: 730000 | AH38: 200000 | AI38: 60833.33333
C39: =SUM(C29:C38) -> 11648050 | D39: TOTAL DONATIVOS: | F39: =SUM(F29:F38) -> 8130000 | G39: =SUM(G29:G38) -> 500000 | H39: 1025000 | I39: 0 | J39: 0 | K39: 500000 | L39: 0 | M39: 1599999.98 | N39: 2166666.66 | O39: 1500000 | P39: 1524900 | Q39: 166666.66 | R39: 17113233.3 | S39: 12291334 | U39: =SUM(U29:U38) -> 2405625 | V39: 2405625 | W39: 2405625 | X39: 2347291.667 | Y39: 2347291.667 | Z39: 2347291.667 | AA39: 2347291.667 | AB39: 2347291.667 | AC39: 2347291.667 | AD39: 2347291.667 | AE39: 2347291.667 | AF39: 2347291.667 | AG39: 28867500 | AH39: 23647916.67 | AI39: 2405625
U40: 0 | AH40: 0 | AI40: 0
C41: 61315.78 | D41: OTROS INGRESOS | F41: 9635.51 | G41: =21066.91 -> 21066.91 | H41: 23888.57 | I41: 18751.51 | J41: 15041.54 | K41: 9001.07 | L41: 4962.16 | M41: =-80+1890.52 -> 1810.52 | N41: 3195.76 | O41: 1557.7 | P41: 1286 | Q41: 2324.69 | R41: 112521.94 | S41: 34182 | AG41: =SUM(U41:AF41) -> 0 | AH41: 0 | AI41: 0
D42: VENTA DE 14 ESPACIOS EDIFICIO RUSSEK | U42: =+AG42/12 -> 1166666.667 | V42: =+AG42/12 -> 1166666.667 | W42: =+AG42/12 -> 1166666.667 | X42: =+AG42/12 -> 1166666.667 | Y42: =+AG42/12 -> 1166666.667 | Z42: =+AG42/12 -> 1166666.667 | AA42: =+AG42/12 -> 1166666.667 | AB42: =+AG42/12 -> 1166666.667 | AC42: =+AG42/12 -> 1166666.667 | AD42: =+AG42/12 -> 1166666.667 | AE42: =+AG42/12 -> 1166666.667 | AF42: =+AG42/12 -> 1166666.667 | AG42: 14000000 | AH42: 11666666.67 | AI42: 1166666.667
D43: FONDOS VIA CONGRESO | U43: =+AG43/12 -> 125000 | V43: =+AG43/12 -> 125000 | W43: =+AG43/12 -> 125000 | X43: =+AG43/12 -> 125000 | Y43: =+AG43/12 -> 125000 | Z43: =+AG43/12 -> 125000 | AA43: =+AG43/12 -> 125000 | AB43: =+AG43/12 -> 125000 | AC43: =+AG43/12 -> 125000 | AD43: =+AG43/12 -> 125000 | AE43: =+AG43/12 -> 125000 | AF43: =+AG43/12 -> 125000 | AG43: 1500000 | AH43: 1250000 | AI43: 125000
C44: 13277748.55 | D44: TOTAL INGRESOS | F44: =SUM(F12:F23)+#REF!+F26+F41+#REF!+F39 ->  | G44: =SUM(G12:G23)+#REF!+G26+G41+#REF!+G39 ->  | H44: =SUM(H12:H23)+#REF!+H26+H41+#REF!+H39 ->  | I44: =SUM(I12:I23)+#REF!+I26+I41+#REF!+I39 ->  | J44: =SUM(J12:J23)+#REF!+J26+J41+#REF!+J39 ->  | K44: =SUM(K12:K23)+#REF!+K26+K41+#REF!+K39 ->  | L44: =SUM(L12:L23)+#REF!+L26+L41+#REF!+L39 ->  | M44: =SUM(M12:M23)+#REF!+M26+M41+#REF!+M39 ->  | N44: =SUM(N12:N23)+#REF!+N26+N41+#REF!+N39 ->  | O44: =SUM(O12:O23)+#REF!+O26+O41+#REF!+O39 ->  | P44: =SUM(P12:P23)+#REF!+P26+P41+#REF!+P39 ->  | Q44: =SUM(Q12:Q23)+#REF!+Q26+Q41+#REF!+Q39 ->  | R44: =SUM(R12:R38)+SUM(R40:R43) -> 18113000.61 | S44: =SUM(S12:S38)+SUM(S40:S43) -> 13624292.35 | U44: =SUM(U12:U38)+SUM(U40:U43) -> 3764041.667 | V44: 3764041.667 | W44: 3764041.667 | X44: 3705708.333 | Y44: 3705708.333 | Z44: 3705708.333 | AA44: 3705708.333 | AB44: 3705708.333 | AC44: 3705708.333 | AD44: 3705708.333 | AE44: 3705708.333 | AF44: 3705708.333 | AG44: 45168500 | AH44: 37232083.33 | AI44: 3764041.667
AH45: 0 | AI45: 0
D46: EGRESOS | AH46: 0 | AI46: 0
D47: GASTOS DE ADMINISTRACION: | AH47: 0 | AI47: 0
C48: 503355.94 | D48: SUELDOS | F48: 42836.5 | G48: 42836.5 | H48: 44978.32 | I48: 44978.32 | J48: 44978.32 | K48: 44978.32 | L48: 44978.32 | M48: 44978.32 | N48: 44978.32 | O48: 44978.32 | P48: 44978.32 | Q48: 44978.325 | R48: =SUM(F48:Q48) -> 535456.205 | S48: 539740 | U48: =24547.87*2 -> 49095.74 | V48: =24547.87*2 -> 49095.74 | W48: 49095.74 | X48: 49095.74 | Y48: 49095.74 | Z48: 49095.74 | AA48: 49095.74 | AB48: 49095.74 | AC48: 49095.74 | AD48: 49095.74 | AE48: 49095.74 | AF48: 49095.74 | AG48: =SUM(U48:AF48) -> 589148.88 | AH48: 490957.4 | AI48: 49095.74
C49: 0 | D49: VACACIONES | Q49: 14985.6 | R49: 14985.6 | S49: 14986 | AF49: 22911.36 | AG49: 22911.36 | AH49: 0 | AI49: 1909.28
C50: 42249.79 | D50: AGUINALDO | Q50: 44978.85 | R50: 44978.85 | S50: 44979 | AF50: 49096 | AG50: 49096 | AH50: 0 | AI50: 4091.333333
C51: 0 | D51: LIQ. E INDEMNIZACIONES | Q51: 0 | R51: 0 | AG51: 0 | AH51: 0 | AI51: 0
C52: 83143.36 | D52: I.M.S.S, SAR,INFONAVIT | F52: =2132.23+5032.54+4009.99 -> 11174.76 | G52: 2392 | H52: =2132.23+5032.54+4009.99 -> 11174.76 | I52: 3042.93 | J52: =2909.6+5498.56+4381.33 -> 12789.49 | K52: 3042.93 | L52: =2909.6+5498.56+4381.33 -> 12789.49 | M52: 2697.83 | N52: =2909.6+5588.15+4453.5 -> 12951.25 | O52: 2575.64 | P52: =2697.83+5498.56+4381.33 -> 12577.72 | Q52: 8659.532 | R52: 95868.332 | S52: 93448 | U52: 3446 | V52: 14834 | W52: 3446 | X52: 14834 | Y52: 3446 | Z52: 14834 | AA52: 3446 | AB52: 14834 | AC52: 3446 | AD52: 14834 | AE52: 3446 | AF52: 14834 | AG52: 109680 | AH52: 91400 | AI52: 9140
C53: 15000 | D53: GASTOS DE CAPACITACION | P53: 2000 | Q53: 0 | R53: 2000 | S53: 15000 | U53: =+(F53*5%)+F53 -> 0 | V53: 0 | W53: 0 | X53: 0 | Y53: 0 | Z53: 0 | AA53: 0 | AB53: 0 | AC53: 0 | AD53: 0 | AE53: 2100 | AF53: 0 | AG53: 2100 | AH53: 0 | AI53: 175
C54: 5155.31 | D54: TELEFONO | G54: 811.21 | H54: 334.78 | I54: 674.9 | J54: 527.1 | K54: 330.44 | L54: 645.24 | M54: 1019.13 | O54: 395.97 | P54: 386.61 | Q54: 431.49 | R54: 5556.87 | S54: 5064 | U54: =+(F54*5%)+F54 -> 0 | V54: =+(G54*5%)+G54 -> 851.7705 | W54: =+(H54*5%)+H54 -> 351.519 | X54: =+(I54*5%)+I54 -> 708.645 | Y54: =+(J54*5%)+J54 -> 553.455 | Z54: =+(K54*5%)+K54 -> 346.962 | AA54: =+(L54*5%)+L54 -> 677.502 | AB54: =+(M54*5%)+M54 -> 1070.0865 | AC54: =+(N54*5%)+N54 -> 0 | AD54: =+(O54*5%)+O54 -> 415.7685 | AE54: =+(P54*5%)+P54 -> 405.9405 | AF54: =+(Q54*5%)+Q54 -> 453.0645 | AG54: 5834.7135 | AH54: 4975.7085 | AI54: 486.226125
C55: 3930 | D55: CONSUMOS | G55: 352.5 | I55: 587.7 | J55: 832.5 | Q55: 373.3333333 | R55: 2146.033333 | S55: 1530 | U55: 0 | V55: 370.125 | W55: 0 | X55: 617.085 | Y55: 874.125 | Z55: 0 | AA55: 0 | AB55: 0 | AC55: 0 | AD55: 0 | AE55: 0 | AF55: 392 | AG55: 2253.335 | AH55: 1861.335 | AI55: 187.7779167
D56: PAPELERIA Y COPIAS | F56: 935.1 | Q56: 0 | R56: 935.1 | U56: 0 | V56: 0 | W56: 0 | X56: 0 | Y56: 0 | Z56: 0 | AA56: 0 | AB56: 0 | AC56: 0 | AD56: 0 | AE56: 0 | AF56: 0 | AG56: 0 | AH56: 0 | AI56: 0
C57: 11877.8 | D57: SEGUROS Y FIANZAS | R57: 0 | S57: 11878 | U57: 0 | V57: 0 | W57: 0 | X57: 0 | Y57: 0 | Z57: 0 | AA57: 0 | AB57: 0 | AC57: 0 | AD57: 0 | AE57: 0 | AF57: 0 | AG57: 0 | AH57: 0 | AI57: 0
C58: 29974.1 | D58: GASTOS DE VIAJE | H58: 3531.91 | I58: 6182.67 | K58: 18048.17 | L58: 5900 | M58: 12823.18 | N58: 5106 | O58: 635 | P58: 2841.77 | Q58: 4913.42 | R58: 59982.12 | S58: 33458 | T58: (1 | U58: 0 | V58: 0 | W58: 3708.5055 | X58: 6491.8035 | Y58: 0 | Z58: 18950.5785 | AA58: 6195 | AB58: 13464.339 | AC58: 5361.3 | AD58: 666.75 | AE58: 2983.8585 | AF58: 5159.091 | AG58: 62981.226 | AH58: 54838.2765 | AI58: 5248.4355
C59: 6820 | D59: VARIOS | G59: 6192.29 | R59: 6192.29 | T59: (2 | U59: 0 | V59: 6501.9045 | W59: 0 | X59: 0 | Y59: 0 | Z59: 0 | AA59: 0 | AB59: 0 | AC59: 0 | AD59: 0 | AE59: 0 | AF59: 0 | AG59: 6501.9045 | AH59: 6501.9045 | AI59: 541.825375
C60: 801 | D60: NO DEDUCIBLES | R60: 0 | S60: 801 | U60: 0 | V60: 0 | W60: 0 | X60: 0 | Y60: 0 | Z60: 0 | AA60: 0 | AB60: 0 | AC60: 0 | AD60: 0 | AE60: 0 | AF60: 0 | AG60: 0 | AH60: 0 | AI60: 0
C61: 0 | D61: RELACIONES PUBLICAS | R61: 0 | U61: 0 | V61: 0 | W61: 0 | X61: 0 | Y61: 0 | Z61: 0 | AA61: 0 | AB61: 0 | AC61: 0 | AD61: 0 | AE61: 0 | AF61: 0 | AG61: 0 | AH61: 0 | AI61: 0
C62: 702307.3 | D62: TOTAL ADMINISTRATIVOS | F62: =SUM(F48:F58) -> 54946.36 | G62: =SUM(G48:G61) -> 52584.5 | H62: =SUM(H48:H61) -> 60019.77 | I62: =SUM(I48:I61) -> 55466.52 | J62: =SUM(J48:J61) -> 59127.41 | K62: =SUM(K48:K61) -> 66399.86 | L62: 64313.05 | M62: 61518.46 | N62: 63035.57 | O62: 48584.93 | P62: 62784.42 | Q62: 119320.5503 | R62: 768101.4003 | S62: 760884 | U62: =SUM(U48:U58) -> 52541.74 | V62: =SUM(V48:V61) -> 71653.54 | W62: =SUM(W48:W61) -> 56601.7645 | X62: =SUM(X48:X61) -> 71747.2735 | Y62: =SUM(Y48:Y61) -> 53969.32 | Z62: =SUM(Z48:Z61) -> 83227.2805 | AA62: 59414.242 | AB62: 78464.1655 | AC62: 57903.04 | AD62: 65012.2585 | AE62: 58031.539 | AF62: 141941.2555 | AG62: 850507.419 | AH62: 650534.6245 | AI62: 70875.61825
AH63: 0 | AI63: 0
AH64: 0 | AI64: 0
D65: GASTOS DE OPERACIÓN: | AH65: 0 | AI65: 0
C66: 4400171.31 | D66: SUELDOS | F66: 393423.72 | G66: 384265.65 | H66: =436231.29-36038.69 -> 400192.6 | I66: 456038.4 | J66: 403042.82 | K66: 411475.54 | L66: 454138.89 | M66: 375179.77 | N66: 425292.59 | O66: 460214.67 | P66: 388563.4 | Q66: 408990.142 | R66: =SUM(F66:Q66) -> 4960818.192 | S66: 4907881.704 | T66: (3 | U66: =190672+234455 -> 425127 | V66: =190672+234455 -> 425127 | W66: =238340+234455 -> 472795 | X66: =190672+234455 -> 425127 | Y66: =190672+234455 -> 425127 | Z66: =238340+234455 -> 472795 | AA66: =190672+234455 -> 425127 | AB66: =190672+234455 -> 425127 | AC66: =238340+234455 -> 472795 | AD66: =190672+234455 -> 425127 | AE66: =190672+234455 -> 425127 | AF66: =238340+234455 -> 472795 | AG66: =SUM(U66:AF66) -> 5292196 | AH66: 4394274 | AI66: 441016.3333
C67: 375199.14 | D67: SUELDOS ASIMILADOS | F67: 29456.9 | G67: 25068.73 | H67: =44469.16-18789 -> 25680.16 | I67: 25680.56 | J67: 49706.03 | K67: 20686.8 | L67: 20686.8 | M67: 20686.8 | N67: 21743.08 | O67: 23689.36 | P67: 22799.36 | Q67: 26251.225 | R67: 312135.805 | S67: 315014.7 | U67: =(9800+2500)*2 -> 24600 | V67: =(9800+2500)*2 -> 24600 | W67: 24600 | X67: 24600 | Y67: =((9800+2500)*2)+9840 -> 34440 | Z67: 24600 | AA67: 24600 | AB67: 24600 | AC67: 24600 | AD67: 24600 | AE67: 24600 | AF67: 24600 | AG67: 305040 | AH67: 255840 | AI67: 25420
C68: 131801.47 | D68: VACACIONES | G68: 3174.38 | H68: =4935.85+18789 -> 23724.85 | I68: 4726.3 | J68: 9239.35 | K68: 18236.15 | L68: =2762.7+35072.54 -> 37835.24 | M68: 50237.44 | N68: 16383.5 | O68: 22302.43 | P68: 2031.6 | Q68: 7560.4235 | R68: 195451.6635 | S68: 145951.967 | T68: (4 | U68: 0 | V68: 3348.9709 | W68: 25029.71675 | X68: 4986.2465 | Y68: 9747.51425 | Z68: 19239.13825 | AA68: 39916.1782 | AB68: 53000.4992 | AC68: 17284.5925 | AD68: 23529.06365 | AE68: 2143.338 | AF68: 7976.246793 | AG68: 206201.505 | AH68: 196081.9202 | AI68: 17183.45875
C69: 374804.08 | D69: AGUINALDO | L69: 2211.04 | Q69: 358121.358 | R69: 360332.398 | S69: 358121.358 | AF69: 438744 | AG69: 438744 | AH69: 0 | AI69: 36562
C70: 5000 | D70: LIQ. E INDEMNIZACIONES | L70: 1000 | Q70: 12488 | R70: 13488 | S70: 17488 | U70: =+(F70*5%)+F70 -> 0 | V70: =+(G70*5%)+G70 -> 0 | W70: 0 | X70: 0 | Y70: 0 | Z70: 0 | AA70: 1050 | AB70: 0 | AC70: 0 | AD70: 0 | AE70: 0 | AF70: 13112.4 | AG70: 14162.4 | AH70: 1050 | AI70: 1180.2
C71: 4929 | D71: UNIFORMES Y EQ. DE TRABAJO | Q71: 0 | R71: 0 | S71: 4929 | AG71: 0 | AH71: 0 | AI71: 0
C72: 899632.89 | D72: I.M.S.S, SAR,INFONAVIT | F72: =36592.37+50187.71+39990.22 -> 126770.3 | G72: 38384.75 | H72: =32956.11+49036.83+39073.27 -> 121066.21 | I72: 39192.1 | J72: =36627.41+54029.16+43051.09 -> 133707.66 | K72: 39444.47 | L72: =34892.47+54612.52+43515.93 -> 133020.92 | M72: 35279.68 | N72: =36533.81+55225.51+44003.56 -> 135762.88 | O72: 34583.55 | P72: =34988.92+54640.41+43538.16 -> 133167.49 | Q72: 35022.75 | R72: 1005402.76 | S72: 942749.2515 | T72: (5 | U72: 42642 | V72: 149499 | W72: 42642 | X72: 149499 | Y72: 42642 | Z72: 149499 | AA72: 42642 | AB72: 149499 | AC72: 42642 | AD72: 149499 | AE72: 42642 | AF72: 149499 | AG72: 1152846 | AH72: 960705 | AI72: 96070.5
C73: 7120 | D73: IMPUESTOS ESTATALES | F73: 7332 | G73: 3383 | Q73: 0 | R73: 10715 | S73: 7120 | U73: =+(F73*5%)+F73 -> 7698.6 | V73: 3552.15 | W73: 0 | X73: 0 | Y73: 0 | Z73: 0 | AA73: 0 | AB73: 0 | AC73: 0 | AD73: 0 | AE73: 0 | AF73: 0 | AG73: 11250.75 | AH73: 11250.75 | AI73: 937.5625
C74: 0 | D74: GASTOS DE CAPACITACION | Q74: 0 | R74: 0 | S74: 0 | U74: =+(F74*5%)+F74 -> 0 | V74: =+(G74*5%)+G74 -> 0 | W74: =+(H74*5%)+H74 -> 0 | X74: =+(I74*5%)+I74 -> 0 | Y74: =+(J74*5%)+J74 -> 0 | Z74: =+(K74*5%)+K74 -> 0 | AA74: =+(L74*5%)+L74 -> 0 | AB74: =+(M74*5%)+M74 -> 0 | AC74: =+(N74*5%)+N74 -> 0 | AD74: =+(O74*5%)+O74 -> 0 | AE74: =+(P74*5%)+P74 -> 0 | AF74: =+(Q74*5%)+Q74 -> 0 | AG74: 0 | AH74: 0 | AI74: 0
C75: 98434.5 | D75: TELEFONO | G75: 8524.9 | H75: 16605.54 | I75: 8850.72 | J75: 437.47 | K75: 8515.89 | L75: 17164.43 | M75: 850.86 | N75: 15826.03 | O75: 8978.22 | P75: 509.73 | Q75: 11230.46333 | R75: 97494.25333 | S75: 100850.7833 | U75: 0 | V75: 8951.145 | W75: 17435.817 | X75: 9293.256 | Y75: 459.3435 | Z75: 8941.6845 | AA75: 18022.6515 | AB75: 893.403 | AC75: 16617.3315 | AD75: 9427.131 | AE75: 535.2165 | AF75: 11791.9865 | AG75: 102368.966 | AH75: 90041.763 | AI75: =+AG75/12 -> 8530.747167
C76: 1105322.036 | D76: ELECTRICIDAD | F76: 72922.65 | G76: 68093.3 | H76: 64265.74 | I76: 83833.02 | J76: 117160.45 | K76: 122861.55 | L76: 139330.37 | M76: 134912.32 | N76: 143510.51 | O76: 135651.04 | P76: 100154.5 | Q76: 114783.5833 | R76: 1297479.033 | S76: 1377403 | U76: 76568.7825 | V76: 71497.965 | W76: 67479.027 | X76: 88024.671 | Y76: 123018.4725 | Z76: 129004.6275 | AA76: 146296.8885 | AB76: 141657.936 | AC76: 150686.0355 | AD76: 142433.592 | AE76: 105162.225 | AF76: 120522.7625 | AG76: 1362352.985 | AH76: 1136667.998 | AI76: 113529.4154
C77: 40248.02 | D77: AGUA | F77: 297.91 | G77: 5494.63 | H77: 3233.11 | I77: 4410.63 | K77: 5414.49 | L77: 6269.1 | N77: 8337.02 | O77: 7353.79 | P77: 1100 | Q77: 4963.553333 | R77: 46874.23333 | S77: 42623.16333 | U77: 312.8055 | V77: 5769.3615 | W77: 3394.7655 | X77: 4631.1615 | Y77: 0 | Z77: 5685.2145 | AA77: 6582.555 | AB77: 0 | AC77: 8753.871 | AD77: 7721.4795 | AE77: 1155 | AF77: 5211.731 | AG77: 49217.945 | AH77: =+U77+V77+W77+X77+Y77+Z77+AA77+AB77+AC77+AD77 -> 42851.214 | AI77: 4101.495417
C78: 24440.65 | D78: COMBUSTIBLES Y LUBRICANTES | F78: 800.08 | G78: 1600.79 | H78: 4751.18 | I78: 4126.63 | J78: 1552.63 | K78: 3513.4 | L78: 3295.34 | M78: 2100.56 | N78: 3405.92 | O78: 1887.11 | P78: 5550.49 | Q78: 3711.04 | R78: 36295.17 | S78: 27201.46 | U78: 840.084 | V78: 1680.8295 | W78: 4988.739 | X78: 4332.9615 | Y78: 1630.2615 | Z78: 3689.07 | AA78: 3460.107 | AB78: 2205.588 | AC78: 3576.216 | AD78: 1981.4655 | AE78: 5828.0145 | AF78: 3896.592 | AG78: 38109.9285 | AH78: 28385.322 | AI78: 3175.827375
C79: 0 | D79: CORREO Y TELEGRAFO | G79: 4545.82 | Q79: 0 | R79: 4545.82 | S79: 0 | U79: 0 | V79: 4773.111 | W79: 0 | X79: 0 | Y79: 0 | Z79: 0 | AA79: 0 | AB79: 0 | AC79: 0 | AD79: 0 | AE79: 0 | AF79: 0 | AG79: 4773.111 | AH79: 4773.111 | AI79: 397.75925
C80: 32085.92 | D80: PAQUETERIA Y MENSAJERIA | L80: 92.8 | M80: 4660.59 | Q80: 1449.49 | R80: 6202.88 | S80: 32743.05 | U80: 0 | V80: 0 | W80: 0 | X80: 0 | Y80: 0 | Z80: 0 | AA80: 97.44 | AB80: 4893.6195 | AC80: 0 | AD80: 0 | AE80: 0 | AF80: 1521.9645 | AG80: 6513.024 | AH80: 4991.0595 | AI80: 542.752
C81: 88440.65 | D81: CONSUMOS OFICINA | F81: 1676.1 | G81: 959.25 | H81: 510.2 | I81: 633.59 | J81: 467.2 | K81: 1405.05 | L81: 6386.1 | M81: 14871.97 | N81: 1203.88 | O81: 3171.96 | P81: 410.12 | Q81: 13333.33333 | R81: 45028.75333 | S81: 160000 | U81: 1759.905 | V81: 1007.2125 | W81: 535.71 | X81: 665.2695 | Y81: 490.56 | Z81: 1475.3025 | AA81: 6705.405 | AB81: 15615.5685 | AC81: 1264.074 | AD81: 3330.558 | AE81: 430.626 | AF81: 14000 | AG81: 47280.191 | AH81: 32849.565 | AI81: 3940.015917
C82: 25099 | D82: CUOTAS Y SUSCRIPCIONES | F82: 750 | G82: 8190 | H82: 2200 | I82: 750 | J82: 750 | K82: 1799 | L82: 750 | M82: 750 | N82: 750 | O82: 1434.4 | P82: 2400 | Q82: 1300 | R82: 21823.4 | S82: 24640 | U82: 787.5 | V82: 8599.5 | W82: 2310 | X82: 787.5 | Y82: 787.5 | Z82: 1888.95 | AA82: 787.5 | AB82: 787.5 | AC82: 787.5 | AD82: 1506.12 | AE82: 2520 | AF82: 1365 | AG82: 22914.57 | AH82: 19029.57 | AI82: 1909.5475
C83: 1224.75 | D83: ESTACIONAMIENTO | Q83: 15.33333333 | R83: 15.33333333 | S83: 1240.083333 | U83: 0 | V83: 0 | W83: 0 | X83: 0 | Y83: 0 | Z83: 0 | AA83: 0 | AB83: 0 | AC83: 0 | AD83: 0 | AE83: 0 | AF83: 16.1 | AG83: 16.1 | AH83: 0 | AI83: 1.341666667
C84: 67894.77 | D84: ARRENDAMIENTO | F84: 5287 | I84: 5034.97 | J84: 15104.91 | K84: 5034.97 | L84: 5034.97 | M84: 5034.97 | N84: 5034.97 | O84: 5034.97 | P84: 5034.97 | Q84: 3859.653333 | R84: =SUM(F84:Q84) -> 59496.35333 | S84: 59649.15333 | U84: 5287 | V84: 5287 | W84: 5287 | X84: 5287 | Y84: 5287 | Z84: 5287 | AA84: 5287 | AB84: 5287 | AC84: 5287 | AD84: 5287 | AE84: 5287 | AF84: 5287 | AG84: =SUM(U84:AF84) -> 63444 | AH84: 52870 | AI84: 5287
C85: 17578.94 | D85: HONORARIOS | F85: 9440.56 | G85: 9440.56 | H85: 9440.56 | I85: 9440.56 | J85: 9440.56 | L85: 9440.56 | M85: 18881.12 | N85: 18355.43 | Q85: 0 | R85: 93879.91 | S85: 17578.94 | T85: (6 | U85: 0 | V85: 0 | W85: 0 | X85: 0 | Y85: 0 | Z85: 0 | AA85: 0 | AB85: 0 | AC85: 0 | AD85: 0 | AE85: 0 | AF85: 0 | AG85: =SUM(U85:AF85) -> 0 | AH85: 0 | AI85: 0
C86: 486905.48 | D86: MANTENIMIENTO. | F86: 26230.73 | G86: 52240.29 | H86: 51873.37 | I86: 57356.86 | J86: 105883.48 | K86: 42587.2 | L86: 84711.78 | M86: 63783.99 | N86: 168695.75 | O86: 107119.52 | P86: 66822.12 | Q86: 54393.58333 | R86: 881698.6733 | S86: 652723 | T86: (7 | U86: 27542.2665 | V86: 54852.3045 | W86: 54467.0385 | X86: 60224.703 | Y86: 111177.654 | Z86: 44716.56 | AA86: 88947.369 | AB86: 66973.1895 | AC86: 177130.5375 | AD86: 112475.496 | AE86: 70163.226 | AF86: 57113.2625 | AG86: 925783.607 | AH86: 798507.1185 | AI86: 77148.63392
C87: 41577.91 | D87: PAPELERIA Y COPIAS | F87: 8375.93 | G87: 2816.72 | H87: 1115.2 | I87: 6720.76 | J87: 1092.78 | K87: 2482.48 | L87: 5943.02 | M87: 2938.04 | N87: 6938.66 | O87: 3210.54 | P87: 5864.61 | Q87: 7162.46 | R87: 54661.2 | S87: 48615.97 | U87: 8794.7265 | V87: 2957.556 | W87: 1170.96 | X87: 7056.798 | Y87: 1147.419 | Z87: 2606.604 | AA87: 6240.171 | AB87: 3084.942 | AC87: 7285.593 | AD87: 3371.067 | AE87: 6157.8405 | AF87: 7520.583 | AG87: 57394.26 | AH87: 43715.8365 | AI87: 4782.855
C88: 765940.33 | D88: SEGUROS Y FIANZAS | H88: 20633.61 | I88: 22566.95 | K88: 208543.01 | L88: 34771.96 | M88: 34771.97 | O88: 200036.57 | P88: 330208.37 | Q88: 147122.37 | R88: 998654.81 | S88: 913062.7 | T88: (8 | U88: 0 | V88: 0 | W88: 21665.2905 | X88: 23695.2975 | Y88: 0 | Z88: 218970.1605 | AA88: 36510.558 | AB88: 36510.5685 | AC88: 0 | AD88: 210038.3985 | AE88: 346718.7885 | AF88: 154478.4885 | AG88: 1048587.551 | AH88: 547390.2735 | AI88: 87382.29588
C89: 58396.2 | D89: UTILES Y GASTOS DE LIMPIEZA | F89: 9220 | G89: 5802 | H89: 13664 | I89: 851 | J89: 9646 | K89: 5949.3 | L89: 9640.5 | N89: 8107.8 | O89: 5726 | P89: 4275 | Q89: 7083.333333 | R89: 79964.93333 | S89: 85000 | U89: 9681 | V89: 6092.1 | W89: 14347.2 | X89: 893.55 | Y89: 10128.3 | Z89: 6246.765 | AA89: 10122.525 | AB89: 0 | AC89: 8513.19 | AD89: 6012.3 | AE89: 4488.75 | AF89: 7437.5 | AG89: 83963.18 | AH89: 72036.93 | AI89: 6996.931667
C90: 59765.16 | D90: GASTOS DE VIAJE | F90: 708 | G90: 838 | H90: 2602.57 | J90: 28693.22 | L90: 3877.22 | N90: 3241.43 | O90: 85 | Q90: 3635.436667 | R90: 43680.87667 | S90: 46443.28667 | U90: 743.4 | V90: 879.9 | W90: 2732.6985 | X90: 0 | Y90: 30127.881 | Z90: 0 | AA90: 4071.081 | AB90: 0 | AC90: 3403.5015 | AD90: 89.25 | AE90: 0 | AF90: 3817.2085 | AG90: 45864.9205 | AH90: 42047.712 | AI90: 3822.076708
C91: 0 | D91: FLETES Y ACARREOS | Q91: 0 | R91: 0 | S91: 0 | U91: 0 | V91: 0 | W91: 0 | X91: 0 | Y91: 0 | Z91: 0 | AA91: 0 | AB91: 0 | AC91: 0 | AD91: 0 | AE91: 0 | AF91: 0 | AG91: 0 | AH91: 0 | AI91: 0
C92: 60072.68 | D92: NO DEDUCIBLES. | F92: 1000 | G92: 2920.79 | H92: 4666.13 | I92: 1233.8 | J92: 564.57 | K92: 1546.9 | L92: 3154.66 | M92: 98 | N92: 271.64 | O92: 730 | P92: 127.7 | Q92: 15848.96 | R92: 32163.15 | S92: 71846.95 | U92: 1050 | V92: 3066.8295 | W92: 4899.4365 | X92: 1295.49 | Y92: 592.7985 | Z92: 1624.245 | AA92: 3312.393 | AB92: 102.9 | AC92: 285.222 | AD92: 766.5 | AE92: 134.085 | AF92: 16641.408 | AG92: 33771.3075 | AH92: 16995.8145 | AI92: 2814.275625
C93: 1699 | D93: PUBLICIDAD | Q93: 566.3333333 | R93: 566.3333333 | S93: 2265.333333 | U93: 0 | V93: 0 | W93: 0 | X93: 0 | Y93: 0 | Z93: 0 | AA93: 0 | AB93: 0 | AC93: 0 | AD93: 0 | AE93: 0 | AF93: 594.65 | AG93: 594.65 | AH93: 0 | AI93: 49.55416667
C94: 0 | D94: VARIOS | F94: 121.8 | Q94: 0 | R94: 121.8 | S94: 0 | U94: 127.89 | V94: 0 | W94: 0 | X94: 0 | Y94: 0 | Z94: 0 | AA94: 0 | AB94: 0 | AC94: 0 | AD94: 0 | AE94: 0 | AF94: 0 | AG94: 127.89 | AH94: 127.89 | AI94: 10.6575
C95: 15090 | D95: BOLETOS TAQUILLA | J95: 640 | Q95: 0 | R95: 640 | S95: 1090 | U95: 0 | V95: 0 | W95: 0 | X95: 0 | Y95: 672 | Z95: 0 | AA95: 0 | AB95: 0 | AC95: 0 | AD95: 0 | AE95: 0 | AF95: 0 | AG95: 672 | AH95: 672 | AI95: 56
C96: 0 | D96: GUIAS Y FOLLETOS | Q96: 0 | R96: 0 | S96: 0 | U96: 0 | V96: 0 | W96: 0 | X96: 0 | Y96: 0 | Z96: 0 | AA96: 0 | AB96: 0 | AC96: 0 | AD96: 0 | AE96: 0 | AF96: 0 | AG96: 0 | AH96: 0 | AI96: 0
C97: 61.2 | D97: RELACIONES PUBLICAS | P97: 183.98 | Q97: 0 | R97: 183.98 | S97: 61.2 | U97: 0 | V97: 0 | W97: 0 | X97: 0 | Y97: 0 | Z97: 0 | AA97: 0 | AB97: 0 | AC97: 0 | AD97: 0 | AE97: 193.179 | AF97: 0 | AG97: 193.179 | AH97: 0 | AI97: 16.09825
C98: 0 | D98: GASTOS P/OBTENCION DE DONATIVOS | Q98: 0 | R98: 0 | S98: 0 | U98: 0 | V98: 0 | W98: 0 | X98: 0 | Y98: 0 | Z98: 0 | AA98: 0 | AB98: 0 | AC98: 0 | AD98: 0 | AE98: 0 | AF98: 0 | AG98: 0 | AH98: 0 | AI98: 0
C99: 19496.25 | D99: COMISIONES BANCARIAS. | F99: 34.8 | G99: =8957.52 -> 8957.52 | H99: 2106.56 | I99: =1686.12 -> 1686.12 | K99: 3419.72 | L99: 1927.31 | M99: 24 | N99: 4229.47 | O99: 2298.46 | P99: 2358.79 | Q99: 2110.703333 | R99: 29153.45333 | S99: 19727.40333 | U99: 36.54 | V99: 9405.396 | W99: 2211.888 | X99: 1770.426 | Y99: 0 | Z99: 3590.706 | AA99: 2023.6755 | AB99: 25.2 | AC99: 4440.9435 | AD99: 2413.383 | AE99: 2476.7295 | AF99: 2216.2385 | AG99: 30611.126 | AH99: 25918.158 | AI99: 2550.927167
C100: 0 | D100: RENTA DE MOBILIARIO | Q100: 0 | R100: 0 | S100: 0 | U100: 0 | V100: 0 | W100: 0 | X100: 0 | Y100: 0 | Z100: 0 | AA100: 0 | AB100: 0 | AC100: 0 | AD100: 0 | AE100: 0 | AF100: 0 | AG100: 0 | AH100: 0 | AI100: 0
C101: 220 | D101: LAVANDERIA | F101: 87 | I101: 140.36 | J101: 336 | L101: 150 | N101: 320 | P101: 240 | Q101: 30 | R101: 1303.36 | S101: 160 | U101: 91.35 | V101: 0 | W101: 0 | X101: 147.378 | Y101: 352.8 | Z101: 0 | AA101: 157.5 | AB101: 0 | AC101: 336 | AD101: 0 | AE101: 252 | AF101: 31.5 | AG101: 1368.528 | AH101: 1085.028 | AI101: 114.044
C102: 12538 | D102: DONATIVOS | Q102: 4179.333333 | R102: 4179.333333 | S102: 16717.33333 | U102: 0 | V102: 0 | W102: 0 | X102: 0 | Y102: 0 | Z102: 0 | AA102: 0 | AB102: 0 | AC102: 0 | AD102: 0 | AE102: 0 | AF102: 4388.3 | AG102: 4388.3 | AH102: 0 | AI102: 365.6916667
C103: 10087 | D103: MULTAS Y RECARGOS | H103: 677 | N103: 948 | O103: 824 | Q103: 0 | R103: 2449 | S103: 3234 | U103: 0 | V103: 0 | W103: 710.85 | X103: 0 | Y103: 0 | Z103: 0 | AA103: 0 | AB103: 0 | AC103: 995.4 | AD103: 865.2 | AE103: 0 | AF103: 0 | AG103: 2571.45 | AH103: 2571.45 | AI103: 214.2875
C104: 2970 | D104: SEGURIDAD | M104: 5460 | O104: 1790 | Q104: 16760 | R104: 24010 | S104: 201120 | U104: 0 | V104: 0 | W104: 0 | X104: 0 | Y104: 0 | Z104: 0 | AA104: 0 | AB104: 5733 | AC104: 0 | AD104: 1879.5 | AE104: 0 | AF104: 17598 | AG104: 25210.5 | AH104: 7612.5 | AI104: 2100.875
C105: 0 | D105: EQUIPO DE COMPUTO | P105: 3470 | Q105: 0 | R105: 3470 | S105: 0 | U105: 0 | V105: 0 | W105: 0 | X105: 0 | Y105: 0 | Z105: 0 | AA105: 0 | AB105: 0 | AC105: 0 | AD105: 0 | AE105: 3643.5 | AF105: 0 | AG105: 3643.5 | AH105: 0 | AI105: 303.625
C106: 0 | D106: GASTOS MEDICOS | N106: 1932.08 | Q106: 0 | R106: 1932.08 | S106: 0 | U106: 0 | V106: 0 | W106: 0 | X106: 0 | Y106: 0 | Z106: 0 | AA106: 0 | AB106: 0 | AC106: 2028.684 | AD106: 0 | AE106: 0 | AF106: 0 | AG106: 2028.684 | AH106: 2028.684 | AI106: 169.057
C107: 881177.57 | D107: IVA ACREDITABLE | F107: 68366.24 | G107: 62336.45 | H107: =113317.65-8000 -> 105317.65 | I107: =115575.45-19427.02 -> 96148.43 | J107: =93193.07-22708.63 -> 70484.44 | K107: =138455.23-617.39-12443.87 -> 125393.97 | L107: =142801.1-63340.38 -> 79460.72 | M107: =151424.02-69435.03 -> 81988.99 | N107: =175470.22-90076.01 -> 85394.21 | O107: =159563.86-59650.73 -> 99913.13 | P107: =170560.02-75156 -> 95404.02 | Q107: 108160.8433 | R107: =SUM(F107:Q107) -> 1078369.093 | S107: 912949.1433 | U107: 71784.552 | V107: 65453.2725 | W107: 110583.5325 | X107: 100955.8515 | Y107: 74008.662 | Z107: 131663.6685 | AA107: 83433.756 | AB107: 86088.4395 | AC107: 89663.9205 | AD107: 104908.7865 | AE107: 100174.221 | AF107: 113568.8855 | AG107: =SUM(U107:AF107) -> 1132287.548 | AH107: 918544.4415 | AI107: 94357.29567
D108: GASTOS POR EVENTOS | F108: 13200 | I108: 12554 | P108: 116250 | Q108: 62433 | R108: =SUM(F108:Q108) -> 204437 | S108: 554520 | U108: 13860 | V108: 0 | W108: 0 | X108: 13181.7 | Y108: 0 | Z108: 0 | AA108: 0 | AB108: 0 | AC108: 0 | AD108: 0 | AE108: 122062.5 | AF108: 65554.65 | AG108: =SUM(U108:AF108) -> 214658.85 | AH108: 27041.7 | AI108: 17888.2375
C109: 10115423.91 | D109: TOTAL GASTOS DE OPERACIÓN | F109: =SUM(F66:F108) -> 775501.72 | G109: 697037.53 | H109: 874326.24 | I109: 841975.76 | J109: 957949.57 | K109: 1028309.89 | L109: 1060293.73 | M109: 852511.07 | N109: 1075684.85 | O109: 1126034.72 | P109: 1286926.25 | Q109: 1432566.705 | R109: 12009118.04 | S109: 12072721.93 | U109: =SUM(U66:U108) -> 719335.402 | V109: 856400.6039 | W109: 879286.6697 | X109: 926455.26 | Y109: 871837.1663 | Z109: 1231523.696 | AA109: 955393.7537 | AB109: 1022085.354 | AC109: 1038376.613 | AD109: 1237262.291 | AE109: 1271895.24 | AF109: 1721300.458 | AG109: 12731152.51 | AH109: 9737956.809 | AI109: 1060929.375
AH110: 0 | AI110: 0
D111: PROYECTOS ESPECIFICOS | AH111: 0 | AI111: 0
B112: 1 | C112: 530680.06 | D112: MUSEOGRAFIA | F112: 87914.68 | G112: 2845.43 | H112: 44889.86 | I112: 3635.58 | J112: 47173.94 | K112: 158320 | L112: 20000 | M112: 20000 | N112: 28775.37 | O112: 54793.92 | P112: 28321.68 | Q112: 43067.67 | R112: =SUM(F112:Q112) -> 539738.13 | S112: 516812 | U112: =+AG112/12 -> 83333.33333 | V112: =+AG112/12 -> 83333.33333 | W112: =+AG112/12 -> 83333.33333 | X112: =+AG112/12 -> 83333.33333 | Y112: =+AG112/12 -> 83333.33333 | Z112: =+AG112/12 -> 83333.33333 | AA112: =+AG112/12 -> 83333.33333 | AB112: =+AG112/12 -> 83333.33333 | AC112: =+AG112/12 -> 83333.33333 | AD112: =+AG112/12 -> 83333.33333 | AE112: =+AG112/12 -> 83333.33333 | AF112: =+AG112/12 -> 83333.33333 | AG112: 1000000 | AH112: 833333.3333 | AI112: 83333.33333
B113: 2 | C113: 692001.62 | D113: CURADURIA | F113: =52492.39+45770.15 -> 98262.54 | G113: =51526.46+82955.99 -> 134482.45 | H113: =24491+296206.68 -> 320697.68 | I113: =30316.72+28029.81 -> 58346.53 | J113: 74188.73 | K113: =41028.04-3858.71 -> 37169.33 | L113: =17084.08+19869.61 -> 36953.69 | M113: 16787.83 | N113: 38866.17 | O113: 35060.04 | P113: 9612.83 | Q113: 48205 | R113: 908632.82 | S113: 618960 | T113: (9 | U113: 62500 | V113: 62500 | W113: 62500 | X113: 62500 | Y113: 62500 | Z113: 62500 | AA113: 62500 | AB113: 62500 | AC113: 62500 | AD113: 62500 | AE113: 62500 | AF113: 62500 | AG113: 750000 | AH113: 625000 | AI113: 62500
C114: 84370 | D114: SERVICIOS EDUCATIVOS | F114: 11968.43 | G114: 4539.54 | H114: 26407.89 | I114: 41882.56 | J114: 12053.61 | K114: 22791.84 | L114: 12265.81 | M114: 18581.05 | N114: 11517.22 | O114: 7608.32 | P114: 5909.07 | Q114: 34916.67 | R114: 210442.01 | S114: 419000 | U114: 60833.33333 | V114: 60833.33333 | W114: 60833.33333 | X114: 60833.33333 | Y114: 60833.33333 | Z114: 60833.33333 | AA114: 60833.33333 | AB114: 60833.33333 | AC114: 60833.33333 | AD114: 60833.33333 | AE114: 60833.33333 | AF114: 60833.33333 | AG114: 730000 | AH114: 608333.3333 | AI114: 60833.33333
C115: 2957.9 | D115: GASTOS BIBLIOTECA. | G115: 495.92 | H115: 1115 | I115: 1240 | M115: 87 | P115: 533.6 | Q115: 1296.67 | R115: 4768.19 | S115: 15560 | U115: 4166.666667 | V115: 4166.666667 | W115: 4166.666667 | X115: 4166.666667 | Y115: 4166.666667 | Z115: 4166.666667 | AA115: 4166.666667 | AB115: 4166.666667 | AC115: 4166.666667 | AD115: 4166.666667 | AE115: 4166.666667 | AF115: 4166.666667 | AG115: 50000 | AH115: 41666.66667 | AI115: 4166.666667
C116: 355240.39 | D116: GASTOS DE EXPOSICIONES | F116: 15832.15 | G116: 2456.41 | H116: 1950.42 | I116: 35058.19 | J116: 45300.92 | K116: 137178.28 | L116: 85127.13 | M116: 135600 | N116: 78424.5 | O116: 24723.2 | P116: 10235.21 | R116: 571886.41 | S116: 143938 | T116: (10 | U116: 50000 | V116: 50000 | W116: 50000 | X116: 50000 | Y116: 50000 | Z116: 50000 | AA116: 50000 | AB116: 50000 | AC116: 50000 | AD116: 50000 | AE116: 50000 | AF116: 50000 | AG116: 600000 | AH116: 500000 | AI116: 50000
C117: 258875.74 | D117: COMUNICACIÓN Y DIFUSION | F117: 14758.39 | G117: 44347.06 | H117: 51910.41 | I117: 26277.24 | J117: 42845.91 | K117: 52709.93 | L117: 52814.82 | M117: 41682.21 | N117: 32316.36 | O117: 30908.96 | P117: 23327.68 | Q117: 69840.58 | R117: 483739.55 | S117: 838087 | U117: 45833.33333 | V117: 45833.33333 | W117: 45833.33333 | X117: 45833.33333 | Y117: 45833.33333 | Z117: 45833.33333 | AA117: 45833.33333 | AB117: 45833.33333 | AC117: 45833.33333 | AD117: 45833.33333 | AE117: 45833.33333 | AF117: 45833.33333 | AG117: 550000 | AH117: 458333.3333 | AI117: 45833.33333
C118: 375 | D118: PROCURACION DE FONDOS | Q118: 4166.67 | R118: 4166.67 | S118: 50000 | AG118: =SUM(U118:AF118) -> 0 | AH118: 0 | AI118: 0
C119: 458955.35 | D119: CONGRESO INTERNACIONAL | F119: 16783.22 | R119: 16783.22 | T119: (13 | AH119: 0 | AI119: 0
C120: 156211.03 | D120: PROYECTO BANCAS | F120: 70693.36 | G120: 65773.04 | H120: 41118.36 | I120: 6034 | J120: 11336 | R120: 194954.76 | T120: (11 | AH120: 0 | AI120: 0
D121: GASTOS FINANCIEROS | I121: 6965 | J121: 2941.58 | K121: 2877.54 | L121: 2771.1 | M121: 2663.14 | N121: 2553.66 | O121: 2442.56 | P121: 2329.89 | Q121: 2330 | R121: 27874.47 | T121: (12 | AH121: 0 | AI121: 0
C122: 2539667.09 | D122: TOTAL PROYECTOS ESPECIFICOS | F122: =SUM(F112:F121) -> 316212.77 | G122: 254939.85 | H122: 488089.62 | I122: 179439.1 | J122: 235840.69 | K122: 411046.92 | L122: 209932.55 | M122: =SUM(M112:M121) -> 235401.23 | N122: 192453.28 | O122: 155537 | P122: 80269.96 | Q122: 203823.26 | R122: 2962986.23 | S122: =SUM(S112:S121) -> 2602357 | U122: =+AG122/12 -> 306666.6667 | V122: =+AG122/12 -> 306666.6667 | W122: =+AG122/12 -> 306666.6667 | X122: 270833 | Y122: 270833 | Z122: 270833 | AA122: 270833 | AB122: 270833 | AC122: 270833 | AD122: 270833 | AE122: 270833 | AF122: 270833 | AG122: =SUM(AG112:AG121) -> 3680000 | AH122: =SUM(AH112:AH121) -> 3066666.667 | AI122: 306666.6667
C123: 13925299.27 | D123: TOTAL GASTOS | F123: =+F62+F109+F122 -> 1146660.85 | G123: 1004561.88 | H123: 1422435.63 | I123: 1076881.38 | J123: 1252917.67 | K123: 1505756.67 | L123: 1334539.33 | M123: 1149430.76 | N123: 1331173.7 | O123: 1330156.65 | P123: 1429980.63 | Q123: 1755710.515 | R123: 15740205.67 | S123: 15435962.93 | U123: =+U62+U109+U122 -> 1078543.809 | V123: 1234720.811 | W123: 1242555.101 | X123: 1269035.533 | Y123: 1196639.486 | Z123: 1585583.977 | AA123: 1285640.996 | AB123: 1371382.519 | AC123: 1367112.653 | AD123: 1573107.549 | AE123: 1600759.779 | AF123: 2134074.713 | AG123: 17261659.92 | AH123: 13455158.1 | AI123: 1438471.66
AH124: 0 | AI124: 0
C125: =+C44-C123 -> -647550.716 | D125: UTILIDAD DE OPERACIÓN | F125: =+F44-F123 ->  | R125: 2372794.944 | S125: -1811670.584 | U125: =+U44-U123 -> 2685497.858 | V125: 2529320.856 | W125: 2521486.566 | X125: 2436672.8 | Y125: 2509068.847 | Z125: 2120124.357 | AA125: 2420067.338 | AB125: 2334325.814 | AC125: 2338595.681 | AD125: 2132600.784 | AE125: 2104948.555 | AF125: 1571633.62 | AG125: 27906840.08 | AH125: =+AH44-AH123 -> 23776925.23 | AI125: 2325570.006
AH126: 0 | AI126: 0
D127: CONSTRUCCION EDIFICIO RUSSEK (INCLUYE LOCALES COMERCIALES) | AH127: 0 | AI127: 0
B128: 1 | C128: 411735.64 | D128: ADMINISTRACION DE OBRA | L128: 50.8 | R128: =SUM(F128:Q128) -> 50.8 | U128: =+AG128/12 -> 36928.66667 | V128: =+AG128/12 -> 36928.66667 | W128: =+AG128/12 -> 36928.66667 | X128: =+AG128/12 -> 36928.66667 | Y128: =+AG128/12 -> 36928.66667 | Z128: =+AG128/12 -> 36928.66667 | AA128: =+AG128/12 -> 36928.66667 | AB128: =+AG128/12 -> 36928.66667 | AC128: =+AG128/12 -> 36928.66667 | AD128: =+AG128/12 -> 36928.66667 | AE128: =+AG128/12 -> 36928.66667 | AF128: =+AG128/12 -> 36928.66667 | AG128: 443144 | AH128: 369286.6667 | AI128: 36928.66667
B129: 2 | D129: ESTRUCTURA METALICA | U129: =+AG129/12 -> 66729.16667 | V129: =+AG129/12 -> 66729.16667 | W129: =+AG129/12 -> 66729.16667 | X129: =+AG129/12 -> 66729.16667 | Y129: =+AG129/12 -> 66729.16667 | Z129: =+AG129/12 -> 66729.16667 | AA129: =+AG129/12 -> 66729.16667 | AB129: =+AG129/12 -> 66729.16667 | AC129: =+AG129/12 -> 66729.16667 | AD129: =+AG129/12 -> 66729.16667 | AE129: =+AG129/12 -> 66729.16667 | AF129: =+AG129/12 -> 66729.16667 | AG129: 800750 | AH129: 667291.6667 | AI129: 66729.16667
B130: 3 | D130: INGENIERIA ELECTRICA ILUMINACION | U130: =+AG130/12 -> 159418.8333 | V130: =+AG130/12 -> 159418.8333 | W130: =+AG130/12 -> 159418.8333 | X130: =+AG130/12 -> 159418.8333 | Y130: =+AG130/12 -> 159418.8333 | Z130: =+AG130/12 -> 159418.8333 | AA130: =+AG130/12 -> 159418.8333 | AB130: =+AG130/12 -> 159418.8333 | AC130: =+AG130/12 -> 159418.8333 | AD130: =+AG130/12 -> 159418.8333 | AE130: =+AG130/12 -> 159418.8333 | AF130: =+AG130/12 -> 159418.8333 | AG130: 1913026 | AH130: 1594188.333 | AI130: 159418.8333
B131: 4 | D131: INST. HIDRAULICA Y SANITARIA | L131: 20750 | M131: 3100 | N131: 19585.6 | O131: 66261.83 | P131: 17896.76 | R131: =SUM(F131:Q131) -> 127594.19 | U131: 36240.41667 | V131: 36240.41667 | W131: 36240.41667 | X131: 36240.41667 | Y131: 36240.41667 | Z131: 36240.41667 | AA131: 36240.41667 | AB131: 36240.41667 | AC131: 36240.41667 | AD131: 36240.41667 | AE131: 36240.41667 | AF131: 36240.41667 | AG131: 434885 | AH131: 362404.1667 | AI131: 36240.41667
B132: 5 | C132: 49316.99 | D132: OBRA CIVIL | H132: 50000 | I132: 121418.88 | J132: 141928.92 | K132: 72170.75 | L132: 350858.35 | M132: 430868.94 | N132: 496553.14 | O132: 239531.45 | P132: 350748.27 | R132: =SUM(F132:Q132) -> 2254078.7 | U132: 423571.1667 | V132: 423571.1667 | W132: 423571.1667 | X132: 423571.1667 | Y132: 423571.1667 | Z132: 423571.1667 | AA132: 423571.1667 | AB132: 423571.1667 | AC132: 423571.1667 | AD132: 423571.1667 | AE132: 423571.1667 | AF132: 423571.1667 | AG132: 5082854 | AH132: 4235711.667 | AI132: 423571.1667
B133: 6 | D133: INSTALACIONES ELECTRONICAS | K133: 5603.45 | L133: 23218.2 | R133: =SUM(F133:Q133) -> 28821.65 | U133: 107122.25 | V133: 107122.25 | W133: 107122.25 | X133: 107122.25 | Y133: 107122.25 | Z133: 107122.25 | AA133: 107122.25 | AB133: 107122.25 | AC133: 107122.25 | AD133: 107122.25 | AE133: 107122.25 | AF133: 107122.25 | AG133: 1285467 | AH133: 1071222.5 | AI133: 107122.25
B134: 7 | D134: CARPINTERIA | U134: 294287.75 | V134: 294287.75 | W134: 294287.75 | X134: 294287.75 | Y134: 294287.75 | Z134: 294287.75 | AA134: 294287.75 | AB134: 294287.75 | AC134: 294287.75 | AD134: 294287.75 | AE134: 294287.75 | AF134: 294287.75 | AG134: 3531453 | AH134: 2942877.5 | AI134: 294287.75
B135: 8 | D135: VIDRIO Y CRISTAL | U135: 111271.9167 | V135: 111271.9167 | W135: 111271.9167 | X135: 111271.9167 | Y135: 111271.9167 | Z135: 111271.9167 | AA135: 111271.9167 | AB135: 111271.9167 | AC135: 111271.9167 | AD135: 111271.9167 | AE135: 111271.9167 | AF135: 111271.9167 | AG135: 1335263 | AH135: 1112719.167 | AI135: 111271.9167
B136: 9 | D136: MONTACARGAS, ELEVADOR Y AIRE ACONDICIONADO | N136: 46836.35 | O136: 58023.78 | P136: 36868.2 | R136: =SUM(F136:Q136) -> 141728.33 | U136: 166948.0833 | V136: 166948.0833 | W136: 166948.0833 | X136: 166948.0833 | Y136: 166948.0833 | Z136: 166948.0833 | AA136: 166948.0833 | AB136: 166948.0833 | AC136: 166948.0833 | AD136: 166948.0833 | AE136: 166948.0833 | AF136: 166948.0833 | AG136: 2003377 | AH136: 1669480.833 | AI136: 166948.0833
B137: 10 | D137: FACHADA | U137: 70621.5 | V137: 70621.5 | W137: 70621.5 | X137: 70621.5 | Y137: 70621.5 | Z137: 70621.5 | AA137: 70621.5 | AB137: 70621.5 | AC137: 70621.5 | AD137: 70621.5 | AE137: 70621.5 | AF137: 70621.5 | AG137: 847458 | AH137: 706215 | AI137: 70621.5
B138: 11 | D138: AMPLIACION SOTANO | U138: 75000 | V138: 75000 | W138: 75000 | X138: 75000 | Y138: 75000 | Z138: 75000 | AA138: 75000 | AB138: 75000 | AC138: 75000 | AD138: 75000 | AE138: 75000 | AF138: 75000 | AG138: 900000 | AH138: 750000 | AI138: 75000
D139: AIRE ACONDICIONADO | L139: 1000 | P139: 6000 | R139: =SUM(F139:Q139) -> 7000 | U139: 0 | V139: 0 | W139: 0 | X139: 0 | Y139: 0 | Z139: 0 | AA139: 0 | AB139: 0 | AC139: 0 | AD139: 0 | AE139: 0 | AF139: 0 | AH139: 0 | AI139: =+AG139/12 -> 0
D140: ELEVADOR | O140: 9000 | P140: 4000 | R140: =SUM(F140:Q140) -> 13000 | U140: 0 | V140: 0 | W140: 0 | X140: 0 | Y140: 0 | Z140: 0 | AA140: 0 | AB140: 0 | AC140: 0 | AD140: 0 | AE140: 0 | AF140: 0 | AH140: 0 | AI140: 0
D141: HERRERIA | P141: 5850 | R141: =SUM(F141:Q141) -> 5850 | U141: 0 | V141: 0 | W141: 0 | X141: 0 | Y141: 0 | Z141: 0 | AA141: 0 | AB141: 0 | AC141: 0 | AD141: 0 | AE141: 0 | AF141: 0 | AH141: =+U141+V141+W141+X141+Y141+Z141+AA141+AB141+AC141+AD141 -> 0 | AI141: 0
D142: PUENTES | P142: 48365.25 | R142: =SUM(F142:Q142) -> 48365.25 | U142: 0 | V142: 0 | W142: 0 | X142: 0 | Y142: 0 | Z142: 0 | AA142: 0 | AB142: 0 | AC142: 0 | AD142: 0 | AE142: 0 | AF142: 0 | AH142: 0 | AI142: 0
AH143: 0 | AI143: 0
C144: =SUM(C128:C143) -> 461052.63 | D144: SUBTOTAL | F144: =SUM(F128:F143) -> 0 | G144: =SUM(G128:G143) -> 0 | H144: 50000 | I144: 121418.88 | J144: 141928.92 | K144: 77774.2 | L144: 395877.35 | M144: 433968.94 | N144: 562975.09 | O144: 372817.06 | P144: 469728.48 | Q144: 0 | R144: 2626488.92 | S144: 0 | U144: =SUM(U128:U143) -> 1548139.75 | V144: =SUM(V128:V143) -> 1548139.75 | W144: 1548139.75 | X144: 1548139.75 | Y144: 1548139.75 | Z144: 1548139.75 | AA144: 1548139.75 | AB144: 1548139.75 | AC144: 1548139.75 | AD144: 1548139.75 | AE144: 1548139.75 | AF144: 1548139.75 | AG144: 18577677 | AH144: 15481397.5 | AI144: 1548139.75
D145: 16% DE IVA | U145: =+U144*0.16 -> 247702.36 | V145: =+V144*0.16 -> 247702.36 | W145: 247702.36 | X145: 247702.36 | Y145: 247702.36 | Z145: 247702.36 | AA145: 247702.36 | AB145: 247702.36 | AC145: 247702.36 | AD145: 247702.36 | AE145: 247702.36 | AF145: 247702.36 | AG145: 2972428 | AH145: 2477023.6 | AI145: 247702.3333
D146: TOTAL | U146: =+U144+U145 -> 1795842.11 | V146: =+V144+V145 -> 1795842.11 | W146: 1795842.11 | X146: 1795842.11 | Y146: 1795842.11 | Z146: 1795842.11 | AA146: 1795842.11 | AB146: 1795842.11 | AC146: 1795842.11 | AD146: 1795842.11 | AE146: 1795842.11 | AF146: 1795842.11 | AG146: =+AG144+AG145 -> 21550105 | AH146: 17958421.1 | AI146: 1795842.083
AH147: 0 | AI147: 0
D148: MUSEOGRAFIA | AH148: 0 | AI148: 0
D149: MUSEOGRAFIA DE LOS DOS NIVELES | U149: =+AG149/12 -> 250000 | V149: =+AG149/12 -> 250000 | W149: =+AG149/12 -> 250000 | X149: =+AG149/12 -> 250000 | Y149: =+AG149/12 -> 250000 | Z149: =+AG149/12 -> 250000 | AA149: =+AG149/12 -> 250000 | AB149: =+AG149/12 -> 250000 | AC149: =+AG149/12 -> 250000 | AD149: =+AG149/12 -> 250000 | AE149: =+AG149/12 -> 250000 | AF149: =+AG149/12 -> 250000 | AG149: 3000000 | AH149: 2500000 | AI149: 250000
AH150: 0 | AI150: 0
D151: 16% DE IVA | U151: =+U149*0.16 -> 40000 | V151: 40000 | W151: 40000 | X151: 40000 | Y151: 40000 | Z151: 40000 | AA151: 40000 | AB151: 40000 | AC151: 40000 | AD151: 40000 | AE151: 40000 | AF151: 40000 | AG151: 480000 | AH151: 400000 | AI151: 40000
D152: TOTAL | U152: =+U149+U151 -> 290000 | V152: =+V149+V151 -> 290000 | W152: 290000 | X152: 290000 | Y152: 290000 | Z152: 290000 | AA152: 290000 | AB152: 290000 | AC152: 290000 | AD152: 290000 | AE152: 290000 | AF152: 290000 | AG152: =+AG149+AG151 -> 3480000 | AH152: 2900000 | AI152: 290000
AH153: =+U153+V153+W153+X153+Y153+Z153+AA153+AB153+AC153 -> 0 | AI153: 0
D154: TOTAL CONSTRUCCION DE EDIF. RUSSEK Y MUSEOGRAFIA INCLUYENDO IVA | U154: =+U146+U152 -> 2085842.11 | V154: 2085842.11 | W154: 2085842.11 | X154: 2085842.11 | Y154: 2085842.11 | Z154: 2085842.11 | AA154: 2085842.11 | AB154: 2085842.11 | AC154: 2085842.11 | AD154: 2085842.11 | AE154: 2085842.11 | AF154: 2085842.11 | AG154: 25030105 | AH154: =+U154+V154+W154+X154+Y154+Z154+AA154+AB154+AC154+AD154 -> 20858421.1
AH156: =+U156+V156+W156+X156+Y156 -> 0
C157: =+C125-C144 -> -1108603.346 | D157: REMANENTE PARA USARSE EN GASTOS DE OPERACIÓN 2012 | F157: =+F125-F144 ->  | R157: -253693.9755 | S157: -1811670.584 | U157: =+U125-U154 -> 599655.748 | V157: =+V125-V154 -> 443478.7461 | W157: 435644.4557 | X157: 350830.6898 | Y157: 423226.7371 | Z157: 34282.24658 | AA157: 334225.2276 | AB157: 248483.7041 | AC157: 252753.5708 | AD157: 46758.67418 | AE157: 19106.44483 | AF157: -514208.49 | AG157: =+AG125-AG154 -> 2876735.075 | AH157: =+AH125-AH154 -> 2918504.133 | AI157: =+AI125-AI154 -> 2325570.006 | AJ157: =18595885+2954395 -> 21550280
AH158: =+U158+V158+W158+X158+Y158 -> 0
U159: -2264705.829 | V159: -2420882.831 | W159: -2428717.121 | X159: -1024364.554 | Y159: -2451968.506 | Z159: -4340912.997 | AA159: -4040970.016 | AB159: -4126711.539 | AC159: -4122441.673 | AD159: -3828436.569 | AE159: -2856088.799 | AF159: -3385974.373 | AG159: 2237825.195 | AH159: =+U159+V159+W159+X159+Y159 -> -10590638.84
E161: 1 | R161: VIAJES ROSARIO RAMOS A HOUSTON-LOS ANGELES-SHANGAI
E162: =+E161+1 -> 2 | R162: ANUNCIO PERODICO CONDOLENCIAS | AG162: =+AG157/12 -> 239727.9229
E163: =+E162+1 -> 3 | R163: AUMENTO PERSONAL COM Y DIFUSION, SERV. EDUCATIVOS.
E164: 4 | R164: AUMENTO PERSONAL COM Y DIFUSION, SERV. EDUCATIVOS.
E165: 5 | R165: AUMENTO PERSONAL COM Y DIFUSION, SERV. EDUCATIVOS.
E166: 6 | R166: HONORARIOS SERGIO GARZA (COORDINADOR DE PROYECTOS)
E167: 7 | R167: LONA $105,000, MTTO BIMESTRAL EQ. AIRE $ 243,829
E168: 8 | R168: MULTIPLE EMPRESARIAL $ 200,036, SEGURO MUSEO $ 208,543, GASTOS MEDICOS $ 399,750
E169: 9 | R169: RESTAURACION CASA AROCENA
E170: 10 | R170: EXPOSICIONES: CASINO 100, ANTONIETA RIVAS, PREAMBULO III
E171: 11 | R171: LOS INGRESOS DE BANCAS ENTRARON EN 2009 COMO DONATIVOS
E172: 12 | R172: FINANCIEMIENTO COMPPRA CAMIONETA
E173: 13 | R173: HONORARIOS X COORDINACION INTERCOM SERGIO GARZA

Sheet estado actividades (2) (hidden)
C1: Centro Cultural Arocena Laguna, AC
D3: ESTADO DE ACTIVIDADES
D4: POR EL PERIODO DEL 1o DE ENERO AL 31 DE DICIEMBRE DE 2010
W5: 4 | X5: 4 | Y5: 5 | Z5: 4 | AA5: 4 | AB5: 5 | AC5: 4 | AD5: 4 | AE5: 5 | AF5: 4 | AG5: 4 | AH5: 5
C7: REAL ACUM | R7: REAL ACUM | S7: PRES ACUM | AI7: PRES ACUM
C8: DIC 2009 | D8: CONCEPTO | F8: 2010-01-01 | G8: 2010-02-01 | H8: 2010-03-01 | I8: 2010-04-01 | J8: 2010-05-01 | K8: 2010-06-01 | L8: 2010-07-01 | M8: 2010-08-01 | N8: 2010-09-01 | O8: 2010-10-01 | P8: 2010-11-01 | Q8: 2010-12-01 | R8: DIC 2010 | S8: DIC 2010 | U8: DIF | W8: 2011-01-01 | X8: 2011-02-01 | Y8: 2011-03-01 | Z8: 2011-04-01 | AA8: 2011-05-01 | AB8: 2011-06-01 | AC8: 2011-07-01 | AD8: 2011-08-01 | AE8: 2011-09-01 | AF8: 2011-10-01 | AG8: 2011-11-01 | AH8: 2011-12-01 | AI8: DIC 2011
D10: INGRESOS
C12: 378618 | D12: TAQUILLA | F12: 20010 | G12: 16725 | H12: 37675 | I12: 30315 | J12: 14230 | K12: 11865 | L12: 23195 | M12: 22010 | N12: 20930 | O12: 17145 | P12: 21200 | Q12: 36546.67 | R12: =SUM(F12:Q12) -> 271846.67 | S12: 390530 | U12: =+R12-S12 -> -118683.33 | AI12: 400000
C13: 0 | D13: RESTAURANT | R13: 0 | U13: =+R13-S13 -> 0 | AI13: =SUM(W13:AH13) -> 0
C14: 23533.57 | D14: LIBRERÍA | M14: =4441.63+2955.36 -> 7396.99 | Q14: 3215.59 | R14: 10612.58 | S14: 19725 | T14: EDUCAL6 % S VENTAS | U14: -9112.42 | AI14: 15000
C15: 5429.4 | D15: VENTA LIBROS | I15: 9573 | K15: 5550 | L15: 2904.3 | M15: 1423.8 | N15: 2713 | R15: 22164.1 | S15: 5429 | U15: 16735.1 | AI15: 20000
D16: RENTA DE ESPACIOS: | U16: 0
C17: 0 | D17: RESTAURANT | R17: 0 | U17: 0 | AI17: =SUM(W17:AH17) -> 0
C18: 744158.53 | D18: PLAZA | F18: 8000 | G18: =23900+2397 -> 26297 | H18: 2500 | I18: =3000+10038+1500 -> 14538 | J18: 20534.48 | K18: 2500 | M18: 11800 | N18: =88640+10000 -> 98640 | O18: =53019.75+8000 -> 61019.75 | P18: 30172.4 | Q18: 115276.67 | R18: 391278.3 | S18: 746197 | T18: ALGUN EVENTO SE RENTA CON COMIDA | U18: -354918.7 | AI18: 500000
C19: 1304.35 | D19: IPADE (170,000 ANUALES) | R19: 0 | S19: 1304.35 | U19: -1304.35 | AI19: 0
C20: 4500 | D20: AUDITORIO | H20: 1000 | P20: =2672.4+2672.4+2586 -> 7930.8 | Q20: 1500 | R20: 10430.8 | S20: 6000 | U20: 4430.8 | AI20: 12000
C21: 0 | D21: SALON EJECUTIVO | R21: 0 | U21: 0 | AI21: 0
C22: 0 | D22: RENTA DE SILLAS | R22: 0 | U22: 0 | AI22: 0
U24: 0
C25: 85831.5 | D25: CURSOS | G25: 838.3 | H25: 2152 | I25: 1960 | J25: 5222 | K25: 23110 | L25: 33623 | M25: 25626 | N25: 1298 | O25: 17887.2 | P25: 4256 | Q25: 653.67 | R25: =SUM(F25:Q25) -> 116626.17 | S25: 74070 | U25: 42556.17 | AI25: 100000
C26: 54361.25 | D26: ESTACIONAMIENTO | G26: 8888.25 | H26: 5858.65 | I26: 4681.05 | J26: 5165.5 | K26: 6905.15 | L26: 3258.6 | M26: 8689.65 | N26: 4612.05 | O26: 5884.5 | P26: 6081.03 | Q26: 4262.32 | R26: 64286.75 | S26: 55521 | U26: 8765.75 | AI26: 70000
U27: 0
D28: DONATIVOS: | U28: 0
C29: 4150000 | D29: ESTADO (50% 2010 - 50% 2011) | F29: 7130000 | R29: 7130000 | T29: LALA $1,050,000, SEC DE FINANZAS $3,650.000 | AI29: 8000000
C30: 125000 | D30: MUNICIPIO | M30: =83333.33*6 -> 499999.98 | N30: =83333.33*2 -> 166666.66 | Q30: =83333.33*2 -> 166666.66 | R30: 833333.3 | S30: 1000000 | AI30: 10000000
C31: 1050000 | D31: FUNDACION LALA | G31: 500000 | K31: 500000 | R31: 1000000 | S31: 1000000 | AI31: 1000000
D32: JOSEFINA J. REYNOARD | H32: 1000000 | R32: 1000000 | AI32: =SUM(W32:AH32) -> 0
D33: BANCOMER | M33: 100000 | R33: 100000 | AI33: =SUM(W33:AH33) -> 0
C34: 5000000 | D34: FUNDACION AROCENA (17,050X 25%) | F34: 1000000 | M34: 1000000 | N34: 2000000 | O34: =500000+1000000 -> 1500000 | P34: 1500000 | R34: 7000000 | S34: 7000000 | T34: FUNDACION $5,000,000, INGENIOS $800,000 | AI34: 4262000
C35: 800000 | D35: INGENIOS | R35: 0 | AI35: =SUM(W35:AH35) -> 0
C36: 50000 | D36: SANTA MONICA | H36: 25000 | R36: 25000 | AI36: =SUM(W36:AH36) -> 0
C37: =472250+800 -> 473050 | D37: VARIOS | P37: 24900 | R37: 24900 | S37: =12291334-9000000 -> 3291334 | AI37: 30000
C38: =SUM(C29:C37) -> 11648050 | D38: TOTAL DONATIVOS: | F38: =SUM(F29:F37) -> 8130000 | G38: =SUM(G29:G37) -> 500000 | H38: 1025000 | I38: 0 | J38: 0 | K38: 500000 | L38: 0 | M38: 1599999.98 | N38: 2166666.66 | O38: 1500000 | P38: 1524900 | Q38: 166666.66 | R38: 17113233.3 | S38: 12291334 | U38: 4821899.3 | W38: =SUM(W29:W37) -> 0 | X38: =SUM(X29:X37) -> 0 | Y38: 0 | Z38: 0 | AA38: 0 | AB38: 0 | AC38: 0 | AD38: 0 | AE38: 0 | AF38: 0 | AG38: 0 | AH38: 0 | AI38: 23292000
U39: 0
C40: 0 | D40: MEMBRESIAS | R40: 0 | U40: 0 | AI40: =SUM(W40:AH40) -> 0
C41: 270146.17 | D41: INTERCOM | R41: 0 | U41: 0 | AI41: =SUM(W41:AH41) -> 0
C42: 61315.78 | D42: OTROS INGRESOS | F42: 9635.51 | G42: =21066.91 -> 21066.91 | H42: 23888.57 | I42: 18751.51 | J42: 15041.54 | K42: 9001.07 | L42: 4962.16 | M42: =-80+1890.52 -> 1810.52 | N42: 3195.76 | O42: 1557.7 | P42: 1286 | Q42: 2324.69 | R42: 112521.94 | S42: 34182 | U42: 78339.94 | AI42: =SUM(W42:AH42) -> 0
D43: VENTA ESPACIOS EDIFICIO RUSSEK | AI43: 6000000
C44: 13277748.55 | D44: TOTAL INGRESOS | F44: =SUM(F12:F22)+F25+F26+F42+F40+F38 -> 8167645.51 | G44: 573815.46 | H44: 1098074.22 | I44: 79818.56 | J44: 60193.52 | K44: 558931.22 | L44: 67943.06 | M44: 1678756.94 | N44: 2298055.47 | O44: 1603494.15 | P44: 1595826.23 | Q44: 330446.27 | R44: =SUM(R12:R22)+R25+R26+R42+R40+R38-7397 -> 18105603.61 | S44: =SUM(S12:S22)+S25+S26+S42+S40+S38 -> 13624292.35 | U44: =SUM(U12:U22)+U25+U26+U42+U40+U38 -> 4488708.26 | W44: =SUM(W12:W22)+W25+W26+W42+W40+W38 -> 0 | X44: =SUM(X12:X22)+X25+X26+X42+X40+X38 -> 0 | Y44: =SUM(Y12:Y22)+Y25+Y26+Y42+Y40+Y38 -> 0 | Z44: 0 | AA44: 0 | AB44: 0 | AC44: 0 | AD44: 0 | AE44: 0 | AF44: 0 | AG44: 0 | AH44: 0 | AI44: =SUM(AI12:AI22)+AI25+AI26+AI42+AI40+AI38+AI43 -> 30409000
D46: EGRESOS
D47: GASTOS DE ADMINISTRACION:
C48: 503355.94 | D48: SUELDOS | F48: 42836.5 | G48: 42836.5 | H48: 44978.32 | I48: 44978.32 | J48: 44978.32 | K48: 44978.32 | L48: 44978.32 | M48: 44978.32 | N48: 44978.32 | O48: 44978.32 | P48: 44978.32 | Q48: 44978.325 | R48: =SUM(F48:Q48) -> 535456.205 | S48: 539740 | T48: ROSARIO RAMOS | U48: =+R48-S48 -> -4283.795 | W48: =23378.88*2 -> 46757.76 | X48: 46757.76 | Y48: 46757.76 | Z48: 46757.76 | AA48: 46757.76 | AB48: 46757.76 | AC48: 46757.76 | AD48: 46757.76 | AE48: 46757.76 | AF48: 46757.76 | AG48: 46757.76 | AH48: 46757.76 | AI48: =SUM(W48:AH48) -> 561093.12
C49: 0 | D49: VACACIONES | Q49: 14985.6 | R49: 14985.6 | S49: 14986 | U49: -0.4 | AH49: 21820 | AI49: 21820
C50: 42249.79 | D50: AGUINALDO | Q50: 44978.85 | R50: 44978.85 | S50: 44979 | U50: -0.15 | AH50: 46758 | AI50: 46758
C51: 0 | D51: LIQ. E INDEMNIZACIONES | Q51: 0 | R51: 0 | U51: 0 | AI51: 0
C52: 83143.36 | D52: I.M.S.S, SAR,INFONAVIT | F52: =2132.23+5032.54+4009.99 -> 11174.76 | G52: 2392 | H52: =2132.23+5032.54+4009.99 -> 11174.76 | I52: 3042.93 | J52: =2909.6+5498.56+4381.33 -> 12789.49 | K52: 3042.93 | L52: =2909.6+5498.56+4381.33 -> 12789.49 | M52: 2697.83 | N52: =2909.6+5588.15+4453.5 -> 12951.25 | O52: 2575.64 | P52: =2697.83+5498.56+4381.33 -> 12577.72 | Q52: 8659.532 | R52: 95868.332 | S52: 93448 | U52: 2420.332 | W52: 3446 | X52: 14834 | Y52: 3446 | Z52: 14834 | AA52: 3446 | AB52: 14834 | AC52: 3446 | AD52: 14834 | AE52: 3446 | AF52: 14834 | AG52: 3446 | AH52: 14834 | AI52: 109680
C53: 15000 | D53: GASTOS DE CAPACITACION | P53: 2000 | Q53: 0 | R53: 2000 | S53: 15000 | U53: -13000 | W53: =+(F53*5%)+F53 -> 0 | X53: =+(G53*5%)+G53 -> 0 | Y53: 0 | Z53: 0 | AA53: 0 | AB53: 0 | AC53: 0 | AD53: 0 | AE53: 0 | AF53: 0 | AG53: 2100 | AH53: 0 | AI53: 2100
C54: 5155.31 | D54: TELEFONO | G54: 811.21 | H54: 334.78 | I54: 674.9 | J54: 527.1 | K54: 330.44 | L54: 645.24 | M54: 1019.13 | O54: 395.97 | P54: 386.61 | Q54: 431.49 | R54: 5556.87 | S54: 5064 | U54: 492.87 | W54: =+(F54*5%)+F54 -> 0 | X54: 851.7705 | Y54: 351.519 | Z54: 708.645 | AA54: 553.455 | AB54: 346.962 | AC54: 677.502 | AD54: 1070.0865 | AE54: 0 | AF54: 415.7685 | AG54: 405.9405 | AH54: 453.0645 | AI54: 5834.7135
C55: 3930 | D55: CONSUMOS | G55: 352.5 | I55: 587.7 | J55: 832.5 | Q55: 373.3333333 | R55: 2146.033333 | S55: 1530 | U55: 616.0333333 | W55: 0 | X55: 370.125 | Y55: 0 | Z55: 617.085 | AA55: 874.125 | AB55: 0 | AC55: 0 | AD55: 0 | AE55: 0 | AF55: 0 | AG55: 0 | AH55: 392 | AI55: 2253.335
D56: PAPELERIA Y COPIAS | F56: 935.1 | Q56: 0 | R56: 935.1 | U56: 935.1 | W56: 0 | X56: 0 | Y56: 0 | Z56: 0 | AA56: 0 | AB56: 0 | AC56: 0 | AD56: 0 | AE56: 0 | AF56: 0 | AG56: 0 | AH56: 0 | AI56: 0
C57: 11877.8 | D57: SEGUROS Y FIANZAS | R57: 0 | S57: 11878 | U57: -11878 | W57: 0 | X57: 0 | Y57: 0 | Z57: 0 | AA57: 0 | AB57: 0 | AC57: 0 | AD57: 0 | AE57: 0 | AF57: 0 | AG57: 0 | AH57: 0 | AI57: 0
C58: 29974.1 | D58: GASTOS DE VIAJE | H58: 3531.91 | I58: 6182.67 | K58: 18048.17 | L58: 5900 | M58: 12823.18 | N58: 5106 | O58: 635 | P58: 2841.77 | Q58: 4913.42 | R58: 59982.12 | S58: 33458 | U58: 26524.12 | V58: (1 | W58: 0 | X58: 0 | Y58: 3708.5055 | Z58: 6491.8035 | AA58: 0 | AB58: 18950.5785 | AC58: 6195 | AD58: 13464.339 | AE58: 5361.3 | AF58: 666.75 | AG58: 2983.8585 | AH58: 5159.091 | AI58: 62981.226
C59: 6820 | D59: VARIOS | G59: 6192.29 | R59: 6192.29 | U59: 6192.29 | V59: (2 | W59: 0 | X59: 6501.9045 | Y59: 0 | Z59: 0 | AA59: 0 | AB59: 0 | AC59: 0 | AD59: 0 | AE59: 0 | AF59: 0 | AG59: 0 | AH59: 0 | AI59: 6501.9045
C60: 801 | D60: NO DEDUCIBLES | R60: 0 | S60: 801 | U60: -801 | W60: 0 | X60: 0 | Y60: 0 | Z60: 0 | AA60: 0 | AB60: 0 | AC60: 0 | AD60: 0 | AE60: 0 | AF60: 0 | AG60: 0 | AH60: 0 | AI60: 0
C61: 0 | D61: RELACIONES PUBLICAS | R61: 0 | U61: 0 | W61: 0 | X61: 0 | Y61: 0 | Z61: 0 | AA61: 0 | AB61: 0 | AC61: 0 | AD61: 0 | AE61: 0 | AF61: 0 | AG61: 0 | AH61: 0 | AI61: 0
C62: 702307.3 | D62: TOTAL ADMINISTRATIVOS | F62: =SUM(F48:F58) -> 54946.36 | G62: =SUM(G48:G61) -> 52584.5 | H62: =SUM(H48:H61) -> 60019.77 | I62: =SUM(I48:I61) -> 55466.52 | J62: =SUM(J48:J61) -> 59127.41 | K62: =SUM(K48:K61) -> 66399.86 | L62: 64313.05 | M62: 61518.46 | N62: 63035.57 | O62: 48584.93 | P62: 62784.42 | Q62: 119320.5503 | R62: 768101.4003 | S62: 760884 | U62: =SUM(U48:U61) -> 7217.400333 | W62: =SUM(W48:W58) -> 50203.76 | X62: =SUM(X48:X61) -> 69315.56 | Y62: =SUM(Y48:Y61) -> 54263.7845 | Z62: =SUM(Z48:Z61) -> 69409.2935 | AA62: =SUM(AA48:AA61) -> 51631.34 | AB62: =SUM(AB48:AB61) -> 80889.3005 | AC62: 57076.262 | AD62: 76126.1855 | AE62: 55565.06 | AF62: 62674.2785 | AG62: 55693.559 | AH62: 136173.9155 | AI62: 819022.299
D65: GASTOS DE OPERACIÓN:
C66: 4400171.31 | D66: SUELDOS | F66: 393423.72 | G66: 384265.65 | H66: =436231.29-36038.69 -> 400192.6 | I66: 456038.4 | J66: 403042.82 | K66: 411475.54 | L66: 454138.89 | M66: 375179.77 | N66: 425292.59 | O66: 460214.67 | P66: 388563.4 | Q66: 408990.142 | R66: =SUM(F66:Q66) -> 4960818.192 | S66: 4907881.704 | U66: =+R66-S66 -> 52936.488 | V66: (3 | W66: =190672+234455 -> 425127 | X66: =190672+234455 -> 425127 | Y66: =238340+234455 -> 472795 | Z66: =190672+234455 -> 425127 | AA66: =190672+234455 -> 425127 | AB66: =238340+234455 -> 472795 | AC66: =190672+234455 -> 425127 | AD66: =190672+234455 -> 425127 | AE66: =238340+234455 -> 472795 | AF66: =190672+234455 -> 425127 | AG66: =190672+234455 -> 425127 | AH66: =238340+234455 -> 472795 | AI66: =SUM(W66:AH66) -> 5292196
C67: 375199.14 | D67: SUELDOS ASIMILADOS | F67: 29456.9 | G67: 25068.73 | H67: =44469.16-18789 -> 25680.16 | I67: 25680.56 | J67: 49706.03 | K67: 20686.8 | L67: 20686.8 | M67: 20686.8 | N67: 21743.08 | O67: 23689.36 | P67: 22799.36 | Q67: 26251.225 | R67: 312135.805 | S67: 315014.7 | U67: -2878.895 | W67: =(9800+2500)*2 -> 24600 | X67: =(9800+2500)*2 -> 24600 | Y67: 24600 | Z67: 24600 | AA67: =((9800+2500)*2)+9840 -> 34440 | AB67: 24600 | AC67: 24600 | AD67: 24600 | AE67: 24600 | AF67: 24600 | AG67: 24600 | AH67: 24600 | AI67: 305040
C68: 131801.47 | D68: VACACIONES | G68: 3174.38 | H68: =4935.85+18789 -> 23724.85 | I68: 4726.3 | J68: 9239.35 | K68: 18236.15 | L68: =2762.7+35072.54 -> 37835.24 | M68: 50237.44 | N68: 16383.5 | O68: 22302.43 | P68: 2031.6 | Q68: 7560.4235 | R68: 195451.6635 | S68: 145951.967 | U68: 49499.6965 | V68: (4 | W68: 0 | X68: 3348.9709 | Y68: 25029.71675 | Z68: 4986.2465 | AA68: 9747.51425 | AB68: 19239.13825 | AC68: 39916.1782 | AD68: 53000.4992 | AE68: 17284.5925 | AF68: 23529.06365 | AG68: 2143.338 | AH68: 7976.246793 | AI68: 206201.505
C69: 374804.08 | D69: AGUINALDO | L69: 2211.04 | Q69: 358121.358 | R69: 360332.398 | S69: 358121.358 | U69: 2211.04 | AH69: 438744 | AI69: 438744
C70: 5000 | D70: LIQ. E INDEMNIZACIONES | L70: 1000 | Q70: 12488 | R70: 13488 | S70: 17488 | U70: -4000 | W70: =+(F70*5%)+F70 -> 0 | X70: =+(G70*5%)+G70 -> 0 | Y70: 0 | Z70: 0 | AA70: 0 | AB70: 0 | AC70: 1050 | AD70: 0 | AE70: 0 | AF70: 0 | AG70: 0 | AH70: 13112.4 | AI70: 14162.4
C71: 4929 | D71: UNIFORMES Y EQ. DE TRABAJO | Q71: 0 | R71: 0 | S71: 4929 | U71: -4929 | AI71: 0
C72: 899632.89 | D72: I.M.S.S, SAR,INFONAVIT | F72: =36592.37+50187.71+39990.22 -> 126770.3 | G72: 38384.75 | H72: =32956.11+49036.83+39073.27 -> 121066.21 | I72: 39192.1 | J72: =36627.41+54029.16+43051.09 -> 133707.66 | K72: 39444.47 | L72: =34892.47+54612.52+43515.93 -> 133020.92 | M72: 35279.68 | N72: =36533.81+55225.51+44003.56 -> 135762.88 | O72: 34583.55 | P72: =34988.92+54640.41+43538.16 -> 133167.49 | Q72: 35022.75 | R72: 1005402.76 | S72: 942749.2515 | U72: 62653.5085 | V72: (5 | W72: 42642 | X72: 149499 | Y72: 42642 | Z72: 149499 | AA72: 42642 | AB72: 149499 | AC72: 42642 | AD72: 149499 | AE72: 42642 | AF72: 149499 | AG72: 42642 | AH72: 149499 | AI72: 1152846
C73: 7120 | D73: IMPUESTOS ESTATALES | F73: 7332 | G73: 3383 | Q73: 0 | R73: 10715 | S73: 7120 | U73: 3595 | W73: =+(F73*5%)+F73 -> 7698.6 | X73: =+(G73*5%)+G73 -> 3552.15 | Y73: 0 | Z73: 0 | AA73: 0 | AB73: 0 | AC73: 0 | AD73: 0 | AE73: 0 | AF73: 0 | AG73: 0 | AH73: 0 | AI73: 11250.75
C74: 0 | D74: GASTOS DE CAPACITACION | Q74: 0 | R74: 0 | S74: 0 | U74: 0 | W74: =+(F74*5%)+F74 -> 0 | X74: 0 | Y74: 0 | Z74: 0 | AA74: 0 | AB74: 0 | AC74: 0 | AD74: 0 | AE74: 0 | AF74: 0 | AG74: 0 | AH74: 0 | AI74: 0
C75: 98434.5 | D75: TELEFONO | G75: 8524.9 | H75: 16605.54 | I75: 8850.72 | J75: 437.47 | K75: 8515.89 | L75: 17164.43 | M75: 850.86 | N75: 15826.03 | O75: 8978.22 | P75: 509.73 | Q75: 11230.46333 | R75: 97494.25333 | S75: 100850.7833 | U75: -3356.53 | W75: 0 | X75: 8951.145 | Y75: 17435.817 | Z75: 9293.256 | AA75: 459.3435 | AB75: 8941.6845 | AC75: 18022.6515 | AD75: 893.403 | AE75: 16617.3315 | AF75: 9427.131 | AG75: 535.2165 | AH75: 11791.9865 | AI75: 102368.966
C76: 1105322.036 | D76: ELECTRICIDAD | F76: 72922.65 | G76: 68093.3 | H76: 64265.74 | I76: 83833.02 | J76: 117160.45 | K76: 122861.55 | L76: 139330.37 | M76: 134912.32 | N76: 143510.51 | O76: 135651.04 | P76: 100154.5 | Q76: 114783.5833 | R76: 1297479.033 | S76: 1377403 | U76: -79923.96667 | W76: 76568.7825 | X76: 71497.965 | Y76: 67479.027 | Z76: 88024.671 | AA76: 123018.4725 | AB76: 129004.6275 | AC76: 146296.8885 | AD76: 141657.936 | AE76: 150686.0355 | AF76: 142433.592 | AG76: 105162.225 | AH76: 120522.7625 | AI76: 1362352.985
C77: 40248.02 | D77: AGUA | F77: 297.91 | G77: 5494.63 | H77: 3233.11 | I77: 4410.63 | K77: 5414.49 | L77: 6269.1 | N77: 8337.02 | O77: 7353.79 | P77: 1100 | Q77: 4963.553333 | R77: 46874.23333 | S77: 42623.16333 | U77: 4251.07 | W77: 312.8055 | X77: 5769.3615 | Y77: 3394.7655 | Z77: 4631.1615 | AA77: 0 | AB77: 5685.2145 | AC77: 6582.555 | AD77: 0 | AE77: 8753.871 | AF77: 7721.4795 | AG77: 1155 | AH77: 5211.731 | AI77: 49217.945
C78: 24440.65 | D78: COMBUSTIBLES Y LUBRICANTES | F78: 800.08 | G78: 1600.79 | H78: 4751.18 | I78: 4126.63 | J78: 1552.63 | K78: 3513.4 | L78: 3295.34 | M78: 2100.56 | N78: 3405.92 | O78: 1887.11 | P78: 5550.49 | Q78: 3711.04 | R78: 36295.17 | S78: 27201.46 | U78: 9093.71 | W78: 840.084 | X78: 1680.8295 | Y78: 4988.739 | Z78: 4332.9615 | AA78: 1630.2615 | AB78: 3689.07 | AC78: 3460.107 | AD78: 2205.588 | AE78: 3576.216 | AF78: 1981.4655 | AG78: 5828.0145 | AH78: 3896.592 | AI78: 38109.9285
C79: 0 | D79: CORREO Y TELEGRAFO | G79: 4545.82 | Q79: 0 | R79: 4545.82 | S79: 0 | U79: 4545.82 | W79: 0 | X79: 4773.111 | Y79: 0 | Z79: 0 | AA79: 0 | AB79: 0 | AC79: 0 | AD79: 0 | AE79: 0 | AF79: 0 | AG79: 0 | AH79: 0 | AI79: 4773.111
C80: 32085.92 | D80: PAQUETERIA Y MENSAJERIA | L80: 92.8 | M80: 4660.59 | Q80: 1449.49 | R80: 6202.88 | S80: 32743.05 | U80: -26540.17 | W80: 0 | X80: 0 | Y80: 0 | Z80: 0 | AA80: 0 | AB80: 0 | AC80: 97.44 | AD80: 4893.6195 | AE80: 0 | AF80: 0 | AG80: 0 | AH80: 1521.9645 | AI80: 6513.024
C81: 88440.65 | D81: CONSUMOS OFICINA | F81: 1676.1 | G81: 959.25 | H81: 510.2 | I81: 633.59 | J81: 467.2 | K81: 1405.05 | L81: 6386.1 | M81: 14871.97 | N81: 1203.88 | O81: 3171.96 | P81: 410.12 | Q81: 13333.33333 | R81: 45028.75333 | S81: 160000 | U81: -114971.2467 | W81: 1759.905 | X81: 1007.2125 | Y81: 535.71 | Z81: 665.2695 | AA81: 490.56 | AB81: 1475.3025 | AC81: 6705.405 | AD81: 15615.5685 | AE81: 1264.074 | AF81: 3330.558 | AG81: 430.626 | AH81: 14000 | AI81: 47280.191
C82: 25099 | D82: CUOTAS Y SUSCRIPCIONES | F82: 750 | G82: 8190 | H82: 2200 | I82: 750 | J82: 750 | K82: 1799 | L82: 750 | M82: 750 | N82: 750 | O82: 1434.4 | P82: 2400 | Q82: 1300 | R82: 21823.4 | S82: 24640 | U82: -2816.6 | W82: 787.5 | X82: 8599.5 | Y82: 2310 | Z82: 787.5 | AA82: 787.5 | AB82: 1888.95 | AC82: 787.5 | AD82: 787.5 | AE82: 787.5 | AF82: 1506.12 | AG82: 2520 | AH82: 1365 | AI82: 22914.57
C83: 1224.75 | D83: ESTACIONAMIENTO | Q83: 15.33333333 | R83: 15.33333333 | S83: 1240.083333 | U83: -1224.75 | W83: 0 | X83: 0 | Y83: 0 | Z83: 0 | AA83: 0 | AB83: 0 | AC83: 0 | AD83: 0 | AE83: 0 | AF83: 0 | AG83: 0 | AH83: 16.1 | AI83: 16.1
C84: 67894.77 | D84: ARRENDAMIENTO | F84: 5287 | I84: 5034.97 | J84: 15104.91 | K84: 5034.97 | L84: 5034.97 | M84: 5034.97 | N84: 5034.97 | O84: 5034.97 | P84: 5034.97 | Q84: 3859.653333 | R84: =SUM(F84:Q84) -> 59496.35333 | S84: 59649.15333 | T84: DEPTO. ADRIANA GALLEGOS | U84: -152.8 | W84: 5287 | X84: 5287 | Y84: 5287 | Z84: 5287 | AA84: 5287 | AB84: 5287 | AC84: 5287 | AD84: 5287 | AE84: 5287 | AF84: 5287 | AG84: 5287 | AH84: 5287 | AI84: =SUM(W84:AH84) -> 63444
C85: 17578.94 | D85: HONORARIOS | F85: 9440.56 | G85: 9440.56 | H85: 9440.56 | I85: 9440.56 | J85: 9440.56 | L85: 9440.56 | M85: 18881.12 | N85: 18355.43 | Q85: 0 | R85: 93879.91 | S85: 17578.94 | U85: 76300.97 | V85: (6 | W85: 0 | X85: 0 | Y85: 0 | Z85: 0 | AA85: 0 | AB85: 0 | AC85: 0 | AD85: 0 | AE85: 0 | AF85: 0 | AG85: 0 | AH85: 0 | AI85: =SUM(W85:AH85) -> 0
C86: 486905.48 | D86: MANTENIMIENTO. | F86: 26230.73 | G86: 52240.29 | H86: 51873.37 | I86: 57356.86 | J86: 105883.48 | K86: 42587.2 | L86: 84711.78 | M86: 63783.99 | N86: 168695.75 | O86: 107119.52 | P86: 66822.12 | Q86: 54393.58333 | R86: 881698.6733 | S86: 652723 | U86: 228975.6733 | V86: (7 | W86: 27542.2665 | X86: 54852.3045 | Y86: 54467.0385 | Z86: 60224.703 | AA86: 111177.654 | AB86: 44716.56 | AC86: 88947.369 | AD86: 66973.1895 | AE86: 177130.5375 | AF86: 112475.496 | AG86: 70163.226 | AH86: 57113.2625 | AI86: 925783.607
C87: 41577.91 | D87: PAPELERIA Y COPIAS | F87: 8375.93 | G87: 2816.72 | H87: 1115.2 | I87: 6720.76 | J87: 1092.78 | K87: 2482.48 | L87: 5943.02 | M87: 2938.04 | N87: 6938.66 | O87: 3210.54 | P87: 5864.61 | Q87: 7162.46 | R87: 54661.2 | S87: 48615.97 | U87: 6045.23 | W87: 8794.7265 | X87: 2957.556 | Y87: 1170.96 | Z87: 7056.798 | AA87: 1147.419 | AB87: 2606.604 | AC87: 6240.171 | AD87: 3084.942 | AE87: 7285.593 | AF87: 3371.067 | AG87: 6157.8405 | AH87: 7520.583 | AI87: 57394.26
C88: 765940.33 | D88: SEGUROS Y FIANZAS | H88: 20633.61 | I88: 22566.95 | K88: 208543.01 | L88: 34771.96 | M88: 34771.97 | O88: 200036.57 | P88: 330208.37 | Q88: 147122.37 | R88: 998654.81 | S88: 913062.7 | U88: 85592.11 | V88: (8 | W88: 0 | X88: 0 | Y88: 21665.2905 | Z88: 23695.2975 | AA88: 0 | AB88: 218970.1605 | AC88: 36510.558 | AD88: 36510.5685 | AE88: 0 | AF88: 210038.3985 | AG88: 346718.7885 | AH88: 154478.4885 | AI88: 1048587.551
C89: 58396.2 | D89: UTILES Y GASTOS DE LIMPIEZA | F89: 9220 | G89: 5802 | H89: 13664 | I89: 851 | J89: 9646 | K89: 5949.3 | L89: 9640.5 | N89: 8107.8 | O89: 5726 | P89: 4275 | Q89: 7083.333333 | R89: 79964.93333 | S89: 85000 | U89: -5035.066667 | W89: 9681 | X89: 6092.1 | Y89: 14347.2 | Z89: 893.55 | AA89: 10128.3 | AB89: 6246.765 | AC89: 10122.525 | AD89: 0 | AE89: 8513.19 | AF89: 6012.3 | AG89: 4488.75 | AH89: 7437.5 | AI89: 83963.18
C90: 59765.16 | D90: GASTOS DE VIAJE | F90: 708 | G90: 838 | H90: 2602.57 | J90: 28693.22 | L90: 3877.22 | N90: 3241.43 | O90: 85 | Q90: 3635.436667 | R90: 43680.87667 | S90: 46443.28667 | U90: -2762.41 | W90: 743.4 | X90: 879.9 | Y90: 2732.6985 | Z90: 0 | AA90: 30127.881 | AB90: 0 | AC90: 4071.081 | AD90: 0 | AE90: 3403.5015 | AF90: 89.25 | AG90: 0 | AH90: 3817.2085 | AI90: 45864.9205
C91: 0 | D91: FLETES Y ACARREOS | Q91: 0 | R91: 0 | S91: 0 | U91: 0 | W91: 0 | X91: 0 | Y91: 0 | Z91: 0 | AA91: 0 | AB91: 0 | AC91: 0 | AD91: 0 | AE91: 0 | AF91: 0 | AG91: 0 | AH91: 0 | AI91: 0
C92: 60072.68 | D92: NO DEDUCIBLES. | F92: 1000 | G92: 2920.79 | H92: 4666.13 | I92: 1233.8 | J92: 564.57 | K92: 1546.9 | L92: 3154.66 | M92: 98 | N92: 271.64 | O92: 730 | P92: 127.7 | Q92: 15848.96 | R92: 32163.15 | S92: 71846.95 | U92: -39683.8 | W92: 1050 | X92: 3066.8295 | Y92: 4899.4365 | Z92: 1295.49 | AA92: 592.7985 | AB92: 1624.245 | AC92: 3312.393 | AD92: 102.9 | AE92: 285.222 | AF92: 766.5 | AG92: 134.085 | AH92: 16641.408 | AI92: 33771.3075
C93: 1699 | D93: PUBLICIDAD | Q93: 566.3333333 | R93: 566.3333333 | S93: 2265.333333 | U93: -1699 | W93: 0 | X93: 0 | Y93: 0 | Z93: 0 | AA93: 0 | AB93: 0 | AC93: 0 | AD93: 0 | AE93: 0 | AF93: 0 | AG93: 0 | AH93: 594.65 | AI93: 594.65
C94: 0 | D94: VARIOS | F94: 121.8 | Q94: 0 | R94: 121.8 | S94: 0 | U94: 121.8 | W94: 127.89 | X94: 0 | Y94: 0 | Z94: 0 | AA94: 0 | AB94: 0 | AC94: 0 | AD94: 0 | AE94: 0 | AF94: 0 | AG94: 0 | AH94: 0 | AI94: 127.89
C95: 15090 | D95: BOLETOS TAQUILLA | J95: 640 | Q95: 0 | R95: 640 | S95: 1090 | U95: -450 | W95: 0 | X95: 0 | Y95: 0 | Z95: 0 | AA95: 672 | AB95: 0 | AC95: 0 | AD95: 0 | AE95: 0 | AF95: 0 | AG95: 0 | AH95: 0 | AI95: 672
C96: 0 | D96: GUIAS Y FOLLETOS | Q96: 0 | R96: 0 | S96: 0 | U96: 0 | W96: 0 | X96: 0 | Y96: 0 | Z96: 0 | AA96: 0 | AB96: 0 | AC96: 0 | AD96: 0 | AE96: 0 | AF96: 0 | AG96: 0 | AH96: 0 | AI96: 0
C97: 61.2 | D97: RELACIONES PUBLICAS | P97: 183.98 | Q97: 0 | R97: 183.98 | S97: 61.2 | U97: 122.78 | W97: 0 | X97: 0 | Y97: 0 | Z97: 0 | AA97: 0 | AB97: 0 | AC97: 0 | AD97: 0 | AE97: 0 | AF97: 0 | AG97: 193.179 | AH97: 0 | AI97: 193.179
C98: 0 | D98: GASTOS P/OBTENCION DE DONATIVOS | Q98: 0 | R98: 0 | S98: 0 | U98: 0 | W98: 0 | X98: 0 | Y98: 0 | Z98: 0 | AA98: 0 | AB98: 0 | AC98: 0 | AD98: 0 | AE98: 0 | AF98: 0 | AG98: 0 | AH98: 0 | AI98: 0
C99: 19496.25 | D99: COMISIONES BANCARIAS. | F99: 34.8 | G99: =8957.52 -> 8957.52 | H99: 2106.56 | I99: =1686.12 -> 1686.12 | K99: 3419.72 | L99: 1927.31 | M99: 24 | N99: 4229.47 | O99: 2298.46 | P99: 2358.79 | Q99: 2110.703333 | R99: 29153.45333 | S99: 19727.40333 | U99: 9426.05 | W99: 36.54 | X99: 9405.396 | Y99: 2211.888 | Z99: 1770.426 | AA99: 0 | AB99: 3590.706 | AC99: 2023.6755 | AD99: 25.2 | AE99: 4440.9435 | AF99: 2413.383 | AG99: 2476.7295 | AH99: 2216.2385 | AI99: 30611.126
C100: 0 | D100: RENTA DE MOBILIARIO | Q100: 0 | R100: 0 | S100: 0 | U100: 0 | W100: 0 | X100: 0 | Y100: 0 | Z100: 0 | AA100: 0 | AB100: 0 | AC100: 0 | AD100: 0 | AE100: 0 | AF100: 0 | AG100: 0 | AH100: 0 | AI100: 0
C101: 220 | D101: LAVANDERIA | F101: 87 | I101: 140.36 | J101: 336 | L101: 150 | N101: 320 | P101: 240 | Q101: 30 | R101: 1303.36 | S101: 160 | U101: 1143.36 | W101: 91.35 | X101: 0 | Y101: 0 | Z101: 147.378 | AA101: 352.8 | AB101: 0 | AC101: 157.5 | AD101: 0 | AE101: 336 | AF101: 0 | AG101: 252 | AH101: 31.5 | AI101: 1368.528
C102: 12538 | D102: DONATIVOS | Q102: 4179.333333 | R102: 4179.333333 | S102: 16717.33333 | U102: -12538 | W102: 0 | X102: 0 | Y102: 0 | Z102: 0 | AA102: 0 | AB102: 0 | AC102: 0 | AD102: 0 | AE102: 0 | AF102: 0 | AG102: 0 | AH102: 4388.3 | AI102: 4388.3
C103: 10087 | D103: MULTAS Y RECARGOS | H103: 677 | N103: 948 | O103: 824 | Q103: 0 | R103: 2449 | S103: 3234 | U103: -785 | W103: 0 | X103: 0 | Y103: 710.85 | Z103: 0 | AA103: 0 | AB103: 0 | AC103: 0 | AD103: 0 | AE103: 995.4 | AF103: 865.2 | AG103: 0 | AH103: 0 | AI103: 2571.45
C104: 2970 | D104: SEGURIDAD | M104: 5460 | O104: 1790 | Q104: 16760 | R104: 24010 | S104: 201120 | U104: -177110 | W104: 0 | X104: 0 | Y104: 0 | Z104: 0 | AA104: 0 | AB104: 0 | AC104: 0 | AD104: 5733 | AE104: 0 | AF104: 1879.5 | AG104: 0 | AH104: 17598 | AI104: 25210.5
C105: 0 | D105: EQUIPO DE COMPUTO | P105: 3470 | Q105: 0 | R105: 3470 | S105: 0 | U105: 3470 | W105: 0 | X105: 0 | Y105: 0 | Z105: 0 | AA105: 0 | AB105: 0 | AC105: 0 | AD105: 0 | AE105: 0 | AF105: 0 | AG105: 3643.5 | AH105: 0 | AI105: 3643.5
C106: 0 | D106: GASTOS MEDICOS | N106: 1932.08 | Q106: 0 | R106: 1932.08 | S106: 0 | U106: 1932.08 | W106: 0 | X106: 0 | Y106: 0 | Z106: 0 | AA106: 0 | AB106: 0 | AC106: 0 | AD106: 0 | AE106: 2028.684 | AF106: 0 | AG106: 0 | AH106: 0 | AI106: 2028.684
C107: 881177.57 | D107: IVA ACREDITABLE | F107: 68366.24 | G107: 62336.45 | H107: =113317.65-8000 -> 105317.65 | I107: =115575.45-19427.02 -> 96148.43 | J107: =93193.07-22708.63 -> 70484.44 | K107: =138455.23-617.39-12443.87 -> 125393.97 | L107: =142801.1-63340.38 -> 79460.72 | M107: =151424.02-69435.03 -> 81988.99 | N107: =175470.22-90076.01 -> 85394.21 | O107: =159563.86-59650.73 -> 99913.13 | P107: =170560.02-75156 -> 95404.02 | Q107: 108160.8433 | R107: =SUM(F107:Q107) -> 1078369.093 | S107: 912949.1433 | U107: 165419.95 | W107: 71784.552 | X107: 65453.2725 | Y107: 110583.5325 | Z107: 100955.8515 | AA107: 74008.662 | AB107: 131663.6685 | AC107: 83433.756 | AD107: 86088.4395 | AE107: 89663.9205 | AF107: 104908.7865 | AG107: 100174.221 | AH107: 113568.8855 | AI107: =SUM(W107:AH107) -> 1132287.548
D108: GASTOS POR EVENTOS | F108: 13200 | I108: 12554 | P108: 116250 | Q108: 62433 | R108: =SUM(F108:Q108) -> 204437 | S108: 554520 | U108: -350083 | W108: 13860 | X108: 0 | Y108: 0 | Z108: 13181.7 | AA108: 0 | AB108: 0 | AC108: 0 | AD108: 0 | AE108: 0 | AF108: 0 | AG108: 122062.5 | AH108: 65554.65 | AI108: =SUM(W108:AH108) -> 214658.85
C109: 10115423.91 | D109: TOTAL GASTOS DE OPERACIÓN | F109: =SUM(F66:F108) -> 775501.72 | G109: 697037.53 | H109: 874326.24 | I109: 841975.76 | J109: 957949.57 | K109: 1028309.89 | L109: 1060293.73 | M109: 852511.07 | N109: 1075684.85 | O109: 1126034.72 | P109: 1286926.25 | Q109: 1432566.705 | R109: 12009118.04 | S109: 12072721.93 | U109: =SUM(U66:U108) -> -63603.89867 | W109: =SUM(W66:W108) -> 719335.402 | X109: 856400.6039 | Y109: 879286.6697 | Z109: 926455.26 | AA109: 871837.1663 | AB109: 1231523.696 | AC109: 955393.7537 | AD109: 1022085.354 | AE109: 1038376.613 | AF109: 1237262.291 | AG109: 1271895.24 | AH109: 1721300.458 | AI109: 12731152.51
D111: PROYECTOS ESPECIFICOS
B112: 1 | C112: 530680.06 | D112: MUSEOGRAFIA | F112: 87914.68 | G112: 2845.43 | H112: 44889.86 | I112: 3635.58 | J112: 47173.94 | K112: 158320 | L112: 20000 | M112: 20000 | N112: 28775.37 | O112: 54793.92 | P112: 28321.68 | Q112: 43067.67 | R112: =SUM(F112:Q112) -> 539738.13 | S112: 516812 | U112: =+R112-S112 -> 22926.13 | AI112: =SUM(W112:AH112) -> 0
B113: 2 | C113: 692001.62 | D113: CURADURIA | F113: =52492.39+45770.15 -> 98262.54 | G113: =51526.46+82955.99 -> 134482.45 | H113: =24491+296206.68 -> 320697.68 | I113: =30316.72+28029.81 -> 58346.53 | J113: 74188.73 | K113: =41028.04-3858.71 -> 37169.33 | L113: =17084.08+19869.61 -> 36953.69 | M113: 16787.83 | N113: 38866.17 | O113: 35060.04 | P113: 9612.83 | Q113: 48205 | R113: =SUM(F113:Q113) -> 908632.82 | S113: 618960 | U113: 289672.82 | V113: (9 | AI113: =SUM(W113:AH113) -> 0
U114: 0
C115: 84370 | D115: SERVICIOS EDUCATIVOS | F115: 11968.43 | G115: 4539.54 | H115: 26407.89 | I115: 41882.56 | J115: 12053.61 | K115: 22791.84 | L115: 12265.81 | M115: 18581.05 | N115: 11517.22 | O115: 7608.32 | P115: 5909.07 | Q115: 34916.67 | R115: =SUM(F115:Q115) -> 210442.01 | S115: 419000 | U115: -208557.99 | AI115: =SUM(W115:AH115) -> 0
C116: 2957.9 | D116: GASTOS BIBLIOTECA. | G116: 495.92 | H116: 1115 | I116: 1240 | M116: 87 | P116: 533.6 | Q116: 1296.67 | R116: =SUM(F116:Q116) -> 4768.19 | S116: 15560 | U116: -10791.81 | AI116: =SUM(W116:AH116) -> 0
U117: 0
C118: 355240.39 | D118: GASTOS DE EXPOSICIONES | F118: 15832.15 | G118: 2456.41 | H118: 1950.42 | I118: 35058.19 | J118: 45300.92 | K118: 137178.28 | L118: 85127.13 | M118: 135600 | N118: 78424.5 | O118: 24723.2 | P118: 10235.21 | R118: =SUM(F118:Q118) -> 571886.41 | S118: 143938 | U118: 427948.41 | V118: (10 | AI118: =SUM(W118:AH118) -> 0
C119: 258875.74 | D119: COMUNICACIÓN Y DIFUSION | F119: 14758.39 | G119: 44347.06 | H119: 51910.41 | I119: 26277.24 | J119: 42845.91 | K119: 52709.93 | L119: 52814.82 | M119: 41682.21 | N119: 32316.36 | O119: 30908.96 | P119: 23327.68 | Q119: 69840.58 | R119: =SUM(F119:Q119) -> 483739.55 | S119: 838087 | U119: -354347.45 | AI119: =SUM(W119:AH119) -> 0
C120: 375 | D120: PROCURACION DE FONDOS | Q120: 4166.67 | R120: 4166.67 | S120: 50000 | U120: -45833.33 | AI120: 0
C121: 0 | D121: RESTAURACION CASA AROCENA | R121: 0 | U121: 0 | AI121: 0
C122: 458955.35 | D122: CONGRESO INTERNACIONAL | F122: 16783.22 | R122: 16783.22 | U122: 16783.22 | V122: (13 | AI122: 0
C123: 156211.03 | D123: PROYECTO BANCAS | F123: 70693.36 | G123: 65773.04 | H123: 41118.36 | I123: 6034 | J123: 11336 | R123: 194954.76 | U123: 194954.76 | V123: (11 | AI123: 0
D124: GASTOS FINANCIEROS | I124: 6965 | J124: 2941.58 | K124: 2877.54 | L124: 2771.1 | M124: 2663.14 | N124: 2553.66 | O124: 2442.56 | P124: 2329.89 | Q124: 2330 | R124: 27874.47 | U124: 27874.47 | V124: (12 | AI124: 0
C125: 2539667.09 | D125: TOTAL PROYECTOS ESPECIFICOS | F125: =SUM(F112:F124) -> 316212.77 | G125: 254939.85 | H125: 488089.62 | I125: 179439.1 | J125: 235840.69 | K125: 411046.92 | L125: 209932.55 | M125: 235401.23 | N125: 192453.28 | O125: 155537 | P125: 80269.96 | Q125: 203823.26 | R125: 2962986.23 | S125: =SUM(S112:S124) -> 2602357 | U125: =SUM(U112:U124) -> 360629.23 | W125: =SUM(W112:W124) -> 0 | X125: 0 | Y125: 0 | Z125: 0 | AA125: 0 | AB125: 0 | AC125: 0 | AD125: 0 | AE125: 0 | AF125: 0 | AG125: 0 | AH125: 0 | AI125: 3500000
C126: 13925299.27 | D126: TOTAL GASTOS | F126: =+F62+F109+F125 -> 1146660.85 | G126: =+G62+G109+G125 -> 1004561.88 | H126: 1422435.63 | I126: 1076881.38 | J126: 1252917.67 | K126: 1505756.67 | L126: 1334539.33 | M126: 1149430.76 | N126: 1331173.7 | O126: 1330156.65 | P126: 1429980.63 | Q126: 1755710.515 | R126: 15740205.67 | S126: 15435962.93 | T126: 0 | U126: 304242.7317 | W126: =+W62+W109+W125 -> 769539.162 | X126: =+X62+X109+X125 -> 925716.1639 | Y126: 933550.4542 | Z126: 995864.5535 | AA126: 923468.5063 | AB126: 1312412.997 | AC126: 1012470.016 | AD126: 1098211.539 | AE126: 1093941.673 | AF126: 1299936.569 | AG126: 1327588.799 | AH126: 1857474.373 | AI126: 17050174.8
C128: =+C44-C126 -> -647550.716 | D128: UTILIDAD DE OPERACIÓN | F128: =+F44-F126 -> 7020984.66 | G128: =+G44-G126 -> -430746.42 | H128: -324361.41 | I128: -997062.82 | J128: -1192724.15 | K128: -946825.45 | L128: -1266596.27 | M128: 529326.18 | N128: 966881.77 | O128: 273337.5 | P128: 165845.6 | Q128: -1425264.245 | R128: 2365397.944 | S128: -1811670.584 | T128: 0 | U128: 4184465.528 | W128: =+W44-W126 -> -769539.162 | X128: =+X44-X126 -> -925716.1639 | Y128: -933550.4542 | Z128: -995864.5535 | AA128: -923468.5063 | AB128: -1312412.997 | AC128: -1012470.016 | AD128: -1098211.539 | AE128: -1093941.673 | AF128: -1299936.569 | AG128: -1327588.799 | AH128: -1857474.373 | AI128: =+AI44-AI126 -> 13358825.2
D130: CONSTRUCCION EDIFICIO RUSSEK
C131: 411735.64 | D131: ADMINISTRACION DE OBRA | L131: 50.8 | R131: =SUM(F131:Q131) -> 50.8 | AC131: 50.8
D132: AIRE ACONDICIONADO | L132: 1000 | P132: 6000 | R132: 7000 | AC132: 1000 | AG132: 6000
D133: ELEVADOR | O133: 9000 | P133: 4000 | R133: 13000 | AF133: 9000 | AG133: 4000
D134: HERRERIA | P134: 5850 | R134: 5850 | AG134: 5850
D135: INST. ELECT-SANIT-PLUVIAL | L135: 20750 | M135: 3100 | N135: 19585.6 | O135: 66261.83 | P135: 17896.76 | R135: 127594.19 | AC135: 20750 | AD135: 3100 | AE135: 19585.6 | AF135: 66261.83 | AG135: 17896.76
C136: 49316.99 | D136: OBRA CIVIL | H136: 50000 | I136: 121418.88 | J136: 141928.92 | K136: 72170.75 | L136: 350858.35 | M136: 430868.94 | N136: 496553.14 | O136: 239531.45 | P136: 350748.27 | R136: 2254078.7 | Y136: 50000 | Z136: 121418.88 | AA136: 141928.92 | AB136: 72170.75 | AC136: 350858.35 | AD136: 430868.94 | AE136: 496553.14 | AF136: 239531.45 | AG136: 350748.27
D137: INSTALACIONES ELECTRICAS | K137: 5603.45 | L137: 23218.2 | R137: 28821.65 | AB137: 5603.45 | AC137: 23218.2
D138: MONTACARGAS | N138: 46836.35 | O138: 58023.78 | P138: 36868.2 | R138: 141728.33 | AE138: 46836.35 | AF138: 58023.78 | AG138: 36868.2
D139: PUENTES | P139: 48365.25 | R139: 48365.25 | AG139: 48365.25
C141: =SUM(C131:C140) -> 461052.63 | D141: TOTAL CONSTRUCCION | F141: =SUM(F131:F140) -> 0 | G141: =SUM(G131:G140) -> 0 | H141: 50000 | I141: 121418.88 | J141: 141928.92 | K141: 77774.2 | L141: 395877.35 | M141: 433968.94 | N141: 562975.09 | O141: 372817.06 | P141: 469728.48 | Q141: 0 | R141: 2626488.92 | S141: 0 | T141: 0 | U141: 0 | W141: =SUM(W131:W140) -> 0 | X141: =SUM(X131:X140) -> 0 | Y141: 50000 | Z141: 121418.88 | AA141: 141928.92 | AB141: 77774.2 | AC141: 395877.35 | AD141: 433968.94 | AE141: 562975.09 | AF141: 372817.06 | AG141: 469728.48 | AH141: 0 | AI141: 0
C143: =+C128-C141 -> -1108603.346 | D143: REMANENTE | F143: =+F128-F141 -> 7020984.66 | G143: =+G128-G141 -> -430746.42 | H143: -374361.41 | I143: -1118481.7 | J143: -1334653.07 | K143: -1024599.65 | L143: -1662473.62 | M143: 95357.24 | N143: 403906.68 | O143: -99479.56 | P143: -303882.88 | Q143: -1425264.245 | R143: -261090.9755 | S143: -1811670.584 | T143: 0 | U143: 4184465.528 | W143: =+W128-W141 -> -769539.162 | X143: =+X128-X141 -> -925716.1639 | Y143: -983550.4542 | Z143: -1117283.434 | AA143: -1065397.426 | AB143: -1390187.197 | AC143: -1408347.366 | AD143: -1532180.479 | AE143: -1656916.763 | AF143: -1672753.629 | AG143: -1797317.279 | AH143: -1857474.373 | AI143: 13358825.2
N147: 1 | O147: VIAJES ROSARIO RAMOS A HOUSTON-LOS ANGELES-SHANGAI
N148: =+N147+1 -> 2 | O148: ANUNCIO PERODICO CONDOLENCIAS
N149: =+N148+1 -> 3 | O149: AUMENTO PERSONAL COM Y DIFUSION, SERV. EDUCATIVOS.
N150: 4 | O150: AUMENTO PERSONAL COM Y DIFUSION, SERV. EDUCATIVOS.
N151: 5 | O151: AUMENTO PERSONAL COM Y DIFUSION, SERV. EDUCATIVOS.
N152: 6 | O152: HONORARIOS SERGIO GARZA (COORDINADOR DE PROYECTOS)
N153: 7 | O153: LONA $105,000, MTTO BIMESTRAL EQ. AIRE $ 243,829
N154: 8 | O154: MULTIPLE EMPRESARIAL $ 200,036, SEGURO MUSEO $ 208,543, GASTOS MEDICOS $ 399,750
N155: 9 | O155: RESTAURACION CASA AROCENA
N156: 10 | O156: EXPOSICIONES: CASINO 100, ANTONIETA RIVAS, PREAMBULO III
N157: 11 | O157: LOS INGRESOS DE BANCAS ENTRARON EN 2009 COMO DONATIVOS
N158: 12 | O158: FINANCIEMIENTO COMPPRA CAMIONETA
N159: 13 | O159: HONORARIOS X COORDINACION INTERCOM SERGIO GARZA

Sheet RESUMEN (hidden)
C1: Centro Cultural Arocena Laguna, AC
E3: ESTADO DE ACTIVIDADES
E4: POR EL PERIODO DEL 1o DE ENERO AL 31 DE DICIEMBRE DE 2012
L5: 4 | M5: 4 | N5: 5 | O5: 4 | P5: 4 | Q5: 5 | R5: 4 | S5: 4 | T5: 5 | U5: 4 | V5: 4 | W5: 5
C7: REAL ACUM | D7: REAL ACUM | G7: REAL ACUM | H7: REAL ACUM | I7: PRES ACUM
C8: DIC 2009 | D8: DIC 2010 | E8: CONCEPTO | G8: DIC 2011 | H8: DIC 2012 | I8: DIC 2012 | J8: DIF | L8: 2012-01-01 | M8: 2012-02-01 | N8: 2012-03-01 | O8: 2012-04-01 | P8: 2012-05-01 | Q8: 2012-06-01 | R8: 2012-07-01 | S8: 2012-08-01 | T8: 2012-09-01 | U8: 2012-10-01 | V8: 2012-11-01 | W8: 2012-12-01
E10: INGRESOS
C12: 378618 | D12: 247700 | E12: TAQUILLA | G12: 527193 | H12: 666068 | I12: 419457 | J12: =+H12-I12 -> 246611 | L12: 18700 | M12: 12795 | N12: 39770 | O12: 49055 | P12: 23420 | Q12: 19183 | R12: 18895 | S12: 15120 | T12: 14525 | U12: 24893 | V12: 26330 | W12: 24893
E14: RENTA DE ESPACIOS: | G14: 338394 | H14: 2312526 | I14: 254532 | J14: =+H14-I14 -> 2057994 | K14: SALAS RUSSEK 1,000 TYSON, 900 INMOB. NOAS
G15: 0 | I15: 0 | J15: 0
E16: DONATIVOS: | G16: 0 | H16: 0 | I16: 0 | J16: 0
C17: 4150000 | D17: 9130000 | E17: GOBIERNO DEL ESTADO | G17: 1500000 | H17: 11000000 | I17: 6000000 | J17: 5000000 | L17: =6000000/12 -> 500000 | M17: =6000000/12 -> 500000 | N17: =6000000/12 -> 500000 | O17: =6000000/12 -> 500000 | P17: 500000 | Q17: 500000 | R17: 500000 | S17: 500000 | T17: 500000 | U17: 500000 | V17: 500000 | W17: 500000
E18: ICOCULT | H18: 1500000
C19: 125000 | D19: 1030660.76 | E19: GOBIERNO MUNICIPAL | G19: 2750000 | H19: 250000 | I19: 1000000 | J19: -750000 | L19: =1000000/12 -> 83333.33333 | M19: 83333.33333 | N19: 83333.33333 | O19: 83333.33333 | P19: 83333.33333 | Q19: 83333.33333 | R19: 83333.33333 | S19: 83333.33333 | T19: 83333.33333 | U19: 83333.33333 | V19: 83333.33333 | W19: 83333.33333
C20: 1050000 | D20: 1000000 | E20: FUNDACION LALA | G20: 1000000 | H20: 4004000 | I20: 1000000 | J20: 3004000 | K20: LALA 3 MILL DE SALA RUSSEK Y 1 MILL DE DONATIVOS | L20: 83333.33333 | M20: 83333.33333 | N20: 83333.33333 | O20: 83333.33333 | P20: 83333.33333 | Q20: 83333.33333 | R20: 83333.33333 | S20: 83333.33333 | T20: 83333.33333 | U20: 83333.33333 | V20: 83333.33333 | W20: 83333.33333
C21: 5000000 | D21: 8213794 | E21: FUNDACION AROCENA (16,800 X 35%) Gtos. Operación | G21: 22500000 | H21: 5500000 | I21: 6000000 | J21: -500000 | L21: =6000000/12 -> 500000 | M21: =6000000/12 -> 500000 | N21: =6000000/12 -> 500000 | O21: =6000000/12 -> 500000 | P21: 500000 | Q21: 500000 | R21: 500000 | S21: 500000 | T21: 500000 | U21: 500000 | V21: 500000 | W21: 500000
E22: FUNDACION AROCENA ( 25,030 X 25% ) Edif. Russek | G22: 0 | H22: 0 | I22: 0 | J22: 0
C23: 800000 | D23: 0 | E23: PEÑOLES | G23: 0 | H23: 3000000 | I23: 0 | J23: 3000000 | K23: EN ESPECIE (AIRE ACONDICIONADO. MONTACARGAS, ELEVADOR)
C24: 50000 | D24: 25000 | E24: SANTA MONICA | G24: 0 | H24: 0 | I24: 0 | J24: 0
C25: =472250+800 -> 473050 | D25: 46152.44 | E25: VARIOS | G25: 1003875.08 | H25: 4213800 | I25: 5000000 | J25: -786200
C26: =SUM(C17:C25) -> 11648050 | D26: =SUM(D17:D25) -> 19445607.2 | E26: TOTAL DONATIVOS: | G26: =SUM(G17:G25) -> 28753875.08 | H26: =SUM(H17:H25) -> 29467800 | I26: 19000000 | J26: 8967800 | L26: =SUM(L17:L25) -> 1166666.667 | M26: 1166666.667 | N26: 1166666.667 | O26: 1166666.667 | P26: 1166666.667 | Q26: 1166666.667 | R26: 1166666.667 | S26: 1166666.667 | T26: 1166666.667 | U26: 1166666.667 | V26: 1166666.667 | W26: 1166666.667
G27: 0 | I27: 0
C28: 13277748.55 | D28: =SUM(D12:D25)+SUM(D27:D27) -> 19693307.2 | E28: TOTAL INGRESOS | G28: =SUM(G12:G25)+SUM(G27:G27) -> 29619462.08 | H28: =SUM(H12:H25)+SUM(H27:H27) -> 32446394 | I28: =SUM(I12:I25)+SUM(I27:I27) -> 19673989 | J28: =SUM(J12:J25)+SUM(J27:J27) -> 11272405 | L28: =SUM(L12:L25)+SUM(L27:L27) -> 1185366.667 | M28: 1179461.667 | N28: 1206436.667 | O28: 1215721.667 | P28: 1190086.667 | Q28: 1185849.667 | R28: 1185561.667 | S28: 1181786.667 | T28: 1181191.667 | U28: 1191559.667 | V28: 1192996.667 | W28: 1191559.667
E30: GASTOS DE ADMINISTRACION: | G30: 737549 | H30: 1094161 | I30: 789746 | J30: =+H30-I30 -> 304415
E32: GASTOS DE OPERACIÓN | G32: 12934037 | H32: 15424851 | I32: 14729912 | J32: 694939
E34: PROYECTOS | G34: 5483211 | H34: 4973926 | I34: 4224137 | J34: 749789
E36: TOTAL GASTOS | G36: =SUM(G30:G35) -> 19154797 | H36: =SUM(H30:H35) -> 21492938 | I36: =SUM(I30:I35) -> 19743795 | J36: =SUM(J30:J35) -> 1749143
E38: UTILIDAD DE OPERACIÓN | G38: =+G28-G36 -> 10464665.08 | H38: =+H28-H36 -> 10953456 | I38: =+I28-I36 -> -69806 | J38: =+J28-J36 -> 9523262
E40: CONSTRUCCION EDIFICIO RUSSEK | G40: 10261558 | H40: 8847394 | I40: 2351380 | J40: =+H40-I40 -> 6496014
E42: REMANENTE | G42: =+G38-G40 -> 203107.08 | H42: =+H38-H40 -> 2106062 | I42: =+I38-I40 -> -2421186 | J42: =+J38-J40 -> 3027248

Sheet PRESUPUESTO 2013 (hidden)
C2: Centro Cultural Arocena Laguna, AC
F4: PRESUPUESTO 2013
AM5: SEM | AN5: =(58507.89+3000+1304.6)*4 -> 251249.96 | AO5: =(58507.89+3000+1304.6)*4 -> 251249.96 | AP5: =(58507.89+3000+1304.6)*5 -> 314062.45 | AQ5: =(58507.89+3000+1304.6)*4 -> 251249.96 | AR5: =(58507.89+3000+1304.6)*4 -> 251249.96 | AS5: =(58507.89+3000+1304.6)*5 -> 314062.45 | AT5: =(58507.89+3000+1304.6)*4 -> 251249.96 | AU5: =(58507.89+3000+1304.6)*4 -> 251249.96 | AV5: =(58507.89+3000+1304.6)*5 -> 314062.45 | AW5: =(58507.89+3000+1304.6)*4 -> 251249.96 | AX5: =(58507.89+3000+1304.6)*4 -> 251249.96 | AY5: =(58507.89+3000+1304.6)*5 -> 314062.45
AM6: QUINC | AN6: =(176181.91-25786.13)*2 -> 300791.56 | AO6: 300791.56 | AP6: 300791.56 | AQ6: 300791.56 | AR6: 300791.56 | AS6: 300791.56 | AT6: 300791.56 | AU6: 300791.56 | AV6: 300791.56 | AW6: 300791.56 | AX6: 300791.56 | AY6: 300791.56
C8: REAL ACUM | D8: REAL ACUM | E8: REAL ACUM | U8: REAL ACUM | V8: PRES ACUM | AL8: PRES ACUM | AN8: =+AN6+25786.13 -> 326577.69
C9: DIC 2009 | D9: DIC 2010 | E9: DIC 2011 | F9: CONCEPTO | H9: 2012-01-01 | I9: 2012-02-01 | J9: 2012-03-01 | K9: 2012-04-01 | L9: 2012-05-01 | M9: 2012-06-01 | N9: 2012-07-01 | O9: 2012-08-01 | P9: 2012-09-01 | Q9: 2012-10-01 | R9: 2012-11-01 | S9: 2012-12-01 | T9: 2012-01-01 | U9: DIC 2012 | V9: DIC 2012 | W9: DIF | Z9: 2013-01-01 | AA9: 2013-02-01 | AB9: 2013-03-01 | AC9: 2013-04-01 | AD9: 2013-05-01 | AE9: 2013-06-01 | AF9: 2013-07-01 | AG9: 2013-08-01 | AH9: 2013-09-01 | AI9: 2013-10-01 | AJ9: 2013-11-01 | AK9: 2013-12-01 | AL9: DIC 2013 | AN9: 4 | AO9: 4 | AP9: 5
AL10: TOTAL | AN10: Ene | AO10: Feb | AP10: Mar | AQ10: Abr | AR10: May | AS10: Jun | AT10: Jul | AU10: Ago | AV10: Sep | AW10: Oct | AX10: Nov | AY10: Dic | AZ10: TOTAL
F11: INGRESOS
C13: 378618 | D13: 247700 | E13: 285316 | F13: TAQUILLA | H13: 35510 | I13: 41275 | J13: 39650 | K13: 25730 | L13: 18055 | M13: 13655 | N13: 24815 | O13: 16050 | P13: 14565 | Q13: 28820 | R13: 11505 | S13: 7155 | U13: =SUM(H13:S13)+T13 -> 276785 | V13: 287579 | W13: =+U13-V13 -> -10794 | Z13: =+AL13/12 -> 23065.41667 | AL13: 276785
C14: 54361.25 | D14: 65698.58 | E14: 56775.37 | F14: ESTACIONAMIENTO | H14: 4991.38 | I14: 2641.38 | J14: 4936.2 | K14: 4086.21 | L14: 2956.9 | M14: 4008.62 | N14: 3146.55 | O14: 1870.69 | P14: 4801.72 | Q14: 7448.28 | R14: 6629.31 | S14: 2612.07 | U14: 50129.31 | V14: 51131 | W14: =+U14-V14 -> -1001.69 | Z14: =+AL14/12 -> 4177.4425 | AL14: 50129.31
C15: 85831.5 | D15: 125562.5 | E15: 145480.51 | F15: CURSOS | H15: 103629.42 | I15: 30474.14 | J15: 3103.45 | L15: 12715.51 | M15: 9913.79 | N15: 30965.52 | O15: 1637.93 | P15: 1120.69 | Q15: 15043.09 | R15: 602.45 | S15: 3017.24 | U15: 212223.23 | V15: 45481 | W15: 166742.23 | Z15: =+AL15/12 -> 17685.26917 | AL15: 212223.23
C16: 5429.4 | D16: 23587.9 | E16: 39621.11 | F16: VENTA LIBROS | H16: 2059.4 | I16: 2469.9 | J16: 3511.4 | K16: 3061.8 | L16: 3398.9 | M16: 5477.8 | O16: 2557.7 | P16: 729 | Q16: 3530 | R16: 1706 | S16: 3169.25 | U16: 31671.15 | V16: 35266 | W16: -3594.85 | Z16: =+AL16/12 -> 2639.2625 | AL16: 31671.15
E17: 0 | U17: 0 | V17: 0 | W17: 0 | AL17: 0
E18: 0 | F18: RENTA DE ESPACIOS: | U18: 0 | V18: 0 | W18: 0 | AL18: 0
C19: 0 | D19: 0 | E19: 0 | F19: RESTAURANT | J19: 9000 | K19: 9000 | O19: 3000 | P19: 3000 | Q19: 3000 | R19: 6000 | U19: 33000 | V19: 0 | W19: 33000 | Z19: =+AL19/12 -> 3000 | AL19: 36000
C20: 744158.53 | D20: 287449.43 | E20: =212048.27+11000 -> 223048.27 | F20: PLAZA | H20: =8620.69+5517.24 -> 14137.93 | I20: 147200 | L20: 21728.9 | M20: 108620.69 | P20: 10344.83 | Q20: 62241.38 | U20: 364273.73 | V20: 213772 | W20: 150501.73 | Z20: 30356.14417 | AL20: 364273.73
C21: 1304.35 | D21: 0 | E21: 16240 | F21: IPADE (170,000 ANUALES) | U21: 0 | V21: 16240 | W21: -16240 | Z21: 0 | AL21: 0
C22: 4500 | D22: 11517 | E22: 20846.06 | F22: AUDITORIO | O22: 6896.55 | U22: 6896.55 | V22: 24520 | W22: -17623.45 | Z22: 574.7125 | AL22: 6896.55
C23: 0 | D23: 0 | E23: 0 | F23: SALON EJECUTIVO | H23: 2450 | U23: 2450 | V23: 0 | W23: 2450 | Z23: 204.1666667 | AL23: 2450
C24: 0 | D24: 0 | E24: 0 | F24: RENTA DE SILLAS | U24: 0 | V24: 0 | W24: 0 | Z24: 0 | AL24: 0
C25: 23533.57 | D25: 25511.43 | E25: 1250 | F25: LIBRERÍA | L25: 5899.92 | U25: 5899.92 | V25: 0 | W25: 5899.92 | Z25: 491.66 | AL25: 5899.92
F26: SALAS | M26: =142858+142858 -> 285716 | N26: 1042858 | O26: 142858 | P26: 142858 | R26: 142858 | S26: 142858 | U26: 1900006 | V26: 0 | W26: 1900006 | Z26: 0 | AL26: 0
E27: 0 | U27: 0 | V27: 0 | W27: 0 | AL27: 0
E28: 0 | F28: DONATIVOS: | U28: 0 | V28: 0 | W28: 0 | AL28: 0
C29: 4150000 | D29: 9130000 | E29: 1500000 | F29: GOBIERNO DEL ESTADO | H29: 1000000 | J29: =1000000+1000000 -> 2000000 | K29: 1000000 | L29: 1000000 | M29: 1000000 | O29: 1000000 | P29: 1000000 | R29: 1000000 | S29: 2000000 | U29: 11000000 | V29: 6000000 | W29: 5000000 | Z29: =+AL29/12 -> 916666.6667 | AL29: 11000000
F30: ICOCULT | L30: 1500000 | U30: 1500000 | Z30: 0
C31: 125000 | D31: 1030660.76 | E31: 2750000 | F31: GOBIERNO MUNICIPAL | I31: 250000 | U31: 250000 | V31: 1000000 | W31: -750000 | Z31: 83333.33333 | AL31: 1000000
C32: 1050000 | D32: 1000000 | E32: 1000000 | F32: FUNDACION LALA | H32: 500000 | I32: 1000000 | J32: 400000 | M32: =400000+400000+400000 -> 1200000 | N32: 900000 | R32: 4000 | U32: 4004000 | V32: 1000000 | W32: 3004000 | Z32: 83333.33333 | AL32: 1000000
C33: 5000000 | D33: 8213794 | E33: 22500000 | F33: FUNDACION AROCENA (16,800 X 35%) Gtos. Operación | H33: 1500000 | I33: 2500000 | K33: 500000 | S33: 1000000 | U33: 5500000 | V33: 6000000 | W33: -500000 | Z33: 500000 | AL33: 6000000
E34: 0 | F34: FUNDACION AROCENA ( 25,030 X 25% ) Edif. Russek | U34: 0 | V34: 0 | W34: 0 | Z34: 0 | AL34: 0
C35: 800000 | D35: 0 | E35: 0 | F35: PEÑOLES | R35: 3000000 | U35: 3000000 | V35: 0 | W35: 3000000 | Z35: 0 | AL35: 0
C36: 50000 | D36: 25000 | E36: 0 | F36: SANTA MONICA | U36: 0 | V36: 0 | W36: 0 | Z36: 0 | AL36: 0
C37: =472250+800 -> 473050 | D37: 46152.44 | E37: 1003875.08 | F37: VARIOS | J37: =125000+350000+200000 -> 675000 | K37: 125000 | L37: =100000+5000+18000+125000+500000 -> 748000 | M37: =100000+35000+500000+200000+125000 -> 960000 | N37: 500000 | O37: 100000 | Q37: =1000000+3500 -> 1003500 | S37: =8000+1800+7500+85000 -> 102300 | U37: 4213800 | V37: 5000000 | W37: -786200 | Z37: 416666.6667 | AL37: 5000000
C38: =SUM(C29:C37) -> 11648050 | D38: =SUM(D29:D37) -> 19445607.2 | E38: =SUM(E29:E37) -> 28753875.08 | F38: TOTAL DONATIVOS: | H38: =SUM(H29:H37) -> 3000000 | I38: =SUM(I29:I37) -> 3750000 | J38: 3075000 | K38: 1625000 | L38: 3248000 | M38: 3160000 | N38: 1400000 | O38: 1100000 | P38: 1000000 | Q38: 1003500 | R38: 4004000 | S38: 3102300 | T38: 0 | U38: 29467800 | V38: 19000000 | W38: 10467800 | AL38: =SUM(AL29:AL37) -> 24000000
E39: 0 | T39: =+S39 -> 0 | U39: =SUM(H39:S39)+T39 -> 0 | V39: 0 | W39: 0 | AL39: =SUM(Z39:AK39) -> 0
C40: 61315.78 | D40: 114491.25 | E40: 67009.55 | F40: OTROS INGRESOS | H40: 1577.13 | I40: 3909.89 | J40: 3129.88 | K40: =2165.17+1650.26 -> 3815.43 | L40: =413.79+6820.81 -> 7234.6 | M40: =1120.69+8805.68 -> 9926.37 | N40: =1807.8+1206.9+12789.13 -> 15803.83 | O40: =2314.65+15626.98 -> 17941.63 | P40: 11013.98 | Q40: =2275.86+10253.06 -> 12528.92 | R40: =245.69+4990.12 -> 5235.81 | S40: =1010+2131.42 -> 3141.42 | U40: =SUM(H40:S40) -> 95258.89 | V40: 0 | W40: 95258.89 | Z40: =+AL40/12 -> 7960.75 | AL40: 95529
E41: 10000 | F41: VENTA DE 14 ESPACIOS EDIFICIO RUSSEK | U41: =SUM(H41:S41)+T41 -> 0 | V41: 0 | W41: 0 | AL41: 0
C42: 13277748.55 | D42: =SUM(D13:D37)+SUM(D39:D41) -> 20347125.29 | E42: =SUM(E13:E37)+SUM(E39:E41) -> 29619461.95 | F42: TOTAL INGRESOS | H42: =SUM(H13:H37)+SUM(H39:H41) -> 3164355.26 | I42: 3977970.31 | J42: 3138330.93 | K42: 1670693.44 | L42: 3319989.73 | M42: 3597318.27 | N42: 2517588.9 | O42: 1292812.5 | P42: 1188433.22 | Q42: 1136111.67 | R42: 4178536.57 | S42: 3264252.98 | T42: 0 | U42: 32446393.78 | V42: 19673989 | W42: 11272404.78 | Z42: =SUM(Z13:Z37)+SUM(Z39:Z41) -> 2090154.824 | AA42: 0 | AB42: 0 | AC42: 0 | AD42: 0 | AE42: 0 | AF42: 0 | AG42: 0 | AH42: 0 | AI42: 0 | AJ42: 0 | AK42: 0 | AL42: 25081857.89
F44: EGRESOS
F45: GASTOS DE ADMINISTRACION:
C46: 503355.94 | D46: 535456.2 | E46: =543113.26+23613.62 -> 566726.88 | F46: SUELDOS | H46: 49116.42 | I46: 49116.42 | J46: 49116.42 | K46: 49116.42 | L46: 49116.42 | M46: 49116.42 | N46: 49116.42 | O46: 49116 | P46: 49116.42 | Q46: 49116.42 | R46: 49116.42 | S46: 49116.42 | U46: =SUM(H46:S46)+T46 -> 589396.62 | V46: 589152 | W46: =+U46-V46 -> 244.62 | Z46: =25786.13*2 -> 51572.26 | AA46: =25786.13*2 -> 51572.26 | AB46: 51572.26 | AC46: 51572.26 | AD46: 51572.26 | AE46: 51572.26 | AF46: 51572.26 | AG46: 51572.26 | AH46: 51572.26 | AI46: 51572.26 | AJ46: 51572.26 | AK46: 51572.26 | AL46: =SUM(Z46:AK46) -> 618867.12 | AN46: =25786.13*2 -> 51572.26 | AO46: =25786.13*2 -> 51572.26 | AP46: 51572.26 | AQ46: 51572.26 | AR46: 51572.26 | AS46: 51572.26 | AT46: 51572.26 | AU46: 51572.26 | AV46: 51572.26 | AW46: 51572.26 | AX46: 51572.26 | AY46: 51572.26
C47: 0 | D47: 0 | F47: VACACIONES | U47: 0 | V47: 22911 | W47: -22911 | AK47: 23737.42 | AL47: =SUM(Z47:AK47) -> 23737.42
C48: 42249.79 | D48: 44362.28 | E48: 46580.4 | F48: AGUINALDO | S48: 48443.7 | U48: 48443.7 | V48: 49096 | W48: -652.3 | AK48: =+AK46 -> 51572.26 | AL48: =SUM(Z48:AK48) -> 51572.26
C49: 0 | D49: 0 | F49: LIQ. E INDEMNIZACIONES | U49: 0 | V49: 0 | W49: 0 | Z49: =+H49+AN49 -> 0 | AA49: 0 | AB49: 0 | AC49: 0 | AD49: 0 | AE49: 0 | AF49: 0 | AG49: 0 | AH49: 0 | AI49: 0 | AJ49: 0 | AK49: 0 | AL49: 0 | AN49: =+H49*0.05 -> 0 | AO49: =+I49*0.05 -> 0 | AP49: =+J49*0.05 -> 0 | AQ49: =+K49*0.05 -> 0 | AR49: =+L49*0.05 -> 0 | AS49: =+M49*0.05 -> 0 | AT49: =+N49*0.05 -> 0 | AU49: =+O49*0.05 -> 0 | AV49: =+P49*0.05 -> 0 | AW49: =+Q49*0.05 -> 0 | AX49: =+R49*0.05 -> 0 | AY49: =+S49*0.05 -> 0
C50: 83143.36 | D50: 87208.8 | E50: =29383.72+32090+25569.73 -> 87043.45 | F50: I.M.S.S, SAR,INFONAVIT | H50: =2181.3+5318.29+4237.68 -> 11737.27 | I50: 3575.88 | J50: =2181.3+5318.29+4237.68 -> 11737.27 | K50: 3575.68 | L50: =2181.3+5318.29+4237.68 -> 11737.27 | M50: 3575.68 | N50: =2181.3+5318.29+4237.68 -> 11737.27 | O50: 7151.36 | P50: =2181.3+5318.29+4273.68 -> 11773.27 | Q50: 2181.3 | R50: =2181.3+5318.29+4273.68 -> 11773.27 | S50: 2181.3 | U50: 92736.82 | V50: 92081 | W50: 655.82 | Z50: 12324.1335 | AA50: 3754.674 | AB50: 12324.1335 | AC50: 3754.464 | AD50: 12324.1335 | AE50: 3754.464 | AF50: 12324.1335 | AG50: 7508.928 | AH50: 12361.9335 | AI50: 2290.365 | AJ50: 12361.9335 | AK50: 2290.365 | AL50: 97373.661 | AN50: =+H50*0.05 -> 586.8635 | AO50: =+I50*0.05 -> 178.794 | AP50: =+J50*0.05 -> 586.8635 | AQ50: =+K50*0.05 -> 178.784 | AR50: =+L50*0.05 -> 586.8635 | AS50: =+M50*0.05 -> 178.784 | AT50: =+N50*0.05 -> 586.8635 | AU50: =+O50*0.05 -> 357.568 | AV50: =+P50*0.05 -> 588.6635 | AW50: =+Q50*0.05 -> 109.065 | AX50: =+R50*0.05 -> 588.6635 | AY50: =+S50*0.05 -> 109.065
C51: 15000 | D51: 2000 | F51: GASTOS DE CAPACITACION | M51: 59910.62 | P51: 134492.66 | U51: 194403.28 | V51: 0 | W51: 194403.28 | AL51: 0 | AN51: 0 | AO51: 0 | AP51: 0 | AQ51: 0 | AR51: 0 | AS51: 2995.531 | AT51: 0 | AU51: 0 | AV51: 6724.633 | AW51: 0 | AX51: 0 | AY51: 0
C52: 5155.31 | D52: 5536.02 | E52: 4953.45 | F52: TELEFONO | I52: 363.38 | J52: 363.22 | K52: 367.64 | L52: 362.38 | M52: 365.05 | O52: 718.97 | P52: 534.8 | R52: 362.38 | S52: 725.76 | U52: 4163.58 | V52: 4856 | W52: -692.42 | Z52: =+H52+AN52 -> 0 | AA52: =+I52+AO52 -> 381.549 | AB52: =+J52+AP52 -> 381.381 | AC52: =+K52+AQ52 -> 386.022 | AD52: =+L52+AR52 -> 380.499 | AE52: =+M52+AS52 -> 383.3025 | AF52: =+N52+AT52 -> 0 | AG52: =+O52+AU52 -> 754.9185 | AH52: =+P52+AV52 -> 561.54 | AI52: =+Q52+AW52 -> 0 | AJ52: =+R52+AX52 -> 380.499 | AK52: =+S52+AY52 -> 762.048 | AL52: 4371.759 | AN52: 0 | AO52: 18.169 | AP52: 18.161 | AQ52: 18.382 | AR52: 18.119 | AS52: 18.2525 | AT52: 0 | AU52: 35.9485 | AV52: 26.74 | AW52: 0 | AX52: 18.119 | AY52: 36.288
C53: 3930 | D53: 1772.7 | E53: 2470.87 | F53: CONSUMOS | K53: 3357 | L53: 2680 | M53: 5393 | N53: 1745.46 | P53: 126 | S53: 27798 | U53: 41099.46 | V53: 616 | W53: 40483.46 | Z53: 0 | AA53: 0 | AB53: 0 | AC53: 3524.85 | AD53: 2814 | AE53: 5662.65 | AF53: 1832.733 | AG53: 0 | AH53: 132.3 | AI53: 0 | AJ53: 0 | AK53: 29187.9 | AL53: 43154.433 | AN53: 0 | AO53: 0 | AP53: 0 | AQ53: 167.85 | AR53: 134 | AS53: 269.65 | AT53: 87.273 | AU53: 0 | AV53: 6.3 | AW53: 0 | AX53: 0 | AY53: 1389.9
F54: HONORARIOS | R54: 20000 | S54: 13500 | U54: =SUM(H54:S54)+T54 -> 33500 | W54: 33500 | Z54: 0 | AA54: 0 | AB54: 0 | AC54: 0 | AD54: 0 | AE54: 0 | AF54: 0 | AG54: 0 | AH54: 0 | AI54: 0 | AJ54: 21000 | AK54: 14175 | AL54: 35175 | AN54: 0 | AO54: 0 | AP54: 0 | AQ54: 0 | AR54: 0 | AS54: 0 | AT54: 0 | AU54: 0 | AV54: 0 | AW54: 0 | AX54: 1000 | AY54: 675
D55: 935.1 | F55: PAPELERIA Y COPIAS | U55: 0 | V55: 0 | W55: 0 | Z55: 0 | AA55: 0 | AB55: 0 | AC55: 0 | AD55: 0 | AE55: 0 | AF55: 0 | AG55: 0 | AH55: 0 | AI55: 0 | AJ55: 0 | AK55: 0 | AL55: 0 | AN55: 0 | AO55: 0 | AP55: 0 | AQ55: 0 | AR55: 0 | AS55: 0 | AT55: 0 | AU55: 0 | AV55: 0 | AW55: 0 | AX55: 0 | AY55: 0
C56: 11877.8 | D56: 0 | F56: SEGUROS Y FIANZAS | U56: 0 | V56: 0 | W56: 0 | Z56: 0 | AA56: 0 | AB56: 0 | AC56: 0 | AD56: 0 | AE56: 0 | AF56: 0 | AG56: 0 | AH56: 0 | AI56: 0 | AJ56: 0 | AK56: 0 | AL56: 0 | AN56: 0 | AO56: 0 | AP56: 0 | AQ56: 0 | AR56: 0 | AS56: 0 | AT56: 0 | AU56: 0 | AV56: 0 | AW56: 0 | AX56: 0 | AY56: 0
C57: 29974.1 | D57: 76534.65 | E57: 29773.73 | F57: GASTOS DE VIAJE | H57: 4461.67 | I57: 3508.17 | J57: 22595.13 | K57: 484 | L57: 4082.3 | M57: 16833.95 | P57: 5861.9 | R57: 5695 | S57: 8135 | U57: 71657.12 | V57: 31034 | W57: 40623.12 | Z57: 4684.7535 | AA57: 3683.5785 | AB57: 23724.8865 | AC57: 508.2 | AD57: 4286.415 | AE57: 17675.6475 | AF57: 0 | AG57: 0 | AH57: 6154.995 | AI57: 0 | AJ57: 5979.75 | AK57: 8541.75 | AL57: 75239.976 | AN57: 223.0835 | AO57: 175.4085 | AP57: 1129.7565 | AQ57: 24.2 | AR57: 204.115 | AS57: 841.6975 | AT57: 0 | AU57: 0 | AV57: 293.095 | AW57: 0 | AX57: 284.75 | AY57: 406.75
C58: 6820 | D58: 6192.29 | F58: VARIOS | O58: 10000 | U58: 10000 | V58: 0 | W58: 10000 | Z58: 0 | AA58: 0 | AB58: 0 | AC58: 0 | AD58: 0 | AE58: 0 | AF58: 0 | AG58: 10500 | AH58: 0 | AI58: 0 | AJ58: 0 | AK58: 0 | AL58: 10500 | AN58: 0 | AO58: 0 | AP58: 0 | AQ58: 0 | AR58: 0 | AS58: 0 | AT58: 0 | AU58: 500 | AV58: 0 | AW58: 0 | AX58: 0 | AY58: 0
C59: 801 | D59: 0 | F59: NO DEDUCIBLES | I59: 760 | U59: 760 | V59: 0 | W59: 760 | Z59: 0 | AA59: 798 | AB59: 0 | AC59: 0 | AD59: 0 | AE59: 0 | AF59: 0 | AG59: 0 | AH59: 0 | AI59: 0 | AJ59: 0 | AK59: 0 | AL59: 798 | AN59: 0 | AO59: 38 | AP59: 0 | AQ59: 0 | AR59: 0 | AS59: 0 | AT59: 0 | AU59: 0 | AV59: 0 | AW59: 0 | AX59: 0 | AY59: 0
F60: PUBLICIDAD | K60: 4000 | M60: 4000 | U60: =SUM(H60:S60)+T60 -> 8000 | V60: 0 | W60: 8000 | Z60: 0 | AA60: 0 | AB60: 0 | AC60: 4200 | AD60: 0 | AE60: 4200 | AF60: 0 | AG60: 0 | AH60: 0 | AI60: 0 | AJ60: 0 | AK60: 0 | AL60: 8400 | AN60: 0 | AO60: 0 | AP60: 0 | AQ60: 200 | AR60: 0 | AS60: 200 | AT60: 0 | AU60: 0 | AV60: 0 | AW60: 0 | AX60: 0 | AY60: 0
C61: 0 | D61: 0 | F61: RELACIONES PUBLICAS | U61: 0 | V61: 0 | W61: 0 | Z61: 0 | AA61: 0 | AB61: 0 | AC61: 0 | AD61: 0 | AE61: 0 | AF61: 0 | AG61: 0 | AH61: 0 | AI61: 0 | AJ61: 0 | AK61: 0 | AL61: 0 | AN61: 0 | AO61: 0 | AP61: 0 | AQ61: 0 | AR61: 0 | AS61: 0 | AT61: 0 | AU61: 0 | AV61: 0 | AW61: 0 | AX61: 0 | AY61: 0
C62: 702307.3 | D62: =SUM(D46:D57) -> 753805.75 | E62: =SUM(E46:E57) -> 737548.78 | F62: TOTAL ADMINISTRATIVOS | H62: =SUM(H46:H57) -> 65315.36 | I62: =SUM(I46:I61) -> 57323.85 | J62: =SUM(J46:J61) -> 83812.04 | K62: =SUM(K46:K61) -> 60900.74 | L62: =SUM(L46:L61) -> 67978.37 | M62: =SUM(M46:M61) -> 139194.72 | N62: 62599.15 | O62: 66986.33 | P62: 201905.05 | Q62: 51297.72 | R62: 86947.07 | S62: 149900.18 | T62: 0 | U62: 1094160.58 | V62: 789746 | W62: 304414.58 | Z62: =SUM(Z46:Z61) -> 68581.147 | AA62: 60190.0615 | AB62: 88002.661 | AC62: 63945.796 | AD62: 71377.3075 | AE62: 83248.324 | AF62: 65729.1265 | AG62: 70336.1065 | AH62: 70783.0285 | AI62: 53862.625 | AJ62: 91294.4425 | AK62: 181839.003 | AL62: 969189.629
F65: GASTOS DE OPERACIÓN:
C66: 4400171.31 | D66: 5031877.83 | E66: =5469254.78-136220.01 -> 5333034.77 | F66: SUELDOS | H66: 445142.89 | I66: 473043.54 | J66: 551987.74 | K66: 503533.93 | L66: 497004.3 | M66: 577718.55 | N66: 503599.79 | O66: 697181.2 | P66: 536346.16 | Q66: 540461.95 | R66: 691457.94 | S66: 464067.32 | U66: =SUM(H66:S66)+T66 -> 6481545.31 | V66: 5586542 | W66: =+U66-V66 -> 895003.31 | Z66: 555462.22 | AA66: 555462.22 | AB66: 616963.81 | AC66: 555462.22 | AD66: 555462.22 | AE66: 616963.81 | AF66: 555462.22 | AG66: 555462.22 | AH66: 616963.81 | AI66: 555462.22 | AJ66: 555462.22 | AK66: 616963.81 | AL66: =SUM(Z66:AK66) -> 6911553 | AN66: =+AN5+AN6 -> 552041.52 | AO66: 552041.52 | AP66: 614854.01 | AQ66: 552041.52 | AR66: 552041.52 | AS66: 614854.01 | AT66: 552041.52 | AU66: 552041.52 | AV66: 614854.01 | AW66: 552041.52 | AX66: 552041.52 | AY66: 614854.01
C67: 375199.14 | D67: 338809.3 | E67: 389199.5 | F67: SUELDOS ASIMILADOS | H67: 33794 | I67: 45220.33 | J67: 44388.86 | K67: 37013.86 | L67: 58731.56 | M67: 37013.86 | N67: 57052.46 | O67: 37013.86 | P67: 37013.86 | Q67: 37013.86 | R67: 37829.35 | S67: 78766.37 | U67: 540852.23 | V67: 456219 | W67: 84633.23 | Z67: 34025.72 | AA67: 34025.72 | AB67: 34025.72 | AC67: 34025.72 | AD67: 34025.72 | AE67: 34025.72 | AF67: 34025.72 | AG67: 34025.72 | AH67: 34025.72 | AI67: 34025.72 | AJ67: 34025.72 | AK67: 34025.72 | AL67: =SUM(Z67:AK67) -> 408308.64 | AN67: =17012.86*2 -> 34025.72 | AO67: =17012.86*2 -> 34025.72 | AP67: 34025.72 | AQ67: 34025.72 | AR67: 34025.72 | AS67: 34025.72 | AT67: 34025.72 | AU67: 34025.72 | AV67: 34025.72 | AW67: 34025.72 | AX67: 68051.44 | AY67: 34025.72
C68: 131801.47 | D68: 200782.62 | E68: 226564.64 | F68: VACACIONES | H68: 15813.71 | J68: 17031.88 | K68: 4608.5 | L68: 14792.38 | N68: 28302.63 | O68: 24600.03 | P68: 15948.97 | Q68: 3697.5 | R68: 73733.8 | U68: 198529.4 | V68: 239695 | W68: -41165.6 | Z68: 10422.79 | AA68: 10422.79 | AB68: 10422.79 | AC68: 10422.79 | AD68: 10422.79 | AE68: 10422.79 | AF68: 10422.79 | AG68: 10422.79 | AH68: 10422.79 | AI68: 10422.79 | AJ68: 10422.79 | AK68: 10422.79 | AL68: 125073.48 | AN68: =+H68*0.05 -> 790.6855 | AO68: =+I68*0.05 -> 0 | AP68: =+J68*0.05 -> 851.594 | AQ68: =+K68*0.05 -> 230.425 | AR68: =+L68*0.05 -> 739.619 | AS68: =+M68*0.05 -> 0 | AT68: =+N68*0.05 -> 1415.1315 | AU68: =+O68*0.05 -> 1230.0015 | AV68: =+P68*0.05 -> 797.4485 | AW68: =+Q68*0.05 -> 184.875 | AX68: =+R68*0.05 -> 3686.69 | AY68: =+S68*0.05 -> 0
C69: 374804.08 | D69: 418478.53 | E69: =839780.83-398738.34 -> 441042.49 | F69: AGUINALDO | O69: 4419.84 | S69: 507803.13 | U69: 512222.97 | V69: 500253 | W69: 11969.97 | AK69: 616963.81 | AL69: 616963.81 | AX69: 552041.52
C70: 5000 | D70: 1000 | E70: 4580.1 | F70: LIQ. E INDEMNIZACIONES | O70: 20063.7 | U70: 20063.7 | V70: 0 | W70: 20063.7 | Z70: =+H70+AN70 -> 0 | AA70: =+I70+AO70 -> 0 | AB70: =+J70+AP70 -> 0 | AC70: =+K70+AQ70 -> 0 | AD70: =+L70+AR70 -> 0 | AE70: =+M70+AS70 -> 0 | AF70: =+N70+AT70 -> 0 | AG70: =+O70+AU70 -> 21066.885 | AH70: =+P70+AV70 -> 0 | AI70: =+Q70+AW70 -> 0 | AJ70: =+R70+AX70 -> 0 | AK70: =+S70+AY70 -> 0 | AL70: 21066.885 | AN70: =+H70*0.05 -> 0 | AO70: =+I70*0.05 -> 0 | AP70: 0 | AQ70: 0 | AR70: 0 | AS70: 0 | AT70: 0 | AU70: 1003.185 | AV70: 0 | AW70: 0 | AX70: 0 | AY70: 0
C71: 4929 | D71: 0 | E71: 12240 | F71: UNIFORMES Y EQ. DE TRABAJO | J71: 389.5 | M71: 21069.29 | S71: 780 | U71: 22238.79 | V71: 12852 | W71: 9386.79 | Z71: 0 | AA71: 0 | AB71: 408.975 | AC71: 0 | AD71: 0 | AE71: 22122.7545 | AF71: 0 | AG71: 0 | AH71: 0 | AI71: 0 | AJ71: 0 | AK71: 819 | AL71: 23350.7295 | AN71: =+H71*0.05 -> 0 | AO71: =+I71*0.05 -> 0 | AP71: =+J71*0.05 -> 19.475 | AQ71: =+K71*0.05 -> 0 | AR71: =+L71*0.05 -> 0 | AS71: =+M71*0.05 -> 1053.4645 | AT71: =+N71*0.05 -> 0 | AU71: =+O71*0.05 -> 0 | AV71: =+P71*0.05 -> 0 | AW71: =+Q71*0.05 -> 0 | AX71: =+R71*0.05 -> 0 | AY71: =+S71*0.05 -> 39
C72: 899632.89 | D72: 1008202.87 | E72: =462030.87+344967.5+274874.66 -> 1081873.03 | F72: I.M.S.S, SAR,INFONAVIT | H72: =36551.81+54470.04+43402.43 -> 134424.28 | I72: 39166.62 | J72: =39092.37+59859.19+47696.59 -> 146648.15 | K72: 38157.4 | L72: =39679.6+64628.47+51496.79 -> 155804.86 | M72: 40142.87 | N72: =38108.44+65052.75+51834.86 -> 154996.05 | O72: 80966.4 | P72: =42191.84+67583.92+53815.7 -> 163591.46 | Q72: 41245.24 | R72: =42694.96+67787.75+54083.87+6373.03 -> 170939.61 | S72: 40265.47 | U72: 1206348.41 | V72: 1134829 | W72: 71519.41 | Z72: =+H72+AN72+18000 -> 159145.494 | AA72: 41124.951 | AB72: 153980.5575 | AC72: 40065.27 | AD72: 163595.103 | AE72: 42150.0135 | AF72: 162745.8525 | AG72: 85014.72 | AH72: 171771.033 | AI72: 43307.502 | AJ72: 179486.5905 | AK72: 42278.7435 | AL72: 1284665.831 | AN72: 6721.214 | AO72: 1958.331 | AP72: 7332.4075 | AQ72: 1907.87 | AR72: 7790.243 | AS72: 2007.1435 | AT72: 7749.8025 | AU72: 4048.32 | AV72: 8179.573 | AW72: 2062.262 | AX72: 8546.9805 | AY72: 2013.2735
C73: 7120 | D73: 10715 | F73: IMPUESTOS ESTATALES | J73: 21191 | U73: 21191 | V73: 10715 | W73: 10476 | Z73: 0 | AA73: 0 | AB73: 22250.55 | AC73: 0 | AD73: 0 | AE73: 0 | AF73: 0 | AG73: 0 | AH73: 0 | AI73: 0 | AJ73: 0 | AK73: 0 | AL73: 22250.55 | AN73: 0 | AO73: 0 | AP73: 1059.55 | AQ73: 0 | AR73: 0 | AS73: 0 | AT73: 0 | AU73: 0 | AV73: 0 | AW73: 0 | AX73: 0 | AY73: 0
C74: 0 | D74: 0 | E74: 1350 | F74: GASTOS DE CAPACITACION | U74: 0 | W74: 0 | Z74: 0 | AA74: 0 | AB74: 0 | AC74: 0 | AD74: 0 | AE74: 0 | AF74: 0 | AG74: 0 | AH74: 0 | AI74: 0 | AJ74: 0 | AK74: 0 | AL74: 0 | AN74: 0 | AO74: 0 | AP74: 0 | AQ74: 0 | AR74: 0 | AS74: 0 | AT74: 0 | AU74: 0 | AV74: 0 | AW74: 0 | AX74: 0 | AY74: 0
C75: 98434.5 | D75: 102817.8 | E75: 103871.04 | F75: TELEFONO | H75: 7947.37 | I75: 550.26 | J75: 16988.35 | K75: 555.57 | L75: 597.83 | M75: 21312.4 | O75: 6885.32 | P75: 12086.5 | Q75: 695.65 | R75: 6083.18 | S75: 12555.07 | U75: 86257.5 | V75: 91642 | W75: -5384.5 | Z75: 8344.7385 | AA75: 577.773 | AB75: 17837.7675 | AC75: 583.3485 | AD75: 627.7215 | AE75: 22378.02 | AF75: 0 | AG75: 7229.586 | AH75: 12690.825 | AI75: 730.4325 | AJ75: 6387.339 | AK75: 13182.8235 | AL75: 90570.375 | AN75: 397.3685 | AO75: 27.513 | AP75: 849.4175 | AQ75: 27.7785 | AR75: 29.8915 | AS75: 1065.62 | AT75: 0 | AU75: 344.266 | AV75: 604.325 | AW75: 34.7825 | AX75: 304.159 | AY75: 627.7535
C76: 1105322.036 | D76: 1271523.4 | E76: 1461401.49 | F76: ELECTRICIDAD | H76: 101687.34 | I76: 85760.06 | J76: 86185.11 | K76: 143420 | L76: 138349.09 | M76: 159612.25 | N76: 162564.36 | O76: 122732.08 | P76: 126568.67 | Q76: 277823.63 | R76: 124447.54 | S76: 104688.85 | U76: 1633838.98 | V76: 1909914 | W76: -276075.02 | Z76: 106771.707 | AA76: 90048.063 | AB76: 90494.3655 | AC76: 150591 | AD76: 145266.5445 | AE76: 167592.8625 | AF76: 170692.578 | AG76: 128868.684 | AH76: 132897.1035 | AI76: 291714.8115 | AJ76: 130669.917 | AK76: 109923.2925 | AL76: 1715530.929 | AN76: 5084.367 | AO76: 4288.003 | AP76: 4309.2555 | AQ76: 7171 | AR76: 6917.4545 | AS76: 7980.6125 | AT76: 8128.218 | AU76: 6136.604 | AV76: 6328.4335 | AW76: 13891.1815 | AX76: 6222.377 | AY76: 5234.4425
C77: 40248.02 | D77: 49169.63 | E77: 136293.75 | F77: AGUA | H77: 1100 | I77: 14799.16 | J77: 30553.6 | K77: 435 | L77: 17094.04 | M77: 15659.3 | N77: 16289.56 | O77: 42466.04 | P77: 420 | Q77: 47727.9 | R77: 8991.26 | S77: 3617.19 | U77: 199153.05 | V77: 115149 | W77: 84004.05 | Z77: 1155 | AA77: 15539.118 | AB77: 32081.28 | AC77: 456.75 | AD77: 17948.742 | AE77: 16442.265 | AF77: 17104.038 | AG77: 44589.342 | AH77: 441 | AI77: 50114.295 | AJ77: 9440.823 | AK77: 3798.0495 | AL77: 209110.7025 | AN77: 55 | AO77: 739.958 | AP77: 1527.68 | AQ77: 21.75 | AR77: 854.702 | AS77: 782.965 | AT77: 814.478 | AU77: 2123.302 | AV77: 21 | AW77: 2386.395 | AX77: 449.563 | AY77: 180.8595
C78: 24440.65 | D78: 38244.16 | E78: 42188.73 | F78: COMBUSTIBLES Y LUBRICANTES | H78: 3060.77 | I78: 5596.58 | J78: 4019.11 | K78: 5257.28 | L78: 5295.78 | M78: 7953.8 | N78: 12706.12 | O78: 6404.65 | P78: 3803.45 | Q78: 3052.03 | R78: 8775.82 | S78: 3945.67 | U78: 69871.06 | V78: 44556 | W78: 25315.06 | Z78: 3213.8085 | AA78: 5876.409 | AB78: 4220.0655 | AC78: 5520.144 | AD78: 5560.569 | AE78: 8351.49 | AF78: 13341.426 | AG78: 6724.8825 | AH78: 3993.6225 | AI78: 3204.6315 | AJ78: 9214.611 | AK78: 4142.9535 | AL78: 73364.613 | AN78: 153.0385 | AO78: 279.829 | AP78: 200.9555 | AQ78: 262.864 | AR78: 264.789 | AS78: 397.69 | AT78: 635.306 | AU78: 320.2325 | AV78: 190.1725 | AW78: 152.6015 | AX78: 438.791 | AY78: 197.2835
C79: 0 | D79: 4545.82 | E79: 245.07 | F79: CORREO Y TELEGRAFO | J79: 27.07 | U79: 27.07 | W79: 27.07 | Z79: 0 | AA79: 0 | AB79: 28.4235 | AC79: 0 | AD79: 0 | AE79: 0 | AF79: 0 | AG79: 0 | AH79: 0 | AI79: 0 | AJ79: 0 | AK79: 0 | AL79: 28.4235 | AN79: 0 | AO79: 0 | AP79: 1.3535 | AQ79: 0 | AR79: 0 | AS79: 0 | AT79: 0 | AU79: 0 | AV79: 0 | AW79: 0 | AX79: 0 | AY79: 0
C80: 32085.92 | D80: 5323.5 | E80: 12891.24 | F80: PAQUETERIA Y MENSAJERIA | H80: 5110.72 | J80: 5170.47 | K80: 268.86 | L80: 350.4 | M80: 5193.79 | O80: 5410.01 | P80: 5371.34 | S80: 5158.47 | U80: 32034.06 | V80: 15134 | W80: 16900.06 | Z80: 5366.256 | AA80: 0 | AB80: 5428.9935 | AC80: 282.303 | AD80: 367.92 | AE80: 5453.4795 | AF80: 0 | AG80: 5680.5105 | AH80: 5639.907 | AI80: 0 | AJ80: 0 | AK80: 5416.3935 | AL80: 33635.763 | AN80: 255.536 | AO80: 0 | AP80: 258.5235 | AQ80: 13.443 | AR80: 17.52 | AS80: 259.6895 | AT80: 0 | AU80: 270.5005 | AV80: 268.567 | AW80: 0 | AX80: 0 | AY80: 257.9235
C81: 88440.65 | D81: 69158.22 | E81: 86623.46 | F81: CONSUMOS OFICINA | H81: 835.3 | I81: 1368.57 | J81: 3491.84 | K81: 852.1 | L81: 4090.15 | M81: 4132.5 | N81: 896.28 | O81: 1011.21 | P81: 1484.1 | Q81: 1689.5 | R81: 1350 | S81: 837.35 | U81: 22038.9 | V81: 48578 | W81: -26539.1 | Z81: 877.065 | AA81: 1436.9985 | AB81: 3666.432 | AC81: 894.705 | AD81: 4294.6575 | AE81: 4339.125 | AF81: 941.094 | AG81: 1061.7705 | AH81: 1558.305 | AI81: 1773.975 | AJ81: 1417.5 | AK81: 879.2175 | AL81: 23140.845 | AN81: 41.765 | AO81: 68.4285 | AP81: 174.592 | AQ81: 42.605 | AR81: 204.5075 | AS81: 206.625 | AT81: 44.814 | AU81: 50.5605 | AV81: 74.205 | AW81: 84.475 | AX81: 67.5 | AY81: 41.8675
C82: 25099 | D82: 22372.4 | E82: 21739 | F82: CUOTAS Y SUSCRIPCIONES | H82: 820 | I82: 820 | J82: 820 | K82: 820 | L82: 820 | M82: 9549 | N82: 820 | O82: 820 | P82: 820 | Q82: 820 | R82: 1919 | S82: 820 | U82: 19668 | V82: 30056 | W82: -10388 | Z82: 861 | AA82: 861 | AB82: 861 | AC82: 861 | AD82: 861 | AE82: 10026.45 | AF82: 861 | AG82: 861 | AH82: 861 | AI82: 861 | AJ82: 2014.95 | AK82: 861 | AL82: 20651.4 | AN82: 41 | AO82: 41 | AP82: 41 | AQ82: 41 | AR82: 41 | AS82: 477.45 | AT82: 41 | AU82: 41 | AV82: 41 | AW82: 41 | AX82: 95.95 | AY82: 41
C83: 1224.75 | D83: 450 | F83: ESTACIONAMIENTO | U83: 0 | V83: 17 | W83: -17 | Z83: 0 | AA83: 0 | AB83: 0 | AC83: 0 | AD83: 0 | AE83: 0 | AF83: 0 | AG83: 0 | AH83: 0 | AI83: 0 | AJ83: 0 | AK83: 0 | AL83: 0 | AN83: 0 | AO83: 0 | AP83: 0 | AQ83: 0 | AR83: 0 | AS83: 0 | AT83: 0 | AU83: 0 | AV83: 0 | AW83: 0 | AX83: 0 | AY83: 0
C84: 67894.77 | D84: 61678.38 | E84: 60419.64 | F84: ARRENDAMIENTO | H84: 5034.97 | I84: 5034.97 | J84: 5034.97 | K84: 5034.97 | L84: 5034.97 | M84: 5034.97 | N84: 5034.97 | O84: 5034.97 | P84: 5034.97 | Q84: 5034.97 | R84: 5034.97 | S84: 5034.97 | U84: 60419.64 | V84: 63705 | W84: -3285.36 | Z84: 5286.7185 | AA84: 5286.7185 | AB84: 5286.7185 | AC84: 5286.7185 | AD84: 5286.7185 | AE84: 5286.7185 | AF84: 5286.7185 | AG84: 5286.7185 | AH84: 5286.7185 | AI84: 5286.7185 | AJ84: 5286.7185 | AK84: 5286.7185 | AL84: 63440.622 | AN84: 251.7485 | AO84: 251.7485 | AP84: 251.7485 | AQ84: 251.7485 | AR84: 251.7485 | AS84: 251.7485 | AT84: 251.7485 | AU84: 251.7485 | AV84: 251.7485 | AW84: 251.7485 | AX84: 251.7485 | AY84: 251.7485
C85: 17578.94 | D85: 93879.91 | E85: 10489.51 | F85: HONORARIOS | I85: 7342.66 | J85: 26223.77 | L85: 9440.56 | M85: 18881.12 | N85: 9440.56 | O85: 9440.56 | P85: 18881.12 | Q85: 9440.56 | S85: 28321.68 | U85: 137412.59 | W85: 137412.59 | Z85: 0 | AA85: =+I85+AO85+10000 -> 17709.793 | AB85: =+J85+AP85+8000 -> 35534.9585 | AC85: =10000+8000 -> 18000 | AD85: =+L85+AR85+8000 -> 17912.588 | AE85: =+M85+AS85+10000+8000 -> 37825.176 | AF85: =+N85+AT85+8000 -> 17912.588 | AG85: =+O85+AU85+10000+8000 -> 27912.588 | AH85: =+P85+AV85+8000 -> 27825.176 | AI85: =+Q85+AW85+10000+8000 -> 27912.588 | AJ85: =+R85+AX85+8000 -> 8000 | AK85: =+S85+AY85+10000+8000 -> 47737.764 | AL85: 284283.2195 | AN85: 0 | AO85: 367.133 | AP85: 1311.1885 | AQ85: 0 | AR85: 472.028 | AS85: 944.056 | AT85: 472.028 | AU85: 472.028 | AV85: 944.056 | AW85: 472.028 | AX85: 0 | AY85: 1416.084
C86: 486905.48 | D86: 883448.11 | E86: 859420.43 | F86: MANTENIMIENTO. | H86: 40811.01 | I86: 40643.76 | J86: 127762.21 | K86: 94458 | L86: 47576.61 | M86: 98445.51 | N86: 115330.79 | O86: 56028.61 | P86: 113485.75 | Q86: 32913.44 | R86: 87849.88 | S86: 95618.95 | U86: 950924.52 | V86: 1204974 | W86: -254049.48 | Z86: 42851.5605 | AA86: 42675.948 | AB86: 134150.3205 | AC86: 99180.9 | AD86: 49955.4405 | AE86: 103367.7855 | AF86: 121097.3295 | AG86: 58830.0405 | AH86: 119160.0375 | AI86: 34559.112 | AJ86: 92242.374 | AK86: 100399.8975 | AL86: 998470.746 | AN86: 2040.5505 | AO86: 2032.188 | AP86: 6388.1105 | AQ86: 4722.9 | AR86: 2378.8305 | AS86: 4922.2755 | AT86: 5766.5395 | AU86: 2801.4305 | AV86: 5674.2875 | AW86: 1645.672 | AX86: 4392.494 | AY86: 4780.9475
C87: 41577.91 | D87: 49113.17 | E87: 52926.52 | F87: PAPELERIA Y COPIAS | H87: 1305.26 | I87: 7947.62 | J87: 5292.52 | K87: 1026.78 | L87: 6178.1 | M87: 1713.81 | N87: 1808.58 | O87: 2889.05 | P87: 3614.48 | Q87: 8221.39 | R87: 563.01 | S87: 2099.64 | U87: 42660.24 | V87: 43158 | W87: -497.76 | Z87: 1370.523 | AA87: 8345.001 | AB87: 5557.146 | AC87: 1078.119 | AD87: 6487.005 | AE87: 1799.5005 | AF87: 1899.009 | AG87: 3033.5025 | AH87: 3795.204 | AI87: 8632.4595 | AJ87: 591.1605 | AK87: 2204.622 | AL87: 44793.252 | AN87: 65.263 | AO87: 397.381 | AP87: 264.626 | AQ87: 51.339 | AR87: 308.905 | AS87: 85.6905 | AT87: 90.429 | AU87: 144.4525 | AV87: 180.724 | AW87: 411.0695 | AX87: 28.1505 | AY87: 104.982
C88: 765940.33 | D88: 851532.44 | E88: 806107.2 | F88: SEGUROS Y FIANZAS | J88: 60947.48 | L88: 44496.51 | M88: 237872.82 | Q88: 347475.65 | R88: 215971.01 | U88: 906763.47 | V88: 1008615 | W88: -101851.53 | Z88: 0 | AA88: 0 | AB88: 63994.854 | AC88: 0 | AD88: 46721.3355 | AE88: 249766.461 | AF88: 0 | AG88: 0 | AH88: 0 | AI88: 364849.4325 | AJ88: 226769.5605 | AK88: 0 | AL88: 952101.6435 | AN88: 0 | AO88: 0 | AP88: 3047.374 | AQ88: 0 | AR88: 2224.8255 | AS88: 11893.641 | AT88: 0 | AU88: 0 | AV88: 0 | AW88: 17373.7825 | AX88: 10798.5505 | AY88: 0
C89: 58396.2 | D89: 87530.6 | E89: 83124.75 | F89: UTILES Y GASTOS DE LIMPIEZA | I89: 6964 | J89: 14807.5 | K89: 9915.2 | M89: 17859 | N89: 23 | O89: 12814.91 | P89: 9115 | Q89: 7242.45 | R89: 9872 | S89: 15328.98 | U89: 103942.04 | V89: 92879 | W89: 11063.04 | Z89: 0 | AA89: 7312.2 | AB89: 15547.875 | AC89: 10410.96 | AD89: 0 | AE89: 18751.95 | AF89: 24.15 | AG89: 13455.6555 | AH89: 9570.75 | AI89: 7604.5725 | AJ89: 10365.6 | AK89: 16095.429 | AL89: 109139.142 | AN89: 0 | AO89: 348.2 | AP89: 740.375 | AQ89: 495.76 | AR89: 0 | AS89: 892.95 | AT89: 1.15 | AU89: 640.7455 | AV89: 455.75 | AW89: 362.1225 | AX89: 493.6 | AY89: 766.449
C90: 59765.16 | D90: 40045.44 | E90: 19234.98 | F90: GASTOS DE VIAJE | H90: 3123 | J90: 7965.62 | O90: 6578 | Q90: 116 | U90: 17782.62 | V90: 24205 | W90: -6422.38 | Z90: 3279.15 | AA90: 0 | AB90: 8363.901 | AC90: 0 | AD90: 0 | AE90: 0 | AF90: 0 | AG90: 6906.9 | AH90: 0 | AI90: 121.8 | AJ90: 0 | AK90: 0 | AL90: 18671.751 | AN90: 156.15 | AO90: 0 | AP90: 398.281 | AQ90: 0 | AR90: 0 | AS90: 0 | AT90: 0 | AU90: 328.9 | AV90: 0 | AW90: 5.8 | AX90: 0 | AY90: 0
C91: 0 | D91: 0 | F91: FLETES Y ACARREOS | U91: 0 | W91: 0 | Z91: 0 | AA91: 0 | AB91: 0 | AC91: 0 | AD91: 0 | AE91: 0 | AF91: 0 | AG91: 0 | AH91: 0 | AI91: 0 | AJ91: 0 | AK91: 0 | AL91: 0 | AN91: 0 | AO91: 0 | AP91: 0 | AQ91: 0 | AR91: 0 | AS91: 0 | AT91: 0 | AU91: 0 | AV91: 0 | AW91: 0 | AX91: 0 | AY91: 0
C92: 60072.68 | D92: 16326.74 | E92: =5798.02-3412.5 -> 2385.52 | F92: NO DEDUCIBLES. | H92: 2089.74 | I92: 5537.95 | J92: 1115 | K92: 1180 | L92: 2733.65 | M92: 739.25 | O92: 809.08 | P92: 200 | Q92: 202.09 | R92: 21617.52 | S92: 706.67 | U92: 36930.95 | V92: 17668 | W92: 19262.95 | Z92: 2194.227 | AA92: 5814.8475 | AB92: 1170.75 | AC92: 1239 | AD92: 2870.3325 | AE92: 776.2125 | AF92: 0 | AG92: 849.534 | AH92: 210 | AI92: 212.1945 | AJ92: 22698.396 | AK92: 742.0035 | AL92: 38777.4975 | AN92: 104.487 | AO92: 276.8975 | AP92: 55.75 | AQ92: 59 | AR92: 136.6825 | AS92: 36.9625 | AT92: 0 | AU92: 40.454 | AV92: 10 | AW92: 10.1045 | AX92: 1080.876 | AY92: 35.3335
C93: 1699 | D93: 0 | F93: PUBLICIDAD | U93: 0 | V93: 624 | W93: -624 | Z93: 0 | AA93: 0 | AB93: 0 | AC93: 0 | AD93: 0 | AE93: 0 | AF93: 0 | AG93: 0 | AH93: 0 | AI93: 0 | AJ93: 0 | AK93: 0 | AL93: 0 | AN93: 0 | AO93: 0 | AP93: 0 | AQ93: 0 | AR93: 0 | AS93: 0 | AT93: 0 | AU93: 0 | AV93: 0 | AW93: 0 | AX93: 0 | AY93: 0
C94: 0 | D94: 121.8 | E94: 1689.8 | F94: VARIOS | I94: 235 | M94: 91.8 | N94: 149.5 | S94: 594.63 | U94: 1070.93 | V94: 1774 | W94: -703.07 | Z94: 0 | AA94: 246.75 | AB94: 0 | AC94: 0 | AD94: 0 | AE94: 96.39 | AF94: 156.975 | AG94: 0 | AH94: 0 | AI94: 0 | AJ94: 0 | AK94: 624.3615 | AL94: 1124.4765 | AN94: 0 | AO94: 11.75 | AP94: 0 | AQ94: 0 | AR94: 0 | AS94: 4.59 | AT94: 7.475 | AU94: 0 | AV94: 0 | AW94: 0 | AX94: 0 | AY94: 29.7315
C95: 15090 | D95: 15640 | E95: 16000 | F95: BOLETOS TAQUILLA | O95: 20400 | U95: 20400 | V95: 16800 | W95: 3600 | Z95: 0 | AA95: 0 | AB95: 0 | AC95: 0 | AD95: 0 | AE95: 0 | AF95: 0 | AG95: 21420 | AH95: 0 | AI95: 0 | AJ95: 0 | AK95: 0 | AL95: 21420 | AN95: 0 | AO95: 0 | AP95: 0 | AQ95: 0 | AR95: 0 | AS95: 0 | AT95: 0 | AU95: 1020 | AV95: 0 | AW95: 0 | AX95: 0 | AY95: 0
C96: 0 | D96: 0 | F96: GUIAS Y FOLLETOS | U96: 0 | W96: 0 | Z96: 0 | AA96: 0 | AB96: 0 | AC96: 0 | AD96: 0 | AE96: 0 | AF96: 0 | AG96: 0 | AH96: 0 | AI96: 0 | AJ96: 0 | AK96: 0 | AL96: 0 | AN96: 0 | AO96: 0 | AP96: 0 | AQ96: 0 | AR96: 0 | AS96: 0 | AT96: 0 | AU96: 0 | AV96: 0 | AW96: 0 | AX96: 0 | AY96: 0
C97: 61.2 | D97: 183.98 | F97: RELACIONES PUBLICAS | U97: 0 | W97: 0 | Z97: 0 | AA97: 0 | AB97: 0 | AC97: 0 | AD97: 0 | AE97: 0 | AF97: 0 | AG97: 0 | AH97: 0 | AI97: 0 | AJ97: 0 | AK97: 0 | AL97: 0 | AN97: 0 | AO97: 0 | AP97: 0 | AQ97: 0 | AR97: 0 | AS97: 0 | AT97: 0 | AU97: 0 | AV97: 0 | AW97: 0 | AX97: 0 | AY97: 0
C98: 0 | D98: 0 | E98: 2134.4 | F98: GASTOS P/OBTENCION DE DONATIVOS | U98: 0 | W98: 0 | Z98: 0 | AA98: 0 | AB98: 0 | AC98: 0 | AD98: 0 | AE98: 0 | AF98: 0 | AG98: 0 | AH98: 0 | AI98: 0 | AJ98: 0 | AK98: 0 | AL98: 0 | AN98: 0 | AO98: 0 | AP98: 0 | AQ98: 0 | AR98: 0 | AS98: 0 | AT98: 0 | AU98: 0 | AV98: 0 | AW98: 0 | AX98: 0 | AY98: 0
C99: 19496.25 | D99: 31103.15 | F99: COMISIONES BANCARIAS. | U99: 0 | V99: 2241 | W99: -2241 | Z99: 0 | AA99: 0 | AB99: 0 | AC99: 0 | AD99: 0 | AE99: 0 | AF99: 0 | AG99: 0 | AH99: 0 | AI99: 0 | AJ99: 0 | AK99: 0 | AL99: 0 | AN99: 0 | AO99: 0 | AP99: 0 | AQ99: 0 | AR99: 0 | AS99: 0 | AT99: 0 | AU99: 0 | AV99: 0 | AW99: 0 | AX99: 0 | AY99: 0
C100: 0 | D100: 0 | F100: RENTA DE MOBILIARIO | U100: 0 | V100: 2327 | W100: -2327 | Z100: 0 | AA100: 0 | AB100: 0 | AC100: 0 | AD100: 0 | AE100: 0 | AF100: 0 | AG100: 0 | AH100: 0 | AI100: 0 | AJ100: 0 | AK100: 0 | AL100: 0 | AN100: 0 | AO100: 0 | AP100: 0 | AQ100: 0 | AR100: 0 | AS100: 0 | AT100: 0 | AU100: 0 | AV100: 0 | AW100: 0 | AX100: 0 | AY100: 0
C101: 220 | D101: 1273.36 | E101: 3371 | F101: LAVANDERIA | I101: 150 | J101: 120 | L101: 335.6 | M101: 1690.2 | O101: 90 | P101: 180 | Q101: 412 | R101: 511.4 | U101: 3489.2 | V101: 3478 | W101: 11.2 | Z101: 0 | AA101: 157.5 | AB101: 126 | AC101: 0 | AD101: 352.38 | AE101: 1774.71 | AF101: 0 | AG101: 94.5 | AH101: 189 | AI101: 432.6 | AJ101: 536.97 | AK101: 0 | AL101: 3663.66 | AN101: 0 | AO101: 7.5 | AP101: 6 | AQ101: 0 | AR101: 16.78 | AS101: 84.51 | AT101: 0 | AU101: 4.5 | AV101: 9 | AW101: 20.6 | AX101: 25.57 | AY101: 0
C102: 12538 | D102: 0 | E102: 112 | F102: DONATIVOS | S102: 12000 | U102: 12000 | V102: 4725 | W102: 7275 | Z102: 0 | AA102: 0 | AB102: 0 | AC102: 0 | AD102: 0 | AE102: 0 | AF102: 0 | AG102: 0 | AH102: 0 | AI102: 0 | AJ102: 0 | AK102: 12600 | AL102: 12600 | AN102: 0 | AO102: 0 | AP102: 0 | AQ102: 0 | AR102: 0 | AS102: 0 | AT102: 0 | AU102: 0 | AV102: 0 | AW102: 0 | AX102: 0 | AY102: 600
C103: 10087 | D103: 20023.06 | E103: 15992.63 | F103: MULTAS Y RECARGOS | H103: 1661 | I103: 870 | J103: 1316 | K103: 1062 | L103: 1029 | M103: 1012 | O103: 1061 | U103: 8011 | V103: 4550 | W103: 3461 | Z103: 1744.05 | AA103: 913.5 | AB103: 1381.8 | AC103: 1115.1 | AD103: 1080.45 | AE103: 1062.6 | AF103: 0 | AG103: 1114.05 | AH103: 0 | AI103: 0 | AJ103: 0 | AK103: 0 | AL103: 8411.55 | AN103: 83.05 | AO103: 43.5 | AP103: 65.8 | AQ103: 53.1 | AR103: 51.45 | AS103: 50.6 | AT103: 0 | AU103: 53.05 | AV103: 0 | AW103: 0 | AX103: 0 | AY103: 0
C104: 2970 | D104: 7250 | E104: 22338.28 | F104: SEGURIDAD | J104: 5231 | M104: 7500 | O104: 480 | P104: 6049.01 | Q104: 6300 | R104: 9592 | S104: 3630 | U104: 38782.01 | V104: 216076 | W104: -177293.99 | Z104: 0 | AA104: 0 | AB104: 5492.55 | AC104: 0 | AD104: 0 | AE104: 7875 | AF104: 0 | AG104: 504 | AH104: 6351.4605 | AI104: 6615 | AJ104: 10071.6 | AK104: 3811.5 | AL104: 40721.1105 | AN104: 0 | AO104: 0 | AP104: 261.55 | AQ104: 0 | AR104: 0 | AS104: 375 | AT104: 0 | AU104: 24 | AV104: 302.4505 | AW104: 315 | AX104: 479.6 | AY104: 181.5
C105: 0 | D105: 6651.03 | E105: 17531.9 | F105: EQUIPO DE COMPUTO | M105: 8534.48 | N105: 1215 | U105: 9749.48 | V105: 18408 | W105: -8658.52 | Z105: 0 | AA105: 0 | AB105: 0 | AC105: 0 | AD105: 0 | AE105: 8961.204 | AF105: 1275.75 | AG105: 0 | AH105: 0 | AI105: 0 | AJ105: 0 | AK105: 0 | AL105: 10236.954 | AN105: 0 | AO105: 0 | AP105: 0 | AQ105: 0 | AR105: 0 | AS105: 426.724 | AT105: 60.75 | AU105: 0 | AV105: 0 | AW105: 0 | AX105: 0 | AY105: 0
C106: 0 | D106: 1932.08 | F106: GASTOS MEDICOS | U106: 0 | W106: 0 | Z106: 0 | AA106: 0 | AB106: 0 | AC106: 0 | AD106: 0 | AE106: 0 | AF106: 0 | AG106: 0 | AH106: 0 | AI106: 0 | AJ106: 0 | AK106: 0 | AL106: 0 | AN106: 0 | AO106: 0 | AP106: 0 | AQ106: 0 | AR106: 0 | AS106: 0 | AT106: 0 | AU106: 0 | AV106: 0 | AW106: 0 | AX106: 0 | AY106: 0
E107: 82878 | F107: COSTO DE VENTAS | U107: 0 | V107: 87022 | W107: -87022 | Z107: 0 | AA107: 0 | AB107: 0 | AC107: 0 | AD107: 0 | AE107: 0 | AF107: 0 | AG107: 0 | AH107: 0 | AI107: 0 | AJ107: 0 | AK107: 0 | AL107: 0 | AN107: 0 | AO107: 0 | AP107: 0 | AQ107: 0 | AR107: 0 | AS107: 0 | AT107: 0 | AU107: 0 | AV107: 0 | AW107: 0 | AX107: 0 | AY107: 0
C108: =881177.57-73768 -> 807409.57 | D108: =1502575.02-417416 -> 1085159.02 | E108: =2787064.76-1415387 -> 1371677.76 | F108: IVA ACREDITABLE | H108: 40469.5644 | I108: 260654.732 | J108: 321604.0672 | K108: 111703.4968 | L108: 116596.1332 | M108: 218931.3996 | N108: 78910.3244 | O108: 121835.43 | P108: 119662.766 | Q108: 127966.708 | R108: 158872.614 | S108: 83048.2656 | U108: 1760255.501 | V108: 1495054 | W108: 265201.5012 | Z108: 42493.04262 | AA108: =+I108+AO108-AA158 -> 220641.3886 | AB108: 284638.1906 | AC108: 64242.59164 | AD108: 69379.85986 | AE108: 176831.8896 | AF108: 29809.76062 | AG108: 74881.1215 | AH108: 72599.8243 | AI108: 81318.9634 | AJ108: 113770.1647 | AK108: 34154.59888 | AL108: 1264761.396 | AN108: 2023.47822 | AO108: 13032.7366 | AP108: 16080.20336 | AQ108: 5585.17484 | AR108: 5829.80666 | AS108: 10946.56998 | AT108: 3945.51622 | AU108: 6091.7715 | AV108: 5983.1383 | AW108: 6398.3354 | AX108: 7943.6307 | AY108: 4152.41328
D109: 164115.6 | E109: 151064.86 | F109: GASTOS POR EVENTOS | I109: 116700 | J109: 3132.5 | L109: 25507 | M109: 86372 | Q109: 11663.5 | R109: 2660 | S109: 2341.2 | U109: 248376.2 | V109: 225478 | W109: 22898.2 | Z109: 0 | AA109: 122535 | AB109: 3289.125 | AC109: 0 | AD109: 26782.35 | AE109: 90690.6 | AF109: 0 | AG109: 0 | AH109: 0 | AI109: 12246.675 | AJ109: 2793 | AK109: 2458.26 | AL109: 260795.01 | AN109: 0 | AO109: 5835 | AP109: 156.625 | AQ109: 0 | AR109: 1275.35 | AS109: 4318.6 | AT109: 0 | AU109: 0 | AV109: 0 | AW109: 583.175 | AX109: 133 | AY109: 117.06
C110: =SUM(C66:C109) -> 10041655.91 | D110: =SUM(D66:D109) -> 11990478.95 | E110: =SUM(E66:E109) -> 12934037.49 | F110: TOTAL GASTOS DE OPERACIÓN | H110: =SUM(H66:H109) -> 844230.9244 | I110: 1118405.812 | J110: 1509445.317 | K110: 959302.9468 | L110: 1151858.523 | M110: 1604035.97 | N110: 1149139.974 | O110: 1287435.95 | P110: 1179677.606 | Q110: 1511216.018 | R110: 1638071.904 | S110: 1472029.876 | T110: 0 | U110: 15424850.82 | V110: 14729912 | W110: 694938.8212 | Z110: =SUM(Z66:Z109) -> 984865.0706 | AA110: 1187013.689 | AB110: 1557204.919 | AC110: 999718.6396 | AD110: 1165261.447 | AE110: 1665134.978 | AF110: 1143058.999 | AG110: 1115296.721 | AH110: 1236253.287 | AI110: 1541409.493 | AJ110: 1431668.005 | AK110: 1685792.758 | AL110: 15712678.01
F112: PROYECTOS ESPECIFICOS
C113: 530680.06 | D113: 582915.07 | E113: 1253373.92 | F113: MUSEOGRAFIA | H113: 23103.24 | I113: 43710.09 | J113: 45833.2 | K113: 37627.8 | L113: 112076.92 | M113: 33047.61 | N113: 29831.69 | O113: 148976.92 | P113: 116170.86 | Q113: 30498.08 | R113: 130265.26 | S113: =3234.03+26751.05 -> 29985.08 | U113: =SUM(H113:S113)+T113 -> 781126.75 | V113: 300000 | W113: =+U113-V113 -> 481126.75 | Z113: =+AL113/12 -> 125000 | AL113: 1500000
C114: 692001.62 | D114: 934989.98 | E114: 1209145.3 | F114: CURADURIA | H114: 26849.89 | I114: 40555.26 | J114: 50823.29 | K114: 240856.28 | L114: 232158.55 | M114: 290432.37 | N114: 164926 | O114: 126009.16 | P114: 289285.58 | Q114: 173866.63 | R114: 216082.33 | S114: 111920.9 | U114: 1963766.24 | V114: 1952000 | W114: 11766.24 | Z114: 125000 | AL114: 1500000
C115: 84370 | D115: 207323.8 | E115: 1356111.55 | F115: SERVICIOS EDUCATIVOS | H115: 2069.55 | I115: =66033.05+5589+5599+10999 -> 88220.05 | J115: =90565.35+18200 -> 108765.35 | K115: 41206.4 | L115: 120611.7 | M115: 167499 | N115: 18988.5 | O115: =15437.94+26720 -> 42157.94 | P115: 85169.31 | Q115: 92243 | R115: 98184.24 | S115: 55230.29 | U115: 920345.33 | V115: 1035137 | W115: -114791.67 | Z115: 83333.33333 | AL115: 1000000
C116: 2957.9 | D116: 3564.32 | E116: 544.18 | F116: GASTOS BIBLIOTECA. | I116: 710.15 | J116: 970 | K116: 13530 | L116: 899.04 | M116: 1539.05 | P116: 1747.8 | Q116: 942.41 | R116: 900 | S116: 996 | U116: 22234.45 | V116: 0 | W116: 22234.45 | Z116: 0 | AL116: 0
C117: 355240.39 | D117: 602300.77 | E117: 953575.96 | F117: GASTOS DE EXPOSICIONES | I117: 5479 | J117: 94188.79 | K117: 11953.45 | L117: 735.08 | M117: 46674.29 | O117: 82817 | P117: 105592.64 | Q117: 2099.7 | R117: 10436.26 | S117: 5223.28 | U117: 365199.49 | V117: 0 | W117: 365199.49 | Z117: 0 | AL117: 0
C118: 258875.74 | D118: 447190.06 | E118: 663780.57 | F118: COMUNICACIÓN Y DIFUSION | H118: 30775.77 | I118: =51726.74-5589-5599-10999 -> 29539.74 | J118: =102095.8-18200 -> 83895.8 | K118: =84569.56-4000 -> 80569.56 | L118: 52829.6 | M118: =142974.65-4000 -> 138974.65 | N118: 70221.6 | O118: =101219.7-26720 -> 74499.7 | P118: 109415.16 | Q118: 35152.96 | R118: =137687.63-8944-10000 -> 118743.63 | S118: 87272.01 | U118: =SUM(H118:S118)+T118-6000 -> 905890.18 | V118: 519000 | W118: 386890.18 | Z118: 125000 | AL118: 1500000
F119: DIRECCION | U119: 0 | V119: 418000 | W119: -418000 | Z119: 41666.66667 | AL119: 500000
D120: 27760.05 | E120: 46679.88 | F120: GASTOS FINANCIEROS | H120: =156.8+2882.94 -> 3039.74 | I120: 2933.55 | J120: 3219.31 | K120: 1969.77 | L120: 3168 | M120: 531.22 | S120: 501.56 | U120: =SUM(H120:S120)+T120 -> 15363.15 | V120: 0 | W120: 15363.15 | Z120: 0 | AL120: 0
C121: 2539667.09 | D121: =SUM(D113:D120) -> 2806044.05 | E121: =SUM(E113:E120) -> 5483211.36 | F121: TOTAL PROYECTOS ESPECIFICOS | H121: =SUM(H113:H120) -> 85838.19 | I121: 211147.84 | J121: 387695.74 | K121: 427713.26 | L121: 522478.89 | M121: 678698.19 | N121: 283967.79 | O121: 474460.72 | P121: 707381.35 | Q121: 334802.78 | R121: 574611.72 | S121: 291129.12 | T121: 0 | U121: 4973925.59 | V121: 4224137 | W121: 749788.59 | Z121: =SUM(Z113:Z120) -> 500000 | AA121: 0 | AB121: 0 | AC121: 0 | AD121: 0 | AE121: 0 | AF121: 0 | AG121: 0 | AH121: 0 | AI121: 0 | AJ121: 0 | AK121: 0 | AL121: =SUM(AL113:AL120) -> 6000000
C122: 13925299.27 | D122: =+D62+D110+D121 -> 15550328.75 | E122: =+E62+E110+E121 -> 19154797.63 | F122: TOTAL GASTOS | H122: =+H62+H110+H121 -> 995384.4744 | I122: 1386877.502 | J122: 1980953.097 | K122: 1447916.947 | L122: 1742315.783 | M122: 2421928.88 | N122: 1495706.914 | O122: 1828883 | P122: 2088964.006 | Q122: 1897316.518 | R122: 2299630.694 | S122: 1913059.176 | T122: 0 | U122: 21492936.99 | V122: 19743795 | W122: 1749141.991 | Z122: =+Z62+Z110+Z121 -> 1553446.218 | AA122: 1247203.751 | AB122: 1645207.58 | AC122: 1063664.436 | AD122: 1236638.755 | AE122: 1748383.302 | AF122: 1208788.126 | AG122: 1185632.827 | AH122: 1307036.315 | AI122: 1595272.118 | AJ122: 1522962.447 | AK122: 1867631.761 | AL122: =+AL62+AL110+AL121 -> 22681867.64
C124: =+C42-C122 -> -647550.716 | D124: =+D42-D122 -> 4796796.54 | E124: =+E42-E122 -> 10464664.32 | F124: UTILIDAD DE OPERACIÓN | H124: =+H42-H122 -> 2168970.786 | I124: 2591092.808 | J124: 1157377.833 | K124: 222776.4932 | L124: 1577673.947 | M124: 1175389.39 | N124: 1021881.986 | O124: -536070.5 | P124: -900530.786 | Q124: -761204.848 | R124: 1878905.876 | S124: 1351193.804 | T124: 0 | U124: 10953456.79 | V124: -69806 | W124: 9523262.789 | Z124: =+Z42-Z122 -> 536708.6065 | AA124: -1247203.751 | AB124: -1645207.58 | AC124: -1063664.436 | AD124: -1236638.755 | AE124: -1748383.302 | AF124: -1208788.126 | AG124: -1185632.827 | AH124: -1307036.315 | AI124: -1595272.118 | AJ124: -1522962.447 | AK124: -1867631.761 | AL124: =+AL42-AL122 -> 2399990.254
F126: CONSTRUCCION EDIFICIO RUSSEK (INCLUYE LOCALES COMERCIALES)
C127: 411735.64 | D127: 50.8 | E127: 50747.06 | F127: ADMINISTRACION DE OBRA | H127: 4818.26 | I127: 5327.39 | J127: 2764.95 | K127: 2285.48 | L127: 1133.68 | M127: 775.92 | N127: 843.09 | O127: 380.51 | P127: 1168.15 | Q127: 1018.59 | R127: 2386.64 | S127: 51318.89 | U127: =SUM(H127:T127) -> 74221.55 | W127: =+U127-V127 -> 74221.55 | AL127: =SUM(Z127:AK127) -> 0
E128: 257032.87 | F128: TRABAJOS PRELIMINARES Y DEMOLICIONES | H128: 901 | J128: 7586.7 | U128: 8487.7 | W128: 8487.7 | AL128: =SUM(Z128:AK128) -> 0
E129: 572449.64 | F129: ESTRUCTURA METALICA | J129: 67551.73 | U129: 67551.73 | W129: 67551.73 | AL129: 0
F130: ESTRUCTURA DE MADERA | J130: 15925 | U130: 15925 | W130: 15925 | AL130: 0
E131: 159419 | F131: INGENIERIA ELECTRICA ILUMINACION | U131: 0 | W131: 0 | AL131: 0
E132: 192051.23 | F132: INST. HIDRAULICA Y SANITARIA | H132: 4085.83 | I132: 33052.11 | K132: 2900 | M132: 3200 | O132: 1200 | U132: 44437.94 | W132: 44437.94 | AL132: 0
C133: 49316.99 | D133: 2562508.9 | E133: 2028857.29 | F133: OBRA CIVIL | H133: 143789.34 | I133: 75088.24 | J133: 34539.9 | L133: 3000 | M133: 2000 | P133: 11309.75 | Q133: 20245.54 | U133: 289972.77 | W133: 289972.77 | AL133: 0
E134: 626365.66 | F134: ACABADOS | H134: 171237.58 | I134: 103676.44 | J134: 146411.74 | K134: 70271.73 | L134: 41504.85 | M134: 18096 | P134: 1100 | U134: 552298.34 | W134: 552298.34 | AL134: 0
E135: 133160.66 | F135: PINTURA | H135: 58434 | I135: 38183.5 | J135: 11904 | U135: 108521.5 | W135: 108521.5 | AL135: 0
D136: 28821.65 | E136: 1262595.2 | F136: INSTALACIONES ELECTRONICAS | U136: 0 | W136: 0 | AL136: 0
E137: 1784518 | F137: CARPINTERIA | H137: 100747.2 | I137: 168570 | U137: 269317.2 | W137: 269317.2 | AL137: 0
F138: ELEVADOR | M138: 46282.1 | N138: 4732 | P138: 81000 | U138: 132014.1 | W138: 132014.1 | AL138: 0
E139: 462118 | F139: VIDRIO Y CRISTAL | H139: 13260 | I139: 75000 | J139: 22546.05 | U139: 110806.05 | W139: 110806.05 | AL139: 0
F140: ILUMINACION | H140: 47377.65 | I140: 23940 | U140: 71317.65 | W140: 71317.65 | AL140: 0
F141: ALUMINIO, VIDRIO Y TABLAROCA | I141: 75000 | J141: 3650.02 | U141: 78650.02 | W141: 78650.02 | AL141: 0
D142: =7000+13000+141728.33 -> 161728.33 | E142: 260243.95 | F142: MONTACARGAS, ELEVADOR Y AIRE ACONDICIONADO | R142: =1483720.06+642799.94+873480 -> 3000000 | S142: 20000 | U142: 3020000 | W142: 3020000 | Z142: =383000/12 -> 31916.66667 | AA142: =383000/12 -> 31916.66667 | AB142: 31916.66667 | AC142: 31916.66667 | AD142: 31916.66667 | AE142: 31916.66667 | AF142: 31916.66667 | AG142: 31916.66667 | AH142: 31916.66667 | AI142: 31916.66667 | AJ142: 31916.66667 | AK142: 31916.66667 | AL142: 383000 | AZ142: =203000+180000 -> 383000
E143: 70622 | F143: FACHADA | P143: 125000 | Q143: 76900 | R143: 201975 | S143: 60000 | U143: 463875 | V143: 983052 | W143: -519177 | Z143: =(303456+672000)/12 -> 81288 | AA143: =(303456+672000)/12 -> 81288 | AB143: 81288 | AC143: 81288 | AD143: 81288 | AE143: 81288 | AF143: 81288 | AG143: 81288 | AH143: 81288 | AI143: 81288 | AJ143: 81288 | AK143: 81288 | AL143: 975456 | AZ143: =303456+672000 -> 975456
E144: 75000 | F144: AMPLIACION SOTANO | U144: 0 | W144: 0 | AL144: 0
D145: 5850 | E145: 114565.77 | F145: HERRERIA | L145: 19700 | N145: 20000 | U145: 39700 | W145: 39700 | AL145: 0
D146: 138960.44 | E146: 131638.43 | F146: INST. ELECT-SANIT-PLUVIAL | H146: 6500 | K146: 74743.63 | L146: 7317.7 | M146: 74806.28 | P146: 68060.45 | U146: 231428.06 | W146: 231428.06 | AL146: 0
E147: 34862 | F147: AIRE ACONDICIONADO | P147: 3900 | U147: 3900 | W147: 3900 | AL147: 0
E148: 67767.7 | F148: SIST. CONTROL DE ACCESOS | J148: 23718.1 | K148: 196653.22 | S148: 2828.18 | U148: 223199.5 | W148: 223199.5 | AL148: 0
E149: 66935.5 | F149: SIST. DE RED VOZ Y DATOS | J149: 23225 | K149: 181214.18 | S149: 2205.11 | U149: 206644.29 | W149: 206644.29 | AL149: 0
E150: 114475.76 | F150: SIST. DE CCTV | K150: 386830.58 | Q150: 14164.32 | S150: 2148.55 | U150: 403143.45 | W150: 403143.45 | AL150: 0
E151: 37785.54 | F151: SIST. DE INTRUSION | J151: 13224.14 | K151: 107456.13 | S151: 2277.57 | U151: 122957.84 | W151: 122957.84 | AL151: 0
E152: 20084.74 | F152: SIST. CONTROL DE ALUMBRADO | K152: 70794.75 | U152: 70794.75 | W152: 70794.75 | AL152: 0
E153: 78591.72 | F153: SIST. DETECCION DE INCENDIOS | H153: 11341.5 | K153: 205245.32 | S153: 4955.01 | U153: 221541.83 | W153: 221541.83 | AL153: 0
F154: SOTANO | M154: 33006.89 | N154: 29965.32 | O154: 79347.24 | P154: 43716.55 | Q154: 104569.5 | R154: 42522.96 | S154: 66263.53 | U154: 399391.99 | V154: 1044000 | W154: -644608.01 | Z154: =(1400000+1220000)/12 -> 218333.3333 | AA154: =(1400000+1220000)/12 -> 218333.3333 | AB154: 218333.3333 | AC154: 218333.3333 | AD154: 218333.3333 | AE154: 218333.3333 | AF154: 218333.3333 | AG154: 218333.3333 | AH154: 218333.3333 | AI154: 218333.3333 | AJ154: 218333.3333 | AK154: 218333.3333 | AL154: 2620000 | AZ154: =1400000+1220000 -> 2620000
D155: 48365.25 | E155: 244282.75 | F155: PUENTES | H155: 258336.05 | I155: 56729.87 | J155: 42900 | K155: 39000 | U155: 396965.92 | W155: 396965.92 | AL155: 0
E156: 0 | U156: 0 | W156: 0 | AL156: 0
C157: =SUM(C127:C156) -> 461052.63 | D157: =SUM(D127:D156) -> 2946285.37 | E157: =SUM(E127:E156) -> 8846170.47 | F157: SUBTOTAL | G157: =SUM(G129:G156) -> 0 | H157: =SUM(H127:H156) -> 820828.41 | I157: 654567.55 | J157: 415947.33 | K157: 1337395.02 | L157: 72656.23 | M157: 178167.19 | N157: 55540.41 | O157: 80927.75 | P157: 335254.9 | Q157: 216897.95 | R157: 3246884.6 | S157: 211996.84 | T157: 0 | U157: =SUM(U127:U156) -> 7627064.18 | V157: =SUM(V127:V156) -> 2027052 | W157: =SUM(W127:W156) -> 5600012.18 | Z157: =SUM(Z127:Z156) -> 331538 | AA157: =SUM(AA127:AA156) -> 331538 | AB157: 331538 | AC157: 331538 | AD157: 331538 | AE157: 331538 | AF157: 331538 | AG157: 331538 | AH157: 331538 | AI157: 331538 | AJ157: 331538 | AK157: 331538 | AL157: 3978456 | AZ157: =SUM(AZ127:AZ156) -> 3978456
C158: =+C157*0.16 -> 73768.4208 | D158: =+D157*0.16 -> 471405.6592 | E158: =+E157*0.16 -> 1415387.275 | F158: 16% DE IVA | H158: =+H157*0.16 -> 131332.5456 | I158: 104730.808 | J158: 66551.5728 | K158: 213983.2032 | L158: 11624.9968 | M158: 28506.7504 | N158: 8886.4656 | O158: 12948.44 | P158: 53640.784 | Q158: 34703.672 | R158: =+(R157-3000000)*0.16 -> 39501.536 | S158: 33919.4944 | T158: 0 | U158: =+U157*0.16 -> 1220330.269 | V158: =+V157*0.16 -> 324328.32 | W158: =+U158-V158 -> 896001.9488 | Z158: =+Z157*0.16 -> 53046.08 | AA158: =+AA157*0.16 -> 53046.08 | AB158: 53046.08 | AC158: 53046.08 | AD158: 53046.08 | AE158: 53046.08 | AF158: 53046.08 | AG158: 53046.08 | AH158: 53046.08 | AI158: 53046.08 | AJ158: 53046.08 | AK158: 53046.08 | AL158: 636552.96 | AZ158: =+AZ157*0.16 -> 636552.96
C159: =+C157+C158 -> 534821.0508 | D159: =+D157+D158 -> 3417691.029 | E159: =+E157+E158 -> 10261557.75 | F159: TOTAL | H159: =+H157+H158 -> 952160.9556 | I159: 759298.358 | J159: 482498.9028 | K159: 1551378.223 | L159: 84281.2268 | M159: 206673.9404 | N159: 64426.8756 | O159: 93876.19 | P159: 388895.684 | Q159: 251601.622 | R159: 3286386.136 | S159: 245916.3344 | T159: 0 | U159: =+U157+U158 -> 8847394.449 | V159: =+V157+V158 -> 2351380.32 | W159: =+W157+W158 -> 6496014.129 | Z159: =+Z157+Z158 -> 384584.08 | AA159: =+AA157+AA158 -> 384584.08 | AB159: 384584.08 | AC159: 384584.08 | AD159: 384584.08 | AE159: 384584.08 | AF159: 384584.08 | AG159: 384584.08 | AH159: 384584.08 | AI159: 384584.08 | AJ159: 384584.08 | AK159: 384584.08 | AL159: 4615008.96 | AZ159: =+AZ157+AZ158 -> 4615008.96
F161: MUSEOGRAFIA | M161: =+M157 -> 178167.19
F162: MUSEOGRAFIA DE LOS DOS NIVELES | U162: 0 | V162: 0 | W162: =+U162-V162 -> 0
F163: 16% DE IVA | H163: =+H162*0.16 -> 0 | I163: 0 | J163: 0 | K163: 0 | L163: 0 | M163: 0 | U163: =+U162*0.16 -> 0 | V163: =+V162*0.16 -> 0 | W163: =+U163-V163 -> 0 | Z163: =+Z162*0.16 -> 0 | AA163: 0 | AB163: 0 | AC163: 0 | AD163: 0 | AE163: 0 | AF163: 0 | AG163: 0 | AH163: 0 | AI163: 0 | AJ163: 0 | AK163: 0 | AL163: 0
C164: =+C162+C163 -> 0 | D164: =+D162+D163 -> 0 | F164: TOTAL | H164: =+H162+H163 -> 0 | I164: =+I162+I163 -> 0 | J164: 0 | K164: 0 | L164: 0 | M164: 0 | N164: 0 | O164: 0 | P164: 0 | Q164: 0 | R164: 0 | S164: 0 | T164: 0 | U164: 0 | V164: =+V162+V163 -> 0 | W164: =+U164-V164 -> 0 | Z164: =+Z162+Z163 -> 0 | AA164: =+AA162+AA163 -> 0 | AB164: 0 | AC164: 0 | AD164: 0 | AE164: 0 | AF164: 0 | AG164: 0 | AH164: 0 | AI164: 0 | AJ164: 0 | AK164: 0 | AL164: 0
C165: =+C159+C164 -> 534821.0508 | D165: =+D159+D164 -> 3417691.029 | E165: =+E159+E164 -> 10261557.75 | F165: TOTAL CONSTRUCCION EDIF. RUSSEK Y MUSEOGRAFIA INCLUYENDO IVA | H165: =+H159+H164 -> 952160.9556 | I165: 759298.358 | J165: 482498.9028 | K165: 1551378.223 | L165: 84281.2268 | M165: 206673.9404 | N165: 64426.8756 | O165: 93876.19 | P165: 388895.684 | Q165: 251601.622 | R165: 3286386.136 | S165: 245916.3344 | T165: 0 | U165: =+U159+U164 -> 8847394.449 | V165: =+V159+V164 -> 2351380.32 | W165: =+W159+W164 -> 6496014.129 | Z165: =+Z159+Z164 -> 384584.08 | AA165: 384584.08 | AB165: 384584.08 | AC165: 384584.08 | AD165: 384584.08 | AE165: 384584.08 | AF165: 384584.08 | AG165: 384584.08 | AH165: 384584.08 | AI165: 384584.08 | AJ165: 384584.08 | AK165: 384584.08 | AL165: 4615008.96
C167: =+C124-C165 -> -1182371.767 | D167: =+D124-D165 -> 1379105.511 | E167: =+E124-E165 -> 203106.5748 | F167: REMANENTE PARA USARSE EN GASTOS DE OPERACIÓN 2012 | H167: =+H124-H165 -> 1216809.83 | I167: 1831794.45 | J167: 674878.93 | K167: -1328601.73 | L167: 1493392.72 | M167: 968715.45 | N167: 957455.11 | O167: -629946.69 | P167: -1289426.47 | Q167: -1012806.47 | R167: -1407480.26 | S167: 1105277.47 | T167: 0 | U167: 2106062.34 | V167: -2421186.32 | W167: 3027248.66 | Z167: =+Z124-Z165 -> 152124.5265 | AA167: -1631787.831 | AB167: -2029791.66 | AC167: -1448248.516 | AD167: -1621222.835 | AE167: -2132967.382 | AF167: -1593372.206 | AG167: -1570216.907 | AH167: -1691620.395 | AI167: -1979856.198 | AJ167: -1907546.527 | AK167: -2252215.841 | AL167: -2215018.706
D169: 4488678.26 | E169: 4510572.96 | F169: DEPRECIACION | H169: 352772.15 | I169: 352772.15 | J169: 352772.15 | K169: 352772.15 | L169: 352772.15 | M169: 352772.15 | N169: 352772.15 | O169: 352772.15 | P169: 352772.15 | Q169: 385793.66 | R169: 385793.66 | U169: =SUM(H169:T169) -> 3946536.67 | V169: =SUM(I169:S169) -> 3593764.52

Sheet FEBRERO
B2: CENTRO CULTURAL AROCENA LAGUNA, AC
B3: ESTADO DE ACTIVIDADES AL 28 DE FEBRERO 2017
D8: REAL ACUM | E8: PRES ACUM
B9: CONCEPTO | D9: FEBRERO 2017 | E9: FEBRERO 2017
B10: INGRESOS
B13: TAQUILLA | D13: 59860 | E13: 41667
B14: ESTACIONAMIENTO | D14: 4071 | E14: 2833
B15: INGRESOS COM EDUCATIVA | D15: 13034 | E15: 28333
B16: VENTA LIBROS | D16: 3628 | E16: 8333
B17: EDUCAL / OTROS INGRESOS | D17: 9509 | E17: 14833
B18: RESTAURANT | D18: 12100 | E18: 10833
B20: RENTA DE ESPACIOS:
B21: ESPACIOS VARIOS | D21: 91353 | E21: 100000
B23: DONATIVOS:
B24: GOBIERNO DEL ESTADO | D24: 960000 | E24: 800000
B25: GOBIERNO MUNICIPAL | D25: 250000 | E25: 166667
B26: FUNDACION LALA | D26: 0 | E26: 166667
B27: FUNDACION E. AROCENA | D27: 800000 | E27: 2166667
B28: SECRETARIA DE CULTURA (PEF 2017) | D28: 0 | E28: 166667
B29: BANAMEX | D29: 0 | E29: 166667
B30: VARIOS/AMIGAS DEL MUSEO | D30: 0 | E30: 41667
B31: MET MEX PEÑOLES | D31: 0 | E31: 41667 | I31: DETALLE
B33: TOTAL DONATIVOS: | D33: =SUM(D24:D31) -> 2010000 | E33: =SUM(E24:N31) -> 3716669 | F33: OK | I33: 13000 | J33: INT. CORTE Y CONFECCION
B34: DONATIVOS EN ESPECIE | D34: 0 | E34: 5000 | I34: 1800 | J34: LECHE BELL
I35: 8000 | J35: INST ELECTORAL Y DE PARTIC CIUDADANA
B37: PROCURACION DE FONDOS | D37: 50000 | E37: 100000
B38: TOTAL INGRESOS | D38: =SUM(D13:D21)+D33+D34+D36+D37 -> 2253555 | E38: =SUM(E13:E21)+E33+E36+E34+E37 -> 4028501
B40: EGRESOS
B41: GASTOS DE ADMINISTRACION: | D41: 107571 | E41: 76333
B43: GASTOS DE OPERACIÓN | D43: 2402841 | E43: 3166475
B45: TOTAL PROYECTOS ESPECIFICOS | D45: 489167 | E45: 707000
B47: TOTAL GASTOS | D47: =D41+D43+D45 -> 2999579 | E47: =E41+E43+E45 -> 3949808
B50: REMANENTE DE OPERACIÓN | D50: =D38-D47 -> -746024 | E50: =E38-E47 -> 78693
B52: INVERSION CONSTRUCCION EDIFICIO RUSSEK | D52: 1688
B55: REMANENTE PARA USARSE EN GASTOS DE OPERACIÓN 2013 | D55: -3335041.942 | E55: -127494.5
